Workbook

Sheet AER only (hidden)
B1: Data in these columns used for data validation and database purposes.
B2: Date last modified: | C2: 2016-09-06 | D2: added new business names, improved column heading formatting
AC4: FOR ELECTRICITY BUSINESSES ONLY
AC5: Feeder Types | AG5: TasNetworks (D) | AH5: MAIFI flag | AI5: Feeder Names
AC6: CBD | AD6: Urban | AE6: Short rural | AF6: long rural | AG6: EXTRA
B7: dms_TradingName_List | C7: dms_TradingNameFull_List | D7: dms_ABN_List | E7: dms_JurisdictionList | F7: dms_Sector_List | G7: dms_Segment_List | H7: dms_FormControl_List | I7: dms_RPT_List | J7: dms_RPTMonth_List | K7: dms_CRCPlength_List | L7: dms_FRCPlength_List | M7: dms_663_List | N7: dms_DeterminationRef_List | O7: dms_Addr1_List | P7: dms_Addr2_List | Q7: dms_Suburb_List | R7: dms_State_List | S7: dms_PostCode_List | T7: dms_PAddr1_List | U7: dms_PAddr2_List | V7: dms_PSuburb_List | W7: dms_PState_List | X7: dms_PPostCode_List | Y7: dms_ContactName1_List | Z7: dms_ContactPh1_List | AA7: dms_ContactEmail_List | AC7: dms_CBD_flag | AD7: dms_Urban_flag | AE7: dms_ShortRural_flag | AF7: dms_LongRural_flag | AG7: dms_FeederType_5_flag | AH7: dms_MAIFI_flag_List | AI7: dms_FeederName_1 | AJ7: dms_FeederName_2 | AK7: dms_FeederName_3 | AL7: dms_FeederName_4 | AM7: dms_FeederName_5
B8: ActewAGL Distribution | C8: ActewAGL Distribution | D8: 76670568688 | E8: ACT | F8: Electricity | G8: Distribution | H8: Revenue cap | I8: Financial | J8: June | K8: 5 | L8: 5 | M8: 5 | N8: 2014-19 Distribution Determination | O8: 40 Bunda Street | Q8: CANBERRA | R8: ACT | S8: 2600 | T8: GPO BOX 366 | V8: CANBERRA | W8: ACT | X8: 2601 | Y8: Robert Walker | Z8: 02 6248 3847 | AA8: robert.walker@actewagle.com.au | AC8: NO | AD8: YES | AE8: YES | AF8: NO | AG8: NO | AI8: CBD | AJ8: Urban | AK8: Short rural | AL8: Long rural | AN8: ActewAGL Distribution
B9: ActewAGL Distribution (Tx Assets) | C9: ActewAGL Distribution (Tx Assets) | D9: 76670568688 | E9: ACT | F9: Electricity | G9: Distribution | H9: Revenue cap | I9: Financial | J9: June | K9: 5 | L9: 5 | M9: 5 | N9: distribution determination | O9: 40 Bunda Street | Q9: CANBERRA | R9: ACT | S9: 2600 | T9: GPO BOX 366 | V9: CANBERRA | W9: ACT | X9: 2601 | Y9: Robert Walker | Z9: 02 6248 3847 | AA9: robert.walker@actewagle.com.au | AI9: CBD | AJ9: Urban | AK9: Short rural | AL9: Long rural | AN9: ActewAGL Distribution (Tx Assets)
B10: ActewAGL Gas | C10: ActewAGL Gas | D10: 76670568688 | E10: ACT | F10: Gas | G10: Distribution | H10: Weighted average price cap | I10: Financial | J10: June | K10: 5 | L10: 5 | M10: x | O10: 40 Bunda Street | Q10: CANBERRA | R10: ACT | S10: 2600 | T10: GPO BOX 366 | V10: CANBERRA | W10: ACT | X10: 2601 | Y10: Philip Deamer | Z10: 02 6248 3438 | AA10: GasAAReview@actewagl.com.au | AN10: ActewAGL Gas
B11: AGN (Albury) | C11: Australian Gas Networks Limited (reporting data for Albury) | D11: 19078551685 | E11: Vic | F11: Gas | G11: Distribution | H11: Weighted average price cap | I11: Calendar | J11: December | K11: 5 | L11: 5 | M11: x | O11: Level 10 | P11: 81 Flinders Street | Q11: ADELAIDE | R11: SA | S11: 5000 | Z11: 08 8227 1500 | AI11: CBD | AJ11: Urban | AK11: Short rural | AL11: Long rural | AN11: AGN (SA)
B12: AGN (SA) | C12: AGN (SA) | D12: 78551685 | E12: SA | F12: Gas | G12: Distribution | H12: Revenue cap | I12: Financial | J12: June | K12: 5 | L12: 5 | M12: 5 | N12: distribution determination | R12: SA | AN12: AGN (Victoria)
B13: AGN (Victoria) | C13: Australian Gas Networks Limited (reporting data for Victoria) | D13: 19078551685 | E13: Vic | F13: Gas | G13: Distribution | H13: Weighted average price cap | I13: Calendar | J13: December | K13: 5 | L13: 5 | M13: x | O13: Level 10 | P13: 81 Flinders Street | Q13: ADELAIDE | R13: SA | S13: 5000 | Z13: 08 8227 1500 | AN13: AGN (Albury)
B14: Amadeus | C14: APT Pipelines (NT) Pty Ltd | D14: 39009737393 | E14: NT | F14: Gas | G14: Transmission | H14: Weighted average price cap | I14: Financial | J14: June | K14: 5 | L14: 5 | M14: x | N14: n/a | O14: Level 19, HSBC Building | P14: 580 George Street | Q14: SYDNEY | R14: NSW | S14: 2000 | T14: Level 19, HSBC Building | U14: 580 George Street | V14: SYDNEY | W14: NSW | X14: 2000 | Y14: Alexandra Curran | Z14: 02 9275 0020 | AA14: alexandra.curran@apa.com.au | AN14: Amadeus
B15: APA GasNet | C15: APA GasNet Australia (Operations) Pty Ltd | D15: 65083009 | E15: Vic | F15: Gas | G15: Transmission | H15: Weighted average price cap | I15: Calendar | J15: December | K15: 5 | L15: 5 | M15: x | O15: Level 19, HSBC Building | P15: 580 George Street | Q15: SYDNEY | R15: NSW | S15: 2000 | T15: PO Box R41 | V15: ROYAL EXCHANGE | W15: NSW | X15: 1225 | Z15: 02 9693 0000 | AN15: APA GasNet
B16: Ausgrid | C16: Ausgrid | D16: 67505337385 | E16: NSW | F16: Electricity | G16: Distribution | H16: Revenue cap | I16: Financial | J16: June | K16: 5 | L16: 5 | M16: 5 | N16: 2014-19 Distribution Determination | O16: 570 George St | Q16: SYDNEY | R16: NSW | S16: 2000 | Y16: John Thomson | Z16: (02) 9269 2312 | AA16: john.thomson@ausgrid.com.au | AC16: YES | AD16: YES | AE16: YES | AF16: YES | AG16: NO | AI16: CBD | AJ16: Urban | AK16: Short rural | AL16: Long rural | AN16: Ausgrid
B17: Ausgrid (Tx Assets) | C17: Ausgrid (Tx Assets) | D17: 67505337385 | E17: NSW | F17: Electricity | G17: Distribution | H17: Revenue cap | I17: Financial | J17: June | K17: 5 | L17: 5 | M17: 5 | N17: distribution determination | R17: NSW | AI17: CBD | AJ17: Urban | AK17: Short rural | AL17: Long rural | AN17: Ausgrid (Tx Assets)
B18: AusNet (D) | C18: AusNet Services (D) | D18: 91064651118 | E18: Vic | F18: Electricity | G18: Distribution | H18: Revenue cap | I18: Calendar | J18: December | K18: 5 | L18: 5 | M18: 2 | N18: 2016-20 Distribution Determination | O18: Level 32 | P18: 2 Southbank Boulevard | Q18: SOUTHBANK | R18: Vic | S18: 3006 | T18: Locked Bag 14051 | V18: MELBOURNE CITY MAIL CENTRE | W18: VIC | X18: 8001 | Y18: Hannah Williams | Z18: 03 9683 4088 | AA18: hwilliams@powercor.com.au | AD18: YES | AE18: YES | AF18: YES | AG18: NO | AI18: CBD | AJ18: Urban | AK18: Short rural | AL18: Long rural | AN18: AusNet (D)
B19: AusNet (Gas) | C19: AusNet Gas Services | D19: 86015036 | E19: Vic | F19: Gas | G19: Distribution | H19: Weighted average price cap | I19: Calendar | J19: December | K19: 5 | L19: 5 | M19: X | AN19: AusNet (Gas)
B20: AusNet (T) | C20: AusNet (T) | D20: 78079798173 | E20: Vic | F20: Electricity | G20: Transmission | H20: Revenue cap | I20: Financial | J20: March | K20: 5 | L20: 5 | M20: 2 | N20: transmission determination | O20: Level 32 | P20: 2 Southbank Boulevard | Q20: SOUTHBANK | R20: Vic | S20: 3006 | T20: Locked Bag 14051 | V20: MELBOURNE CITY MAIL CENTRE | W20: Vic | X20: 8001 | Y20: Clare Thompson | Z20: 03 9695 6670 | AA20: clare.e.thompson@ausnetservices.com.au | AI20: CBD | AJ20: Urban | AK20: Short rural | AL20: Long rural | AN20: AusNet (T)
B21: Australian Distribution Co. | C21: Australian Distribution Co. | D21: 11222333444 | E21: - | F21: Electricity | G21: Distribution | H21: Revenue cap | I21: Financial | J21: June | K21: 5 | L21: 5 | M21: 2 | N21: distribution determination | O21: 123 Straight Street | Q21: SYDNEY | R21: NSW | S21: 2000 | T21: PO Box 123 | V21: SYDNEY | W21: NSW | X21: 2000 | Y21: Bob Smith | Z21: 02 1234 5678 | AA21: bob@auselec.net.au | AI21: CBD | AJ21: Urban | AK21: Short rural | AL21: Long rural | AN21: Australian Distribution Co.
B22: Australian Distribution Co. (Vic) | C22: Australian Distribution Co. (Victoria) | D22: 11222333444 | E22: Vic | F22: Electricity | G22: Distribution | H22: Revenue cap | I22: Calendar | J22: December | K22: 5 | L22: 5 | M22: 2 | N22: distribution determination | O22: 123 Straight Street | Q22: MELBOURNE | R22: Vic | S22: 3000 | T22: PO Box 123 | V22: MELBOURNE | W22: VIC | X22: 3000 | Y22: Bob Smith | Z22: 02 1234 5678 | AA22: bob@auselec.net.au | AI22: CBD | AJ22: Urban | AK22: Short rural | AL22: Long rural | AN22: Australian Distribution Co. (Vic)
B23: Australian Transmission Co. | C23: Australian Transmission Co. | D23: 11222333444 | E23: - | F23: Electricity | G23: Transmission | H23: Revenue cap | I23: Financial | J23: June | K23: 5 | L23: 5 | M23: 5 | N23: transmission determination | O23: 123 Straight Street | Q23: SYDNEY | R23: NSW | S23: 2000 | T23: PO Box 123 | V23: SYDNEY | W23: NSW | X23: 2000 | Y23: Bob Smith | Z23: 02 1234 5678 | AA23: bob@auselec.net.au | AI23: CBD | AJ23: Urban | AK23: Short rural | AL23: Long rural | AN23: Australian Transmission Co.
B24: CitiPower | C24: CitiPower | D24: 76064651056 | E24: Vic | F24: Electricity | G24: Distribution | H24: Revenue cap | I24: Calendar | J24: December | K24: 5 | L24: 5 | M24: 2 | N24: 2016-20 Distribution Determination | O24: 40 Market Street | Q24: MELBOURNE | R24: Vic | S24: 3000 | T24: Locked Bag 14090 | V24: MELBOURNE | W24: VIC | X24: 8001 | Y24: Hannah Williams | Z24: 03 9683 4088 | AA24: hwilliams@powercor.com.au | AC24: YES | AD24: YES | AE24: NO | AF24: NO | AG24: NO | AI24: CBD | AJ24: Urban | AK24: Short rural | AL24: Long rural | AN24: CitiPower
B25: Directlink | C25: Directlink | D25: 16779340889 | E25: Qld | F25: Electricity | G25: Transmission | H25: Revenue cap | I25: Financial | J25: June | K25: 9 | L25: 5 | M25: 5 | N25: transmission determination | R25: NSW | AI25: CBD | AJ25: Urban | AK25: Short rural | AL25: Long rural | AN25: Directlink
B26: ElectraNet | C26: ElectraNet | D26: 41094482416 | E26: SA | F26: Electricity | G26: Transmission | H26: Revenue cap | I26: Financial | J26: June | K26: 5 | L26: 5 | M26: 5 | N26: transmission determination | O26: 52-55 East Terrace | P26: Rymill Park | Q26: ADELAIDE | R26: SA | S26: 5000 | T26: PO Box 7096 | U26: Hutt Street Post Office | V26: ADELAIDE | W26: SA | X26: 5000 | Y26: Bill Jackson | Z26: 08 8404 7969 | AA26: jackson.bill@electranet.com.au | AI26: CBD | AJ26: Urban | AK26: Short rural | AL26: Long rural | AN26: ElectraNet
B27: Endeavour Energy | C27: Endeavour Energy | D27: 59253130878 | E27: NSW | F27: Electricity | G27: Distribution | H27: Revenue cap | I27: Financial | J27: June | K27: 5 | L27: 5 | M27: 5 | N27: 2014-19 Distribution Determination | O27: 51 Huntingwood Drive | Q27: HUNTINGWOOD | R27: NSW | S27: 2148 | T27: PO Box 811 | V27: SEVEN HILLS | W27: NSW | X27: 1730 | Y27: Jon Hocking | Z27: 02 9853 4386 / 0407 348 156 | AA27: Jon.Hocking@Endeavourenergy.com.au | AC27: NO | AD27: YES | AE27: YES | AF27: YES | AG27: NO | AI27: CBD | AJ27: Urban | AK27: Short rural | AL27: Long rural | AN27: Endeavour Energy
B28: Energex | C28: Energex | D28: 40078849055 | E28: Qld | F28: Electricity | G28: Distribution | H28: Revenue cap | I28: Financial | J28: June | K28: 5 | L28: 5 | M28: 5 | N28: 2015-20 Distribution Determination | O28: 26 Reddacliff Street | Q28: NEWSTEAD | R28: Qld | S28: 4006 | T28: 26 Reddacliff Street | V28: NEWSTEAD | W28: QLD | X28: 4006 | Y28: Nicola Roscoe | Z28: 07 3664 5891 | AA28: nicolaroscoe@energex.com.au | AC28: YES | AD28: YES | AE28: YES | AF28: NO | AG28: NO | AI28: CBD | AJ28: Urban | AK28: Short rural | AL28: Long rural | AN28: Energex
B29: Ergon Energy | C29: Ergon Energy | D29: 50087646062 | E29: Qld | F29: Electricity | G29: Distribution | H29: Revenue cap | I29: Financial | J29: June | K29: 5 | L29: 5 | M29: 5 | N29: 2015-20 Distribution Determination | O29: 22 Walker Street | Q29: TOWNSVILLE | R29: Qld | S29: 4810 | T29: Po Box 264 | V29: FORTITUDE VALLEY | W29: QLD | X29: 4006 | Y29: Jenny Doyle, Group Manager Regulatory Affairs | Z29: (07) 3851 6416 | AA29: jenny.doyle@ergon.com.au | AC29: NO | AD29: YES | AE29: YES | AF29: YES | AG29: NO | AI29: CBD | AJ29: Urban | AK29: Short rural | AL29: Long rural | AN29: Ergon Energy
B30: Essential Energy | C30: Essential Energy | D30: 37428185226 | E30: NSW | F30: Electricity | G30: Distribution | H30: Revenue cap | I30: Financial | J30: June | K30: 5 | L30: 5 | M30: 5 | N30: 2014-19 Distribution Determination | O30: 8 Buller Street | Q30: PORT MACQUARIE | R30: NSW | S30: 2444 | T30: PO Box 5730 | V30: PORT MACQUARIE | W30: NSW | X30: 2444 | Y30: Catherine Waddell | Z30: 02 6338 3553 | AA30: catherine.waddell@essentialenergy.com.au | AE30: YES | AF30: YES | AG30: NO | AI30: CBD | AJ30: Urban | AK30: Short rural | AL30: Long rural | AN30: Essential Energy
B31: Jemena Electricity | C31: Jemena Electricity | D31: 82064651083 | E31: Vic | F31: Electricity | G31: Distribution | H31: Revenue cap | I31: Calendar | J31: December | K31: 5 | L31: 5 | M31: 2 | N31: 2016-20 Distribution Determination | O31: Level 16 | P31: 567 Collins Street | Q31: MELBOURNE | R31: VIC | S31: 3000 | T31: PO Box 16182 | V31: MELBOURNE | W31: VIC | X31: 8001 | Y31: Matthew Serpell | Z31: 03 9173 8231 | AA31: matthew.serpell@jemena.com..au | AE31: YES | AF31: NO | AG31: NO | AI31: CBD | AJ31: Urban | AK31: Short rural | AL31: Long rural | AN31: Jemena Electricity
B32: JGN | C32: Jemena Gas Networks | E32: NSW | F32: Gas | G32: Distribution | H32: Weighted average price cap | I32: Financial | J32: June | K32: 5 | L32: 5 | AN32: JGN
B33: Multinet Gas | C33: Multinet Gas (DB No.1) Pty Ltd (ACN 086 026 986), Multinet Gas (DB No.2) Pty Ltd (ACN 086 230 122) | D33: 86026986 | E33: Vic | F33: Gas | G33: Distribution | H33: Weighted average price cap | I33: Calendar | J33: December | K33: 5 | L33: 5 | M33: x | AN33: Multinet Gas
B34: Murraylink | C34: Murraylink | D34: 79181207909 | E34: SA | F34: Electricity | G34: Transmission | H34: Revenue cap | I34: Financial | J34: June | K34: 5 | L34: 5 | M34: 5 | N34: transmission determination | AI34: CBD | AJ34: Urban | AK34: Short rural | AL34: Long rural | AN34: Murraylink
B35: Powercor Australia | C35: Powercor Australia | D35: 89064651109 | E35: Vic | F35: Electricity | G35: Distribution | H35: Revenue cap | I35: Calendar | J35: December | K35: 5 | L35: 5 | M35: 2 | N35: 2016-20 Distribution Determination | O35: 40 Market Street | Q35: MELBOURNE | R35: Vic | S35: 3000 | T35: Locked bag 14090 | V35: MELBOURNE | W35: VIC | X35: 8001 | Y35: Hannah Williams | Z35: 03 9683 4088 | AA35: hwilliams@powercor.com.au | AE35: YES | AF35: YES | AG35: NO | AI35: CBD | AJ35: Urban | AK35: Short rural | AL35: Long rural | AN35: Powercor Australia
B36: Powerlink | C36: Queensland Electricity Transmission Corporation Limited trading as Powerlink Queensland | D36: 82078849233 | E36: Qld | F36: Electricity | G36: Transmission | H36: Revenue cap | I36: Financial | J36: June | K36: 5 | L36: 5 | M36: 5 | N36: transmission determination | O36: 33 Harold St | Q36: VIRGINIA | R36: Qld | S36: 4014 | T36: PO Box 1193 | V36: VIRGINIA | W36: QLD | X36: 4014 | Y36: Jennifer Harris | Z36: 07 3860 2667 | AA36: jharris@powerlink.com.au | AI36: CBD | AJ36: Urban | AK36: Short rural | AL36: Long rural | AN36: Powerlink
B37: Roma to Brisbane Pipeline | C37: APT Petroleum Pipelines Limited t/a Roma to Brisbane Pipeline | D37: 009 737 393 | E37: Qld | F37: Gas | G37: Transmission | H37: Revenue cap | I37: Financial | J37: June | K37: 5 | L37: 5 | M37: x | N37: n/a | AI37: CBD | AJ37: Urban | AK37: Short rural | AL37: Long rural | AN37: Roma to Brisbane Pipeline
B38: SA Power Networks | C38: SA Power Networks | D38: 13332330749 | E38: SA | F38: Electricity | G38: Distribution | H38: Revenue cap | I38: Financial | J38: June | K38: 5 | L38: 5 | M38: 5 | N38: 2015-20 Distribution Determination | O38: 1 Anzac Highway | Q38: KESWICK | R38: SA | S38: 5035 | T38: GPO Box 77 | V38: ADELAIDE | W38: SA | X38: 5000 | Y38: Damien O'Connor | Z38: 08 8404 5066 | AA38: damien.oconnor@sapowernetworks.com.au | AE38: YES | AF38: YES | AG38: NO | AI38: CBD | AJ38: Urban | AK38: Short rural | AL38: Long rural | AN38: SA Power Networks
B39: TasNetworks (D) | C39: TasNetworks (D) | D39: 24167357299 | E39: Tas | F39: Electricity | G39: Distribution | H39: Revenue cap | I39: Financial | J39: June | K39: 5 | L39: 5 | M39: 5 | N39: distribution determination | O39: 21 Kirksway Place | Q39: HOBART | R39: Tas | S39: 7000 | T39: GPO Box 191 | V39: HOBART | W39: Tas | X39: 7000 | Y39: Leigh Mayne | Z39: 03 6270 3691 | AA39: rrp2012@auroraenergy.com.au | AE39: YES | AF39: YES | AG39: YES | AI39: Critical Infrastructure | AJ39: High density commercial | AK39: Urban | AL39: High density rural | AM39: Low density rural | AN39: TasNetworks (D)
B40: TasNetworks (T) | C40: TasNetworks (T) | D40: 24167357299 | E40: Tas | F40: Electricity | G40: Transmission | H40: Revenue cap | I40: Financial | J40: June | K40: 5 | L40: 5 | M40: 5 | N40: transmission determination | O40: 1-7 Maria Street | Q40: LENAH VALLEY | R40: Tas | S40: 7008 | T40: PO Box 606 | V40: MOONAH | W40: Tas | X40: 7009 | Y40: Heath Dillon | Z40: 03 6274 3664 | AA40: heath.dillon@transend.com.au | AI40: CBD | AJ40: Urban | AK40: Short rural | AL40: Long rural | AN40: TasNetworks (T)
B41: TransGrid | C41: NSW Electricity Networks Operations Pty Ltd trading as TransGrid | D41: 609169959 | E41: NSW | F41: Electricity | G41: Transmission | H41: Revenue cap | I41: Financial | J41: June | K41: 5 | L41: 4 | M41: 5 | N41: transmission determination | O41: 180 Thomas Street | Q41: SYDNEY | R41: NSW | S41: 2000 | T41: PO Box A1000 | V41: SYDNEY SOUTH | W41: NSW | X41: 1235 | Y41: Garrie Chubb | Z41: 0408 210 221 | AA41: garrie.chubb@transgrid.com.au | AI41: CBD | AJ41: Urban | AK41: Short rural | AL41: Long rural | AN41: TransGrid
B42: United Energy | C42: United Energy | D42: 70064651029 | E42: Vic | F42: Electricity | G42: Distribution | H42: Revenue cap | I42: Calendar | J42: December | K42: 5 | L42: 5 | M42: 2 | N42: 2016-20 Distribution Determination | O42: Level 3 | P42: 6 Nexus Court | Q42: MULGRAVE | R42: Vic | S42: 3149 | T42: PO Box 449 | V42: MOUNT WAVERLEY | W42: VIC | X42: 3170 | Y42: Mathew Abraham | Z42: 03 8846 9758 | AA42: mathew.abraham@ue.com.au | AE42: YES | AF42: NO | AG42: NO | AI42: CBD | AJ42: Urban | AK42: Short rural | AL42: Long rural | AN42: United Energy
B43: Western Power (D) | C43: Western Power (D) | D43: 18540492861 | E43: WA | F43: Electricity | G43: Distribution | H43: Revenue cap | I43: Financial | J43: June | K43: 12 | L43: 4 | M43: x | N43: distribution determination | O43: 363 Wellington Street | Q43: PERTH | R43: WA | S43: 6000 | T43: GPO Box L921 | V43: PERTH | W43: WA | X43: 6842 | Y43: Judy Hunter | Z43: 08 9326 6239 | AA43: judy.hunter@westernpower.com.au | AE43: YES | AF43: YES | AG43: NO | AH43: NO | AI43: CBD | AJ43: Urban | AK43: Short rural | AL43: Long rural | AN43: Western Power (D)
B44: Western Power (T) | C44: Western Power (T) | D44: 18540492861 | E44: WA | F44: Electricity | G44: Transmission | H44: Revenue cap | I44: Financial | J44: June | K44: 12 | L44: 4 | M44: x | N44: transmission determination | O44: 363 Wellington Street | Q44: PERTH | R44: WA | S44: 6000 | T44: GPO Box L921 | V44: PERTH | W44: WA | X44: 6842 | Y44: Judy Hunter | Z44: 08 9326 6239 | AA44: judy.hunter@westernpower.com.au | AE44: YES | AF44: YES | AG44: NO | AI44: CBD | AJ44: Urban | AK44: Short rural | AL44: Long rural | AN44: Western Power (T)
W47: For EB & Reset RINs only | AC47: For AARs only
B48: The Reg Year Ending (dms_RYE) must be set to the last year of the regulatory period. For forecast data is is usually (FRCP_y5) for actual it is a single year (CRY). For historical actual data the RYE will need to be set manually in the business details sheet by setting the dms_Multiyear_flag to 1 and putting the correct value in 'dms_Specified_FinalYear. See cells C67:C68 | G48: =IF(dms_RPT="financial",VALUE(LEFT(CRCP_y1,4)-1)&"-"&TEXT(VALUE(RIGHT(CRCP_y1,2)-1),"00"),VALUE(LEFT(CRCP_y1,4)-1)) -> 2011 | N48: Drop down selector box for CA & Reset RINs. | O48: For CA & Reset RINs only | W48: for DNSP only | AC48: For DNSPs only | AI48: Reason for interruption | AJ48: dms_Reason_Interruption_Detailed | AK48: dms_Reason_Interruption
B49: dms_Model_List | C49: DELETE NR 'CRY' IF NOT AN ANNUAL RIN (EB, CA , ARR) | E49: dms_RYE_Formula_Result | N49: dms_0203_ProjectType | O49: dms_020303_01_UOM | P49: dms_020501_01_UOM | Q49: dms_020501_02_UOM | R49: dms_020501_03_UOM | S49: dms_020501_04_UOM | T49: dms_020603_01_UOM | U49: dms_040102_01_UOM | V49: dms_040102_04_UOM | W49: dms_030601_01_UOM | X49: dms_030601_02_UOM | Y49: dms_030701_01_UOM | Z49: dms_030702_01_UOM | AA49: dms_030703_01_UOM | AC49: dms_030605_UOM | AD49: dms_03060703_UOM | AI49: Animal | AJ49: Animal impact | AK49: Animal
B50: ARR | C50: ANNUAL REPORTING STATEMENT | E50: =LEFT(dms_SingleYear_FinalYear_Result,2)&RIGHT(dms_SingleYear_FinalYear_Result,2) -> 2016 | F50: =LEFT(dms_SingleYear_FinalYear_Result,2)&RIGHT(dms_SingleYear_FinalYear_Result,2) | H50: Formula errors are OK | N50: New line on new route - single circuit | O50: Circuit line length in km | P50: 0's | Q50: 0's | R50: 0's | S50: 0's | T50: 0's | U50: 0's | V50: days | W50: minutes/customer | X50: minutes/customer | Y50: Customer / km | Z50: % | AA50: km | AC50: number | AD50: number | AJ50: Animal nesting/burrowing, etc and other | AK50: Asset failure
B51: CA | C51: CATEGORY ANALYSIS | E51: =LEFT(dms_SingleYear_FinalYear_Result,2)&RIGHT(dms_SingleYear_FinalYear_Result,2) -> 2016 | F51: =LEFT(dms_SingleYear_FinalYear_Result,2)&RIGHT(dms_SingleYear_FinalYear_Result,2) | H51: Formula errors are OK | N51: New line on new route - dual circuit | O51: Circuit line length in km | P51: 0's | Q51: 0's | R51: 0's | S51: 0's | T51: 0's | U51: 0's | V51: 0's | W51: minutes/customer | X51: minutes/customer | Y51: MWh/customer | Z51: Number of spans | AC51: number | AD51: number | AJ51: Other | AK51: Other
B52: CPI | C52: CPI | N52: New line on new route - other | O52: Circuit line length in km | P52: MVA added | Q52: MVA added | R52: MVA added | S52: MVA added | T52: 0's | U52: 0's | V52: $0s | W52: interruptions/customer | X52: interruptions/customer | Y52: kVA / customer | Z52: Number of spans | AC52: number | AD52: number | AI52: Asset failure | AJ52: LV | AK52: Overloads
B53: EB | C53: ECONOMIC BENCHMARKING | E53: =LEFT(dms_SingleYear_FinalYear_Result,2)&RIGHT(dms_SingleYear_FinalYear_Result,2) -> 2016 | F53: =LEFT(dms_SingleYear_FinalYear_Result,2)&RIGHT(dms_SingleYear_FinalYear_Result,2) | H53: Formula errors are OK | N53: Line rebuild over existing route - single circuit | O53: Circuit line length in km | P53: 0's | Q53: 0's | R53: 0's | S53: 0's | T53: 0's | U53: $0s | V53: 0's | W53: interruptions/customer | X53: interruptions/customer | Z53: Number of spans | AC53: number | AD53: number | AJ53: Distribution substation | AK53: Planned
B54: PTRM | C54: POST TAX REVENUE MODEL | E54: =LEFT(dms_MultiYear_FinalYear_Result,2)&RIGHT(dms_MultiYear_FinalYear_Result,2) -> 2021 | F54: =LEFT(dms_MultiYear_FinalYear_Result,2)&RIGHT(dms_MultiYear_FinalYear_Result,2) | N54: Line rebuild over existing route - dual circuit | O54: Number | P54: total spend $0s | Q54: total spend $0s | R54: total spend $0s | S54: total spend $0s | T54: (per cent) | Z54: Number of spans | AC54: number | AD54: (per cent) | AJ54: HV | AK54: Network business
B55: Reset | C55: REGULATORY REPORTING STATEMENT | E55: =LEFT(dms_MultiYear_FinalYear_Result,2)&RIGHT(dms_MultiYear_FinalYear_Result,2) -> 2021 | F55: =LEFT(dms_MultiYear_FinalYear_Result,2)&RIGHT(dms_MultiYear_FinalYear_Result,2) | H55: Formula errors are OK | N55: Reconductor - Single circuit | O55: Number | P55: net circuit km added | Q55: net circuit km added | R55: net circuit km added | S55: net circuit km added | Z55: Years | AC55: number | AJ55: Zone substation | AK55: Third party
B56: RFM | C56: ROLL FORWARD MODEL | E56: =LEFT(dms_CRCP_FinalYear_Result,2)&RIGHT(dms_CRCP_FinalYear_Result,2) -> 2016 | F56: =LEFT(dms_CRCP_FinalYear_Result,2)&RIGHT(dms_CRCP_FinalYear_Result,2) | N56: Reconductor - Dual circuit | O56: Number | P56: total spend $0s | Q56: total spend $0s | R56: total spend $0s | S56: total spend $0s | Z56: Years | AC56: number | AJ56: Subtransmission | AK56: Unknown
B57: WACC | C57: WEIGHTED AVERAGE COST OF CAPITAL | E57: =LEFT(dms_MultiYear_FinalYear_Result,2)&RIGHT(dms_MultiYear_FinalYear_Result,2) -> 2021 | F57: =LEFT(dms_MultiYear_FinalYear_Result,2)&RIGHT(dms_MultiYear_FinalYear_Result,2) | N57: Other | P57: net circuit km added | Q57: net circuit km added | R57: net circuit km added | S57: net circuit km added | Z57: Trees | AC57: number | AI57: Other | AJ57: insert description of 'other' | AK57: Vegetation
P58: total spend $0s | Q58: total spend $0s | R58: total spend $0s | S58: total spend $0s | Z58: Trees | AC58: number | AI58: Overloads | AJ58: - | AK58: Weather
B59: dms_DataQuality_List | P59: 0's | R59: $0s | Z59: Defects | AC59: number | AI59: Planned | AJ59: - | AK59: 2 - STPIS Exclusion (3.3)(a)
B60: Actual | P60: 0's | Z60: Defects | AC60: number | AI60: Network business | AJ60: Network error | AK60: 3 - STPIS Exclusion (3.3)(a)
B61: Estimate | P61: 0's | Z61: Spans | AC61: number | AJ61: Switching and protection error | AK61: 4 - STPIS Exclusion (3.3)(a)
B62: Consolidated | P62: $0s | Z62: km | AC62: (per cent) | AI62: Third party | AJ62: Fire | AK62: 5 - STPIS Exclusion (3.3)(a)
B63: Recast | Z63: Spans | AC63: (per cent) | AJ63: Other | AK63: 6 - STPIS Exclusion (3.3)(a)
B64: Public | AJ64: Dig-in | AK64: 7 - STPIS Exclusion (3.3)(a)
AJ65: Unauthorised access
B66: For all files either AER or business needs to be able to specify the type of submission | C66: For PTRM & RFM templates we must provide a choice in case they change their form of control - otherwise it is drawn from the business specific lookup table above. | O66: For PTRM files - this field set the text for the named range "DMS_Xfactor" which in all cases is simply the text "x factors" - this saves putting in each old gas PTRM file | W66: for TNSP only | AJ66: Vehicle impact
B67: dms_SourceList | C67: dms_FormControl_Choices | O67: DMS_Xfactor | W67: dms_030601_01_UOM | Y67: dms_030701_01_UOM | Z67: dms_030702_01_UOM | AI67: Unknown | AJ67: Unknown
B68: After appeal | C68: Revenue cap | O68: x factors | W68: % | Y68: Number of spans | Z68: km | AI68: Vegetation | AJ68: Blow-in/Fall-in - NSP responsibility
B69: Draft decision | C69: Revenue yield | W69: number | Y69: Years | Z69: % | AJ69: Grow-in - NSP responsibility
B70: Final decision | C70: Weighted average price cap | W70: number | Y70: Trees | Z70: km | AJ70: Blow-in/Fall-in - Other responsible party
B71: PTRM update 1 | W71: % | Y71: Defects | Z71: number | AJ71: Grow-in - Other responsible party
B72: PTRM update 2 | W72: number | Y72: Number of spans | AI72: Weather
B73: PTRM update 3 | W73: number | Y73: km | AI73: 2 - STPIS Exclusion (3.3)(a)
B74: PTRM update 4 | W74: % | Y74: km | AI74: 3 - STPIS Exclusion (3.3)(a)
B75: PTRM update 5 | W75: number | Y75: Number of spans | AI75: 4 - STPIS Exclusion (3.3)(a)
B76: PTRM update 6 | W76: number | AI76: 5 - STPIS Exclusion (3.3)(a)
B77: PTRM update 7 | W77: % | AI77: 6 - STPIS Exclusion (3.3)(a)
B78: Regulatory proposal | W78: number | AI78: 7 - STPIS Exclusion (3.3)(a)
B79: Reporting | W79: %
B80: Revised regulatory proposal | W80: number
W81: %
W82: number
B86: These are indeces and lookup values for various dates. All step from the value placed in FRCP_y1 on the business and other details worksheet | L86: These date tables are currently used in the Recast templates to provide column headings and conditional formatting
B87: dms_FRCPlength_Num_List | C87: dms_FinalYear_List | D87: dms_CRCPlength_Num_List | E87: dms_CFinalYear_List | F87: dms_FRCP_years | H87: dms_CRCP_years | J87: dms_CRCP_index | L87: CRY from input cell on business sheet | M87: CRY - financial | N87: dms_FinYears | O87: CRY calendar | P87: dms_CalYears
B88: 1 | C88: dms_FRCP_y1 | D88: 1 | E88: CRCP_y1 | F88: =FRCP_y1 -> 2017-18 | G88: dms_FRCP_y1 | H88: =IF(dms_RPT="financial",VALUE(LEFT(dms_FRCP_y1,4)-1)&"-"&TEXT(VALUE(MID(dms_FRCP_y1,3,2)),"00"),VALUE(LEFT(dms_FRCP_y1,4)-1)) -> 2016 | I88: dms_CRCP_yZ | J88: 1 | L88: =CRY -> 2016 | M88: =VALUE(LEFT(CRY,4))&"-"&TEXT(MID(CRY,3,2)+1,"00") -> 2016-17 | N88: dms_CRYf_y1 | O88: =VALUE(LEFT(CRY,4)+1) -> 2017 | P88: dms_CRYc_y1
B89: 2 | C89: dms_FRCP_y2 | D89: 2 | E89: CRCP_y2 | F89: =IF(dms_RPT="financial",VALUE(LEFT(dms_FRCP_y1,4)+1)&"-"&TEXT(VALUE(RIGHT(dms_FRCP_y1,2)+1),"00"),VALUE(LEFT(dms_FRCP_y1,4)+1)) -> 2018 | G89: dms_FRCP_y2 | H89: =IF(dms_RPT="financial",VALUE(LEFT(dms_CRCP_yZ,4)-1)&"-"&TEXT(VALUE(MID(dms_CRCP_yZ,3,2)),"00"),VALUE(LEFT(dms_CRCP_yZ,4)-1)) -> 2015 | I89: dms_CRCP_yY | J89: 2 | M89: =VALUE(LEFT(dms_CRYf_y1,4)+1)&"-"&TEXT(MID(dms_CRYf_y1,3,2)+2,"00") -> 2017-18 | N89: dms_CRYf_y2 | O89: =VALUE(LEFT(dms_CRYc_y1,4)+1) -> 2018 | P89: dms_CRYc_y2
B90: 3 | C90: dms_FRCP_y3 | D90: 3 | E90: CRCP_y3 | F90: =IF(dms_RPT="financial",VALUE(LEFT(dms_FRCP_y2,4)+1)&"-"&TEXT(VALUE(RIGHT(dms_FRCP_y2,2)+1),"00"),VALUE(LEFT(dms_FRCP_y2,4)+1)) -> 2019 | G90: dms_FRCP_y3 | H90: =IF(dms_RPT="financial",VALUE(LEFT(dms_CRCP_yY,4)-1)&"-"&TEXT(VALUE(MID(dms_CRCP_yY,3,2)),"00"),VALUE(LEFT(dms_CRCP_yY,4)-1)) -> 2014 | I90: dms_CRCP_yX | J90: 3 | M90: =VALUE(LEFT(dms_CRYf_y2,4)+1)&"-"&TEXT(MID(dms_CRYf_y2,3,2)+2,"00") -> 2018-19 | N90: dms_CRYf_y3 | O90: =VALUE(LEFT(dms_CRYc_y2,4)+1) -> 2019 | P90: dms_CRYc_y3
B91: 4 | C91: dms_FRCP_y4 | D91: 4 | E91: CRCP_y4 | F91: =IF(dms_RPT="financial",VALUE(LEFT(dms_FRCP_y3,4)+1)&"-"&TEXT(VALUE(RIGHT(dms_FRCP_y3,2)+1),"00"),VALUE(LEFT(dms_FRCP_y3,4)+1)) -> 2020 | G91: dms_FRCP_y4 | H91: =IF(dms_RPT="financial",VALUE(LEFT(dms_CRCP_yX,4)-1)&"-"&TEXT(VALUE(MID(dms_CRCP_yX,3,2)),"00"),VALUE(LEFT(dms_CRCP_yX,4)-1)) -> 2013 | I91: dms_CRCP_yW | J91: 4 | M91: =VALUE(LEFT(dms_CRYf_y3,4)+1)&"-"&TEXT(MID(dms_CRYf_y3,3,2)+2,"00") -> 2019-20 | N91: dms_CRYf_y4 | O91: =VALUE(LEFT(dms_CRYc_y3,4)+1) -> 2020 | P91: dms_CRYc_y4
B92: 5 | C92: dms_FRCP_y5 | D92: 5 | E92: CRCP_y5 | F92: =IF(dms_RPT="financial",VALUE(LEFT(dms_FRCP_y4,4)+1)&"-"&TEXT(VALUE(RIGHT(dms_FRCP_y4,2)+1),"00"),VALUE(LEFT(dms_FRCP_y4,4)+1)) -> 2021 | G92: dms_FRCP_y5 | H92: =IF(dms_RPT="financial",VALUE(LEFT(dms_CRCP_yW,4)-1)&"-"&TEXT(VALUE(MID(dms_CRCP_yW,3,2)),"00"),VALUE(LEFT(dms_CRCP_yW,4)-1)) -> 2012 | I92: dms_CRCP_yV | J92: 5 | M92: =VALUE(LEFT(dms_CRYf_y4,4)+1)&"-"&TEXT(MID(dms_CRYf_y4,3,2)+2,"00") -> 2020-21 | N92: dms_CRYf_y5 | O92: =VALUE(LEFT(dms_CRYc_y4,4)+1) -> 2021 | P92: dms_CRYc_y5
B93: 6 | C93: dms_FRCP_y6 | D93: 6 | E93: CRCP_y6 | F93: =IF(dms_RPT="financial",VALUE(LEFT(dms_FRCP_y5,4)+1)&"-"&TEXT(VALUE(RIGHT(dms_FRCP_y5,2)+1),"00"),VALUE(LEFT(dms_FRCP_y5,4)+1)) -> 2022 | G93: dms_FRCP_y6 | H93: =IF(dms_RPT="financial",VALUE(LEFT(dms_CRCP_yV,4)-1)&"-"&TEXT(VALUE(MID(dms_CRCP_yV,3,2)),"00"),VALUE(LEFT(dms_CRCP_yV,4)-1)) -> 2011 | I93: dms_CRCP_yU | J93: 6 | M93: =VALUE(LEFT(dms_CRYf_y5,4)+1)&"-"&TEXT(MID(dms_CRYf_y5,3,2)+2,"00") -> 2021-22 | N93: dms_CRYf_y6 | O93: =VALUE(LEFT(dms_CRYc_y5,4)+1) -> 2022 | P93: dms_CRYc_y6
B94: 7 | C94: dms_FRCP_y7 | D94: 7 | E94: CRCP_y7 | F94: =IF(dms_RPT="financial",VALUE(LEFT(dms_FRCP_y6,4)+1)&"-"&TEXT(VALUE(RIGHT(dms_FRCP_y6,2)+1),"00"),VALUE(LEFT(dms_FRCP_y6,4)+1)) -> 2023 | G94: dms_FRCP_y7 | H94: =IF(dms_RPT="financial",VALUE(LEFT(dms_CRCP_yU,4)-1)&"-"&TEXT(VALUE(MID(dms_CRCP_yU,3,2)),"00"),VALUE(LEFT(dms_CRCP_yU,4)-1)) -> 2010 | I94: dms_CRCP_yT | J94: 7 | M94: =VALUE(LEFT(dms_CRYf_y6,4)+1)&"-"&TEXT(MID(dms_CRYf_y6,3,2)+2,"00") -> 2022-23 | N94: dms_CRYf_y7 | O94: =VALUE(LEFT(dms_CRYc_y6,4)+1) -> 2023 | P94: dms_CRYc_y7
B95: 8 | C95: dms_FRCP_y8 | D95: 8 | E95: CRCP_y8 | F95: =IF(dms_RPT="financial",VALUE(LEFT(dms_FRCP_y7,4)+1)&"-"&TEXT(VALUE(RIGHT(dms_FRCP_y7,2)+1),"00"),VALUE(LEFT(dms_FRCP_y7,4)+1)) -> 2024 | G95: dms_FRCP_y8 | H95: =IF(dms_RPT="financial",VALUE(LEFT(dms_CRCP_yT,4)-1)&"-"&TEXT(VALUE(MID(dms_CRCP_yT,3,2)),"00"),VALUE(LEFT(dms_CRCP_yT,4)-1)) -> 2009 | I95: dms_CRCP_yS | J95: 8 | M95: =VALUE(LEFT(dms_CRYf_y7,4)+1)&"-"&TEXT(MID(dms_CRYf_y7,3,2)+2,"00") -> 2023-24 | N95: dms_CRYf_y8 | O95: =VALUE(LEFT(dms_CRYc_y7,4)+1) -> 2024 | P95: dms_CRYc_y8
B96: 9 | C96: dms_FRCP_y9 | D96: 9 | E96: CRCP_y9 | F96: =IF(dms_RPT="financial",VALUE(LEFT(dms_FRCP_y8,4)+1)&"-"&TEXT(VALUE(RIGHT(dms_FRCP_y8,2)+1),"00"),VALUE(LEFT(dms_FRCP_y8,4)+1)) -> 2025 | G96: dms_FRCP_y9 | H96: =IF(dms_RPT="financial",VALUE(LEFT(dms_CRCP_yS,4)-1)&"-"&TEXT(VALUE(MID(dms_CRCP_yS,3,2)),"00"),VALUE(LEFT(dms_CRCP_yS,4)-1)) -> 2008 | I96: dms_CRCP_yR | J96: 9 | M96: =VALUE(LEFT(dms_CRYf_y8,4)+1)&"-"&TEXT(MID(dms_CRYf_y8,3,2)+2,"00") -> 2024-25 | N96: dms_CRYf_y9 | O96: =VALUE(LEFT(dms_CRYc_y8,4)+1) -> 2025 | P96: dms_CRYc_y9
B97: 10 | C97: dms_FRCP_y10 | D97: 10 | E97: CRCP_y10 | F97: =IF(dms_RPT="financial",VALUE(LEFT(dms_FRCP_y9,4)+1)&"-"&TEXT(VALUE(RIGHT(dms_FRCP_y9,2)+1),"00"),VALUE(LEFT(dms_FRCP_y9,4)+1)) -> 2026 | G97: dms_FRCP_y10 | H97: =IF(dms_RPT="financial",VALUE(LEFT(dms_CRCP_yR,4)-1)&"-"&TEXT(VALUE(MID(dms_CRCP_yR,3,2)),"00"),VALUE(LEFT(dms_CRCP_yR,4)-1)) -> 2007 | I97: dms_CRCP_yQ | J97: 10 | M97: =VALUE(LEFT(dms_CRYf_y9,4)+1)&"-"&TEXT(MID(dms_CRYf_y9,3,2)+2,"00") -> 2025-26 | N97: dms_CRYf_y10 | O97: =VALUE(LEFT(dms_CRYc_y9,4)+1) -> 2026 | P97: dms_CRYc_y10
B98: 11 | C98: dms_FRCP_y11 | D98: 11 | E98: CRCP_y11 | F98: =IF(dms_RPT="financial",VALUE(LEFT(dms_FRCP_y10,4)+1)&"-"&TEXT(VALUE(RIGHT(dms_FRCP_y10,2)+1),"00"),VALUE(LEFT(dms_FRCP_y10,4)+1)) -> 2027 | G98: dms_FRCP_y11 | H98: =IF(dms_RPT="financial",VALUE(LEFT(dms_CRCP_yQ,4)-1)&"-"&TEXT(VALUE(MID(dms_CRCP_yQ,3,2)),"00"),VALUE(LEFT(dms_CRCP_yQ,4)-1)) -> 2006 | I98: dms_CRCP_yP | J98: 11 | M98: =VALUE(LEFT(dms_CRYf_y10,4)+1)&"-"&TEXT(MID(dms_CRYf_y10,3,2)+2,"00") -> 2026-27 | N98: dms_CRYf_y11 | O98: =VALUE(LEFT(dms_CRYc_y10,4)+1) -> 2027 | P98: dms_CRYc_y11
B99: 12 | C99: dms_FRCP_y12 | D99: 12 | E99: CRCP_y12 | F99: =IF(dms_RPT="financial",VALUE(LEFT(dms_FRCP_y11,4)+1)&"-"&TEXT(VALUE(RIGHT(dms_FRCP_y11,2)+1),"00"),VALUE(LEFT(dms_FRCP_y11,4)+1)) -> 2028 | G99: dms_FRCP_y12 | H99: =IF(dms_RPT="financial",VALUE(LEFT(dms_CRCP_yP,4)-1)&"-"&TEXT(VALUE(MID(dms_CRCP_yP,3,2)),"00"),VALUE(LEFT(dms_CRCP_yP,4)-1)) -> 2005 | I99: dms_CRCP_yO | J99: 12 | M99: =VALUE(LEFT(dms_CRYf_y11,4)+1)&"-"&TEXT(MID(dms_CRYf_y11,3,2)+2,"00") -> 2027-28 | N99: dms_CRYf_y12 | O99: =VALUE(LEFT(dms_CRYc_y11,4)+1) -> 2028 | P99: dms_CRYc_y12
B100: 13 | C100: dms_FRCP_y13 | D100: 13 | E100: CRCP_y13 | F100: =IF(dms_RPT="financial",VALUE(LEFT(dms_FRCP_y12,4)+1)&"-"&TEXT(VALUE(RIGHT(dms_FRCP_y12,2)+1),"00"),VALUE(LEFT(dms_FRCP_y12,4)+1)) -> 2029 | G100: dms_FRCP_y13 | H100: =IF(dms_RPT="financial",VALUE(LEFT(dms_CRCP_yO,4)-1)&"-"&TEXT(VALUE(MID(dms_CRCP_yO,3,2)),"00"),VALUE(LEFT(dms_CRCP_yO,4)-1)) -> 2004 | I100: dms_CRCP_yN | J100: 13 | M100: =VALUE(LEFT(dms_CRYf_y12,4)+1)&"-"&TEXT(MID(dms_CRYf_y12,3,2)+2,"00") -> 2028-29 | N100: dms_CRYf_y13 | O100: =VALUE(LEFT(dms_CRYc_y12,4)+1) -> 2029 | P100: dms_CRYc_y13
B101: 14 | C101: dms_FRCP_y14 | D101: 14 | E101: CRCP_y14 | F101: =IF(dms_RPT="financial",VALUE(LEFT(dms_FRCP_y13,4)+1)&"-"&TEXT(VALUE(RIGHT(dms_FRCP_y13,2)+1),"00"),VALUE(LEFT(dms_FRCP_y13,4)+1)) -> 2030 | G101: dms_FRCP_y14 | H101: =IF(dms_RPT="financial",VALUE(LEFT(dms_CRCP_yN,4)-1)&"-"&TEXT(VALUE(MID(dms_CRCP_yN,3,2)),"00"),VALUE(LEFT(dms_CRCP_yN,4)-1)) -> 2003 | I101: dms_CRCP_yM | J101: 14 | M101: =VALUE(LEFT(dms_CRYf_y13,4)+1)&"-"&TEXT(MID(dms_CRYf_y13,3,2)+2,"00") -> 2029-30 | N101: dms_CRYf_y14 | O101: =VALUE(LEFT(dms_CRYc_y13,4)+1) -> 2030 | P101: dms_CRYc_y14
B102: 15 | C102: dms_FRCP_y15 | D102: 15 | E102: CRCP_y15 | F102: =IF(dms_RPT="financial",VALUE(LEFT(dms_FRCP_y14,4)+1)&"-"&TEXT(VALUE(RIGHT(dms_FRCP_y14,2)+1),"00"),VALUE(LEFT(dms_FRCP_y14,4)+1)) -> 2031 | G102: dms_FRCP_y15 | H102: =IF(dms_RPT="financial",VALUE(LEFT(dms_CRCP_yM,4)-1)&"-"&TEXT(VALUE(MID(dms_CRCP_yM,3,2)),"00"),VALUE(LEFT(dms_CRCP_yM,4)-1)) -> 2002 | I102: dms_CRCP_yL | J102: 15 | M102: =VALUE(LEFT(dms_CRYf_y14,4)+1)&"-"&TEXT(MID(dms_CRYf_y14,3,2)+2,"00") -> 2030-31 | N102: dms_CRYf_y15 | O102: =VALUE(LEFT(dms_CRYc_y14,4)+1) -> 2031 | P102: dms_CRYc_y15
M103: =VALUE(LEFT(dms_CRYf_y15,4)+1)&"-"&TEXT(MID(dms_CRYf_y15,3,2)+2,"00") -> 2031-32 | N103: dms_CRYf_y16 | O103: =VALUE(LEFT(dms_CRYc_y15,4)+1) -> 2032 | P103: dms_CRYc_y16
B104: These are drop down lists for businesses to select the correct FRCP_y1 on the business and other details worksheet. This also populates the column headings in the worksheets | M104: =VALUE(LEFT(dms_CRYf_y16,4)+1)&"-"&TEXT(MID(dms_CRYf_y16,3,2)+2,"00") -> 2032-33 | N104: dms_CRYf_y17 | O104: =VALUE(LEFT(dms_CRYc_y16,4)+1) -> 2033 | P104: dms_CRYc_y17
B105: dms_RCP_fyear_list | C105: dms_CRY_ListF | D105: dms_CRY_ListC | E105: dms_RCP_cyear_list | F105: dms_FRCP_fyear_list | G105: dms_FRCP_ListF | H105: dms_FRCP_ListC | I105: dms_FRCP_cyear_list | M105: =VALUE(LEFT(dms_CRYf_y17,4)+1)&"-"&TEXT(MID(dms_CRYf_y17,3,2)+2,"00") -> 2033-34 | N105: dms_CRYf_y18 | O105: =VALUE(LEFT(dms_CRYc_y17,4)+1) -> 2034 | P105: dms_CRYc_y18
B106: dms_fy1 | C106: 2006-07 | D106: 2007 | E106: dms_cy1 | F106: dms_frcp_fy1 | G106: 2016-17 | H106: 2017 | I106: dms_crcp_cy1 | M106: =VALUE(LEFT(dms_CRYf_y18,4)+1)&"-"&TEXT(MID(dms_CRYf_y18,3,2)+2,"00") -> 2034-35 | N106: dms_CRYf_y19 | O106: =VALUE(LEFT(dms_CRYc_y18,4)+1) -> 2035 | P106: dms_CRYc_y19
B107: dms_fy2 | C107: 2007-08 | D107: 2008 | E107: dms_cy2 | F107: dms_frcp_fy2 | G107: 2017-18 | H107: 2018 | I107: dms_crcp_cy2 | M107: =VALUE(LEFT(dms_CRYf_y19,4)+1)&"-"&TEXT(MID(dms_CRYf_y19,3,2)+2,"00") -> 2035-36 | N107: dms_CRYf_y20 | O107: =VALUE(LEFT(dms_CRYc_y19,4)+1) -> 2036 | P107: dms_CRYc_y20
B108: dms_fy3 | C108: 2008-09 | D108: 2009 | E108: dms_cy3 | F108: dms_frcp_fy3 | G108: 2018-19 | H108: 2019 | I108: dms_crcp_cy3
B109: dms_fy4 | C109: 2009-10 | D109: 2010 | E109: dms_cy4 | F109: dms_frcp_fy4 | G109: 2019-20 | H109: 2020 | I109: dms_crcp_cy4
B110: dms_fy5 | C110: 2010-11 | D110: 2011 | E110: dms_cy5 | F110: dms_frcp_fy5 | G110: 2020-21 | H110: 2021 | I110: dms_crcp_cy5
B111: dms_fy6 | C111: 2011-12 | D111: 2012 | E111: dms_cy6 | F111: dms_frcp_fy6 | G111: 2021-22 | H111: 2022 | I111: dms_crcp_cy6
B112: dms_fy7 | C112: 2012-13 | D112: 2013 | E112: dms_cy7 | F112: dms_frcp_fy7 | G112: 2022-23 | H112: 2023 | I112: dms_crcp_cy7
B113: dms_fy8 | C113: 2013-14 | D113: 2014 | E113: dms_cy8 | F113: dms_frcp_fy8 | G113: 2023-24 | H113: 2024 | I113: dms_crcp_cy8
B114: dms_fy9 | C114: 2014-15 | D114: 2015 | E114: dms_cy9 | F114: dms_frcp_fy9 | G114: 2024-25 | H114: 2025 | I114: dms_crcp_cy9
B115: dms_fy10 | C115: 2015-16 | D115: 2016 | E115: dms_cy10 | F115: dms_frcp_fy10 | G115: 2025-26 | H115: 2026 | I115: dms_crcp_cy10
B116: dms_fy11 | C116: 2016-17 | D116: 2017 | E116: dms_cy11 | F116: dms_frcp_fy11 | G116: 2026-27 | H116: 2027 | I116: dms_crcp_cy11
B117: dms_fy12 | C117: 2017-18 | D117: 2018 | E117: dms_cy12 | F117: dms_frcp_fy12 | G117: 2027-28 | H117: 2028 | I117: dms_crcp_cy12
B118: dms_fy13 | C118: 2018-19 | D118: 2019 | E118: dms_cy13 | F118: dms_frcp_fy13 | G118: 2028-29 | H118: 2029 | I118: dms_crcp_cy13
B119: dms_fy14 | C119: 2019-20 | D119: 2020 | E119: dms_cy14 | F119: dms_frcp_fy14 | G119: 2029-30 | H119: 2030 | I119: dms_crcp_cy14
B120: dms_fy15 | C120: 2019-20 | D120: 2020 | E120: dms_cy15 | F120: dms_frcp_fy15 | G120: 2030-31 | H120: 2031 | I120: dms_crcp_cy15
B121: dms_fy16 | C121: 2020-21 | D121: 2021 | E121: dms_cy16
B122: dms_fy17 | C122: 2021-22 | D122: 2022 | E122: dms_cy17
B123: dms_fy18 | C123: 2022-23 | D123: 2023 | E123: dms_cy18
B124: dms_fy19 | C124: 2023-24 | D124: 2024 | E124: dms_cy19
B125: dms_fy20 | C125: 2024-25 | D125: 2025 | E125: dms_cy20

Sheet Instructions
B2: =CONCATENATE(dms_Segment," Network Service Provider") -> Distribution Network Service Provider
B3: =IF(dms_Model="Reset","Regulatory Proposal RIN Template","Annual Reporting RIN") -> Annual Reporting RIN
C4: =CONCATENATE("This template is to be used by ",dms_TradingName," to fulfil its reporting obligations to the AER.") -> This template is to be used by CitiPower to fulfil its reporting obligations to the AER.
C5: INSTRUCTIONS
C6: Complete the Business & other details worksheet before entering data or values in any other worksheets. The Business & other details worksheet is linked to other worksheets within the workbook and automatically generates certain column headings and conditional formatting.
C8: Identifying CONFIDENTIAL INFORMATION: Please use the macro at the top of each worksheet to identify confidential information.
C9: -Do this by selecting the cell or cells that contain confidential information and then run the Mark selected cells as CONFIDENTIAL macro. This will format the cells a specific colour that is identified by the AER's database which in turn marks that information as confidential. -To reverse this, select the cell or cells and run the Return cells to NON-CONFIDENTIAL macro.
C11: UNITS OF MEASURE All amounts are to be unrounded and reported on a one for one basis: that is 1000 is to be entered as '1000'. Applicable units of measure may be identified in the table column headings or row descriptors.
C13: COLOUR CODING OF INPUT / NON-INPUT CELLS:
D14: Yellow = Input cell (mandatory)
D15: Darker yellow = input cell (mandatory)
D16: Orange = input cell (if data available)
D17: Grey = Not applicable/No inputs required
D18: PLEASE DO NOT ENTER TEXT into cells that are to contain numeric data.
C21: WORKSHEET NAVIGATION Many tables in the worksheets have been "grouped" to allow for easy navigation. To ungroup or group data use the outline symbols in the left margin (for Row groupings) or above the columns (for column groupings).
C23: RETURNING COMPLETED RESPONSES Please return two (2) files to the AER: 1. A confidential version which must contain a complete set of all responses with confidential information marked using the Mark selection CONFIDENTIAL macro and which has been completed using the locked template file provided by the AER. 2. A public version with confidential information either removed completely or aggregated in some form together with writtten consent to disclose the public version of the response. Use the drop down box on the Business and other details worksheet to identify the file as either confidential ('consolidated') or public.
C25: SUBMITTING AMENDED DATA TO THE AER If an NSP wishes to correct data previously submitted to the AER it should resubmit that data using the original completed submission as the starting point. Please make any necessary changes to the data. Data that is not being amended should be left unchanged. NSPs must identify the reason for the amendments in the Amendment Reason box on the Business and other details worksheet. NSPs may provide further details regarding any amendments in the Amendments worksheet. .
C26: NSP may use Amended Data macro to highlight cells that contain amended data. NB: if data is also CONFIDENTIAL, re-apply the Confidentiality macro after applying the Amended macro
C27: Please resubmit two (2) files - a confidential version and a public version of the amended submission to the AER

Sheet Contents
B3: =CONCATENATE(dms_Segment," Network Service Provider") -> Distribution Network Service Provider
B4: Annual Reporting RIN Template
B5: Table of Contents
C8: Instructions
C9: Business & other details
B12: CATEGORY ANALYSIS | C12: STPIS | D12: STATUTORY ACCOUNTS
B14: 2.11 Labour | C14: 6.2 STPIS Reliability | D14: 8.1 Income
C15: 6.6 STPIS Customer Service | D15: 8.2 Capex
C16: 6.7 STPIS Daily Performance
C17: 6.8 STPIS Exclusions | D17: 8.4 Opex
C18: 6.9 STPIS GSL
B22: NETWORK PERFORMANCE | C22: OTHER INFORMATION | D22: PRICING PROPOSAL
D23: Victorian Businesses Only
B24: 3.6 Quality of services | C24: 7.8 Avoided Cost Payments
B25: 3.6.8 Network-feeders | C25: 7.10 Juris Scheme | D25: 9.5 TUoS
B26: 3.6.9 Network-reliability | C26: 7.11 DMIS-DMIA
C27: 7.12 Safety and Bushfire
C28: 7.13 TARC
B29: PUBLIC LIGHTING
B31: 4.1 Public lighting tariffs

Sheet Business & other details
B1: =IF(dms_DataQuality="backcast",INDEX(dms_Worksheet_List,MATCH(dms_Model,dms_Model_List))&" BACKCAST",INDEX(dms_Worksheet_List,MATCH(dms_Model,dms_Model_List))) -> ANNUAL REPORTING STATEMENT
B2: =INDEX(dms_TradingNameFull_List,MATCH(dms_TradingName,dms_TradingName_List)) -> CitiPower
B3: =IF(SUM(dms_SingleYear_Model)>0,CRY,CONCATENATE(FRCP_y1," to ",dms_MultiYear_FinalYear_Result)) -> 2016
B4: BUSINESS & OTHER DETAILS
B7: Instructions
B8: Complete the following business details regulatory template before entering data or values in any other regulatory template. This regulatory template is linked to other cells within the spreadsheet and automatically generates column headings and conditional formatting to distinguish business specific input and non-input cells.
B10: SUBMISSION PARTICULARS INPUT SHEETS
B12: ENTITY DETAILS
B14: Short name | C14: CitiPower | F14: Select business name from drop down list first
B15: ACN / ABN | C15: =INDEX(dms_ABN_List,MATCH(dms_TradingName,dms_TradingName_List)) -> 76064651056
B18: Business address | C18: Address 1 | E18: =INDEX(dms_Addr1_List,MATCH(dms_TradingName,dms_TradingName_List)) -> 40 Market Street
D19: Address 2 | E19: =IF(ISBLANK(INDEX(dms_Addr2_List,MATCH(dms_TradingName,dms_TradingName_List))),"",INDEX(dms_Addr2_List,MATCH(dms_TradingName,dms_TradingName_List))) -> 
C20: Suburb | E20: =INDEX(dms_Suburb_List,MATCH(dms_TradingName,dms_TradingName_List)) -> MELBOURNE
D21: State | E21: =INDEX(dms_State_List,MATCH(dms_TradingName,dms_TradingName_List)) -> Vic | F21: p/code | G21: =INDEX(dms_PostCode_List,MATCH(dms_TradingName,dms_TradingName_List)) -> 3000
B23: Postal address | C23: Address 1 | E23: =INDEX(dms_PAddr1_List,MATCH(dms_TradingName,dms_TradingName_List)) -> Locked Bag 14090
D24: Address 2 | E24: =IF(ISBLANK(INDEX(dms_PAddr2_List,MATCH(dms_TradingName,dms_TradingName_List))),"",INDEX(dms_PAddr2_List,MATCH(dms_TradingName,dms_TradingName_List))) -> 
C25: Suburb | E25: =INDEX(dms_PSuburb_List,MATCH(dms_TradingName,dms_TradingName_List)) -> MELBOURNE
D26: State | E26: =INDEX(dms_PState_List,MATCH(dms_TradingName,dms_TradingName_List)) -> VIC | F26: p/code | G26: =INDEX(dms_PPostCode_List,MATCH(dms_TradingName,dms_TradingName_List)) -> 8001
B29: Contact name/s | C29: Mark de Villiers
B30: Contact phone/s | C30: (03) 9683 4907
B31: Contact email address/s | C31: mdevilliers@powercor.com.au
B33: REGULATORY CONTROL PERIODS
B35: Forthcoming regulatory control period | C35: 2017-18 | D35: =dms_FRCP_y2 -> 2018 | E35: =dms_FRCP_y3 -> 2019 | F35: =dms_FRCP_y4 -> 2020 | G35: =dms_FRCP_y5 -> 2021 | H35: =dms_FRCP_y6 -> 2022 | I35: =dms_FRCP_y7 -> 2023 | J35: =dms_FRCP_y8 -> 2024 | K35: =dms_FRCP_y9 -> 2025 | L35: =dms_FRCP_y10 -> 2026
B38: Current regulatory control period | C38: =dms_CRCP_FirstYear_Result -> 2012 | D38: =IF(dms_RPT="financial",VALUE(LEFT(CRCP_y1,4)+1)&"-"&TEXT(MID(CRCP_y1,3,2)+2,"00"),VALUE(LEFT(CRCP_y1,4)+1)) -> 2013 | E38: =IF(dms_RPT="financial",VALUE(LEFT(CRCP_y2,4)+1)&"-"&TEXT(VALUE(MID(CRCP_y2,3,2)+2),"00"),VALUE(LEFT(CRCP_y2,4)+1)) -> 2014 | F38: =IF(dms_RPT="financial",VALUE(LEFT(CRCP_y3,4)+1)&"-"&TEXT(VALUE(MID(CRCP_y3,3,2)+2),"00"),VALUE(LEFT(CRCP_y3,4)+1)) -> 2015 | G38: =IF(dms_RPT="financial",VALUE(LEFT(CRCP_y4,4)+1)&"-"&TEXT(VALUE(MID(CRCP_y4,3,2)+2),"00"),VALUE(LEFT(CRCP_y4,4)+1)) -> 2016 | H38: =IF(dms_RPT="financial",VALUE(LEFT(CRCP_y5,4)+1)&"-"&TEXT(VALUE(MID(CRCP_y5,3,2)+2),"00"),VALUE(LEFT(CRCP_y5,4)+1)) -> 2017 | I38: =IF(dms_RPT="financial",VALUE(LEFT(CRCP_y6,4)+1)&"-"&TEXT(VALUE(MID(CRCP_y6,3,2)+2),"00"),VALUE(LEFT(CRCP_y6,4)+1)) -> 2018 | J38: =IF(dms_RPT="financial",VALUE(LEFT(CRCP_y7,4)+1)&"-"&TEXT(VALUE(MID(CRCP_y7,3,2)+2),"00"),VALUE(LEFT(CRCP_y7,4)+1)) -> 2019 | K38: =IF(dms_RPT="financial",VALUE(LEFT(CRCP_y8,4)+1)&"-"&TEXT(VALUE(MID(CRCP_y8,3,2)+2),"00"),VALUE(LEFT(CRCP_y8,4)+1)) -> 2020 | L38: =IF(dms_RPT="financial",VALUE(LEFT(CRCP_y9,4)+1)&"-"&TEXT(VALUE(MID(CRCP_y9,3,2)+2),"00"),VALUE(LEFT(CRCP_y9,4)+1)) -> 2021
B41: Previous regulatory control period | C41: =IF(dms_RPT="financial",VALUE(LEFT(PRCP_y2,4)-1)&"-"&TEXT(VALUE(MID(PRCP_y2,3,2)),"00"),VALUE(LEFT(PRCP_y2,4)-1)) -> 2007 | D41: =IF(dms_RPT="financial",VALUE(LEFT(PRCP_y3,4)-1)&"-"&TEXT(VALUE(MID(PRCP_y3,3,2)),"00"),VALUE(LEFT(PRCP_y3,4)-1)) -> 2008 | E41: =IF(dms_RPT="financial",VALUE(LEFT(PRCP_y4,4)-1)&"-"&TEXT(VALUE(MID(PRCP_y4,3,2)),"00"),VALUE(LEFT(PRCP_y4,4)-1)) -> 2009 | F41: =IF(dms_RPT="financial",VALUE(LEFT(PRCP_y5,4)-1)&"-"&TEXT(VALUE(RIGHT(PRCP_y5,2)-1),"00"),VALUE(LEFT(PRCP_y5,4)-1)) -> 2010 | G41: =IF(dms_RPT="financial",VALUE(LEFT(CRCP_y1,4)-1)&"-"&TEXT(VALUE(RIGHT(CRCP_y1,2)-1),"00"),VALUE(LEFT(CRCP_y1,4)-1)) -> 2011
B44: Commencing regulatory year | C44: 2016 | D44: CRY
B46: Last completed regulatory year | C46: 2021-22 | D46: dms_FinalYear
B52: Source | C52: Reporting | E52: Please select the correct submission type from the dropdown list.
B53: Data quality (actual, estimate, public, consolidated) | C53: Public
B54: Amended RIN submission - amendment reason | C54: 8.2 Capex: Table 8.2.1 – Augmentation Capex (cell J22) and Other Capex (cell J26)
B55: Submission Date | C55: 2018-05-03 | D55: dms_SubmissionDate | E55: Please enter date this file submitted to AER (dd/mm/yyyy)
B56: EBSS - First application of scheme in forthcoming period? | C56: No
B57: Sector | C57: =INDEX(dms_Sector_List,MATCH(dms_TradingName,dms_TradingName_List)) -> Electricity | D57: dms_Sector | E57: =INDEX(dms_Sector_List,MATCH(dms_TradingName,dms_TradingName_List))
B58: Segment | C58: =INDEX(dms_Segment_List,MATCH(dms_TradingName,dms_TradingName_List)) -> Distribution | D58: dms_Segment | E58: =INDEX(dms_Segment_List,MATCH(dms_TradingName,dms_TradingName_List))
B59: Regulatory Year Ending | C59: =IF(dms_MultiYear_Flag=1,LEFT(dms_Specified_FinalYear,2)&RIGHT(dms_Specified_FinalYear,2),INDEX(dms_RYE_Formula_Result,MATCH(dms_Model,dms_Model_List))) -> 2016 | D59: dms_RYE | E59: =IF(dms_MultiYear_Flag=1,LEFT(dms_Specified_FinalYear,2)&RIGHT(dms_Specified_FinalYear,2),INDEX(dms_RYE_Formula_Result,MATCH(dms_Model,dms_Model_List)))
B60: Reporting Period Type | C60: =INDEX(dms_RPT_List,MATCH(dms_TradingName,dms_TradingName_List)) -> Calendar | D60: dms_RPT | E60: =INDEX(dms_RPT_List,MATCH(dms_TradingName,dms_TradingName_List))
B61: Model or RIN Type | C61: ARR | D61: dms_Model | E61: Drop down selection
B62: Security Classification | C62: Public | D62: dms_Classification | E62: Always Public
B63: Template - version no. | C63: 5 | D63: dms_TemplateNumber
B64: Dollar $ real month | C64: =INDEX(dms_RPTMonth_List,MATCH(dms_TradingName,dms_TradingName_List)) -> December | D64: dms_RPTMonth | E64: =INDEX(dms_RPTMonth_List,MATCH(dms_TradingName,dms_TradingName_List))
B65: Dollar $ real (the last month before the FRCP_y1) | C65: =CONCATENATE(dms_RPTMonth)&" "&VALUE((LEFT(dms_CRCP_FinalYear_Result,2)&RIGHT(dms_CRCP_FinalYear_Result,2))) -> December 2016 | D65: dms_DollarReal | E65: =IF(SUM(dms_SingleYear_Model)>0,CONCATENATE(dms_RPTMonth)&" "&VALUE((LEFT(CRY,2))&RIGHT(CRY,2)),CONCATENATE(dms_RPTMonth)&" "&VALUE((LEFT(dms_CRCP_FinalYear_Result,2)&RIGHT(dms_CRCP_FinalYear_Result,2))))
B66: Form of control | C66: =INDEX(dms_FormControl_List,MATCH(dms_TradingName,dms_TradingName_List)) -> Revenue cap | D66: dms_FormControl | E66: =INDEX(dms_FormControl_List,MATCH(dms_TradingName,dms_TradingName_List))
B67: RIN response - version no. | C67: 1 | D67: dms_RINversion
B68: Jurisdiction | C68: =INDEX(dms_JurisdictionList,MATCH(dms_TradingName,dms_TradingName_List)) -> Vic | D68: dms_Jurisdiction | E68: =INDEX(dms_JurisdictionList,MATCH(dms_TradingName,dms_TradingName_List))
B69: Backcast Multiyear EB, CA or ARR? | C69: 0 | D69: dms_MultiYear_Flag | E69: 1=y, 0-n
C70: 2013 | D70: dms_Specified_FinalYear | E70: The result here is returned to dms_CRCP_FinalYear_Result if dms_MultiYear_Flag is set to 1
B71: Single Year Model T/F | C71: =IF(dms_Model="EB",1,0) -> 0 | D71: dms_EB
C72: =IF(dms_Model="CA",1,0) -> 0 | D72: dms_CA | E72: =dms_SingleYear_Model
C73: =IF(dms_Model="ARR",1,0) -> 1 | D73: dms_ARR
B74: Single Year Final Year Reference | C74: CRY | D74: dms_SingleYear_FinalYear_Ref | E74: This is the reference for EB, CA & ARR RINs
B75: Single Year Final Year Result | C75: =INDIRECT(dms_SingleYear_FinalYear_Ref) -> 2016 | D75: dms_SingleYear_FinalYear_Result | E75: =INDIRECT(dms_SingleYear_FinalYear_Ref) | I75: Formula errors OK
B76: FRCP length in years | C76: =INDEX(dms_FRCPlength_List,MATCH(dms_TradingName,dms_TradingName_List)) -> 5 | D76: dms_FRCPlength_Num | E76: =INDEX(dms_FRCPlength_List,MATCH(dms_TradingName,dms_TradingName_List))
B77: Multi Year Final Year Reference | C77: =INDEX(dms_FinalYear_List,MATCH(dms_FRCPlength_Num,dms_FRCPlength_Num_List)) -> dms_FRCP_y5 | D77: dms_MultiYear_FinalYear_Ref | E77: =INDEX(dms_FinalYear_List,MATCH(dms_FRCPlength_Num,dms_FRCPlength_Num_List))
B78: Multi Year Final Year Result | C78: =IF(dms_MultiYear_Flag=0,INDIRECT(dms_MultiYear_FinalYear_Ref),dms_Specified_FinalYear) -> 2021 | D78: dms_MultiYear_FinalYear_Result | E78: =IF(dms_MultiYear_Flag=0,INDIRECT(dms_MultiYear_FinalYear_Ref),dms_Specified_FinalYear) | I78: Formula errors OK
B79: CRCP length in years | C79: =INDEX(dms_CRCPlength_List,MATCH(dms_TradingName,dms_TradingName_List)) -> 5 | D79: dms_CRCPlength_Num | E79: =INDEX(dms_CRCPlength_List,MATCH(dms_TradingName,dms_TradingName_List))
B80: CRCP Final Year Reference | C80: =INDEX(dms_CFinalYear_List,MATCH(dms_CRCPlength_Num,dms_CRCPlength_Num_List)) -> CRCP_y5 | D80: dms_CRCP_FinalYear_Ref | E80: =INDEX(dms_CFinalYear_List,MATCH(dms_CRCPlength_Num,dms_CRCPlength_Num_List))
B81: CRCP First Year Result | C81: =INDEX(dms_CRCP_years,MATCH(dms_CRCPlength_Num,dms_CRCP_index)) -> 2012 | D81: dms_CRCP_FirstYear_Result | E81: =INDEX(dms_CRCP_years,MATCH(dms_CRCPlength_Num,dms_CRCP_index))
B82: CRCP Final Year Result | C82: =IF(dms_MultiYear_Flag=0,(IF(SUM(dms_SingleYear_Model)>0,CRY,dms_CRCP_yZ)),dms_Specified_FinalYear) -> 2016 | D82: dms_CRCP_FinalYear_Result | E82: =IF(dms_MultiYear_Flag=0,(IF(SUM(dms_SingleYear_Model)>0,CRY,dms_CRCP_yZ)),dms_Specified_FinalYear)
B83: Table 6.6.3 - Public lighting repair - no. business days | C83: =INDEX(dms_663_List,MATCH(dms_TradingName,dms_TradingName_List)) -> 2 | D83: dms_663
B84: Distribution Determination Reference | C84: =INDEX(dms_DeterminationRef_List,MATCH(dms_TradingName,dms_TradingName_List)) -> 2016-20 Distribution Determination | D84: dms_DeterminationRef
B85: Backcast templates only - unit of measure | C85: $0s | D85: dms_Backcast_UOM | E85: If the cover sheet is for Backcast data ensure to apply dms_Backcast_UOM named range to this field. Otherwise, do not apply this named range.
B86: EB/CA Unit of Measure for Monetary Values | C86: $0s | D86: dms_dollar_nom_UOM | E86: If the cover sheet is attached to an EB files make sure this field is set
B88: discard this record? | C88: NO | D88: dms_DISCARD | E88: If record is to be discarded from DB set this flag to YES
B90: USES NAMED RANGES FLAG | C90: yes | D90: dms_Defined_Names_Used

Sheet 2.11 Labour
B1: =(LOOKUP(dms_Model,dms_Model_List,dms_Worksheet_List)) -> ANNUAL REPORTING STATEMENT
B2: =dms_TradingName -> CitiPower
B3: =CONCATENATE("Annual Reporting RIN Response ",CRY) -> Annual Reporting RIN Response 2016
B4: 2.11 LABOUR
B6: Tables 2.11.1 and 2.11.2 deliberately omitted.
B8: 2.11.3 - LABOUR / NON-LABOUR EXPENDITURE SPLIT
B9: 2.11.3.1 - Opex
C10: =CRY -> 2016
C11: $0's, nominal
C12: Opex
B13: In-house labour expenditure
B14: Labour expenditure outsourced to related parties
B15: Labour expenditure outsourced to unrelated parties
B16: Controllable non-labour expenditure
B17: Uncontrollable non-labour expenditure
B18: Total | C18: =SUM(C13:C17) -> 0
B20: Reconciliation with Opex worksheets - SCS | C20: Opex
B21: Total including margins | C21: =dms_Total_Actual_Opex -> 74864094.85 | D21: =IF(C18=dms_Total_Actual_Opex,"OK","Error") -> Error
B24: 2.11.3.2 - Capex
C25: =CRY -> 2016
C26: $0's, nominal
C27: Capex
B28: In-house labour expenditure
B29: Labour expenditure outsourced to related parties
B30: Labour expenditure outsourced to unrelated parties
B31: Controllable non-labour expenditure
B32: Uncontrollable non-labour expenditure
B33: Total | C33: =SUM(C28:C32) -> 0
B35: Reconciliation with Capex & Opex worksheets - SCS | C35: Capex
B36: Total including margins | C36: =dms_Total_Actual_Capex -> 162233354.8 | D36: =IF(C33=dms_Total_Actual_Capex,"OK","Error") -> Error

Sheet 3.6 Quality of services
B1: =(LOOKUP(dms_Model,dms_Model_List,dms_Worksheet_List)) -> ANNUAL REPORTING STATEMENT
B2: =dms_TradingName -> CitiPower
B3: =CONCATENATE("Annual Reporting RIN Response ",CRY) -> Annual Reporting RIN Response 2016
B4: 3.6 QUALITY OF SERVICES
B6: 3.6.5 - QUALITY OF SUPPLY METRICS
D7: Volume
C8: Units | D8: =CRY -> 2016
B9: Over voltage events - due to high voltage injection | C9: number | D9: 0
B10: Customers receiving over-voltage - due to high voltage injection | C10: number | D10: 56
B11: Over voltage events - due to lightning | C11: number | D11: 0
B12: Customers receiving over-voltage - due to lightning | C12: number | D12: 6
B13: Over voltage events - due to voltage regulation or other cause | C13: number | D13: 0
B14: Customers receiving over-voltage - due to voltage regulation or other cause | C14: number | D14: 295
B15: Voltage variations - steady state (zone sub) | C15: number | D15: 535
B16: Voltage variations - one minute (zone sub) | C16: number | D16: 8
B17: Voltage variations - 10 seconds (zone sub) Min<0.7 | C17: number | D17: 376
B18: Voltage variations - 10 seconds (zone sub) Min<0.8 | C18: number | D18: 445
B19: Voltage variations - 10 seconds (zone sub) Min<0.9 | C19: number | D19: 581
B20: Voltage variations - steady state (feeder) | C20: number | D20: 32833
B21: Voltage variations - % zone subs monitored | C21: (per cent) | D21: 1
B22: Voltage variations - % feeders monitored | C22: (per cent) | D22: 0.95
B24: 3.6.6 - COMPLAINTS - TECHNICAL QUALITY OF SUPPLY
D25: Volume
C26: Units | D26: =CRY -> 2016
B27: 3.6.6.1 - TECHNICAL QUALITY OF SUPPLY
B28: Number of complaints - technical quality of supply | C28: number | D28: 1
B29: 3.6.6.2 - PERCENTAGE OF COMPLAINTS BY CATEGORY
B30: Low voltage supply | C30: (per cent) | D30: 0
B31: Voltage dips | C31: (per cent) | D31: 1
B32: Voltage swell | C32: (per cent) | D32: 0
B33: Voltage spike (impulsive transient) | C33: (per cent) | D33: 0
B34: Waveform distortion | C34: (per cent) | D34: 0
B35: TV or radio interference | C35: (per cent) | D35: 0
B36: Solar related | C36: (per cent) | D36: 0
B37: Noise from appliances | C37: (per cent) | D37: 0
B38: Other | C38: (per cent) | D38: 0
B39: 3.6.6.3 - PERCENTAGE OF COMPLAINTS BY LIKELY CAUSE
B40: Network equipment faulty | C40: (per cent) | D40: 0
B41: Network interference by NSP equipment | C41: (per cent) | D41: 0
B42: Network interference by another customer | C42: (per cent) | D42: 0
B43: Network limitation | C43: (per cent) | D43: 1
B44: Customer internal problem | C44: (per cent) | D44: 0
B45: No problem identified | C45: (per cent) | D45: 0
B46: Environmental | C46: (per cent) | D46: 0
B47: Other | C47: (per cent) | D47: 0
B51: 3.6.7 - CUSTOMER SERVICE METRICS
D52: Volume
C53: Unit | D53: =CRY -> 2016
B54: 3.6.7.1 - TIMELY PROVISIONS OF SERVICES
B55: Number of connections made | C55: number | D55: 51865
B56: Number of connections not made on or before agreed date | C56: number | D56: 214
B57: 3.6.7.2 - TIMELY REPAIR OF FAULTY STREET LIGHTS
B58: Street lights - average monthly number "out" | C58: number | D58: 340
B59: Street lights - not repaired by "fix by" date | C59: number | D59: 47
B60: Street lights - average number of days to repair | C60: number | D60: 4.14
B61: Total number of street lights | C61: number | D61: 52590
B62: 3.6.7.3 - CALL CENTRE PERFORMANCE
B63: Calls to call centre fault line | C63: number | D63: 68989
B64: Calls to fault line answered within 30 seconds | C64: number | D64: 26709
B65: Calls to fault line - average waiting time before call answered | C65: number | D65: 18.91
B66: Call centre - number of overload events | C66: number | D66: 0
B67: Percentage of calls abandoned | C67: (per cent) | D67: 0.01036397107
B68: 3.6.7.4 - NUMBER OF CUSTOMER COMPLAINTS
B69: Complaint - reliability of supply | C69: number | D69: 19
B70: Complaint - technical quality of supply | C70: number | D70: =IF(ISBLANK(D28),"",D28) -> 1
B71: Complaint - administrative process or customer service | C71: number | D71: 6
B72: Complaint - connection or augmentation | C72: number | D72: 79
B73: Complaint - other | C73: number | D73: 13
B74: Total number of complaints | C74: number | D74: 118

Sheet 3.6.8 Network-feeders
B1: =(LOOKUP(dms_Model,dms_Model_List,dms_Worksheet_List)) -> ANNUAL REPORTING STATEMENT
B2: =dms_TradingName -> CitiPower
B3: =CONCATENATE("Annual Reporting RIN Response ",CRY) -> Annual Reporting RIN Response 2016
B4: 3.6 QUALITY OF SERVICES
B6: Did the MAIFI parameter of the STPIS apply during the period? | F6: Yes | G6: ** IMPORTANT Please ensure this question is answered correctly. Your response will affect other tables throughout this workbook and will determine which cells are grey and which are input cells.
B10: 3.6.8 - NETWORK FEEDER RELIABILITY
B11: Feeder ID / name | C11: Description of the service area for the feeder | D11: Feeder classification (drop down) | E11: Number of distribution customers | F11: Length of high voltage distribution lines | H11: Maximum demand (MVA) | I11: Energy not supplied (MWh) | K11: Unplanned Outages | P11: Planned Outages | U11: Momentary feeder outages
F12: Overhead | G12: Underground | I12: Unplanned | J12: Planned | K12: Total number of unplanned outages | L12: Unplanned customer minutes off-supply (SAIDI) | N12: Unplanned interruptions (SAIFI) | P12: Total number of planned outages | Q12: Planned customer minutes off-supply (SAIDI) | S12: Planned interruptions (SAIFI) | U12: Total number of momentary feeder outages | V12: Momentary interruptions due to feeder outages (MAIFI)
L13: Including excluded events and MEDs | M13: After removing excluded events and MED | N13: Including excluded events and MEDs | O13: After removing excluded events and MED | Q13: Including MEDs | R13: After removing MED | S13: Including MEDs | T13: After removing MED | V13: Including excluded events and MEDs | W13: After removing excluded events and MED
B14: AP001 | C14: Citipower | D14: Urban | E14: 255 | F14: 0 | G14: 2.616706 | H14: 2.927 | I14: 0 | J14: 0 | K14: 0 | L14: 0 | M14: 0 | N14: 0 | O14: 0 | P14: 0 | Q14: 0 | R14: 0 | S14: 0 | T14: 0 | U14: 0 | V14: 0 | W14: 0
B15: AP002 | C15: Citipower | D15: CBD | E15: 2 | F15: 0 | G15: 1.917553 | H15: 7.297 | I15: 0 | J15: 0 | K15: 0 | L15: 0 | M15: 0 | N15: 0 | O15: 0 | P15: 0 | Q15: 0 | R15: 0 | S15: 0 | T15: 0 | U15: 0 | V15: 0 | W15: 0
B16: AP003 | C16: Citipower | D16: Urban | E16: 2052 | F16: 2.10745 | G16: 2.4213 | H16: 3.145 | I16: 0.087 | J16: 0.13 | K16: 3 | L16: 4.175925926 | M16: 4.175925926 | N16: 0.03362573099 | O16: 0.03362573099 | P16: 3 | Q16: 6.272417154 | R16: 6.272417154 | S16: 0.01364522417 | T16: 0.01364522417 | U16: 1 | V16: 0.9434697856 | W16: 0
B17: AP005 | C17: Citipower | D17: Urban | E17: 2164 | F17: 3.53879 | G17: 3.256626 | H17: 3.795 | I17: 0.042 | J17: 0.544 | K17: 1 | L17: 1.661737523 | M17: 1.661737523 | N17: 0.003234750462 | O17: 0.003234750462 | P17: 4 | Q17: 21.74953789 | R17: 21.74953789 | S17: 0.07255083179 | T17: 0.07255083179 | U17: 0 | V17: 0 | W17: 0
B18: AP006 | C18: Citipower | D18: Urban | E18: 651 | F18: 0.74553 | G18: 1.869837 | H18: 3.666 | I18: 1.895 | J18: 1.055 | K18: 3 | L18: 78.47926267 | M18: 78.47926267 | N18: 1.089093702 | O18: 1.089093702 | P18: 1 | Q18: 43.68663594 | R18: 43.68663594 | S18: 0.1105990783 | T18: 0.1105990783 | U18: 0 | V18: 0 | W18: 0
B19: AP007 | C19: Citipower | D19: Urban | E19: 1409 | F19: 2.44712 | G19: 0.716057 | H19: 1.883 | I19: 0.383 | J19: 0.001 | K19: 4 | L19: 30.90986515 | M19: 30.90986515 | N19: 0.2909865153 | O19: 0.2909865153 | P19: 1 | Q19: 0.07806955287 | R19: 0.07806955287 | S19: 0.0007097232079 | T19: 0.0007097232079 | U19: 0 | V19: 0 | W19: 0
B20: AP008 | C20: Citipower | D20: Urban | E20: 2612 | F20: 4.28458 | G20: 1.581747 | H20: 4.233 | I20: 1.472 | J20: 0.467 | K20: 6 | L20: 52.7982389 | M20: 52.7982389 | N20: 1.051684533 | O20: 1.051684533 | P20: 1 | Q20: 16.74961715 | R20: 16.74961715 | S20: 0.047856049 | T20: 0.047856049 | U20: 0 | V20: 0 | W20: 0
B21: AP009 | C21: Citipower | D21: Urban | E21: 892 | F21: 1.55175 | G21: 3.00729 | H21: 6.346 | I21: 0.113 | J21: 0.736 | K21: 1 | L21: 2.706278027 | M21: 2.706278027 | N21: 0.007847533632 | O21: 0.007847533632 | P21: 2 | Q21: 17.59641256 | R21: 17.59641256 | S21: 0.03811659193 | T21: 0.03811659193 | U21: 0 | V21: 0 | W21: 0
B22: AP011 | C22: Citipower | D22: Urban | E22: 278 | F22: 0.45896 | G22: 2.743917 | H22: 2.552 | I22: 0.146 | J22: 0 | K22: 1 | L22: 8.665467626 | M22: 8.665467626 | N22: 0.118705036 | O22: 0.118705036 | P22: 0 | Q22: 0 | R22: 0 | S22: 0 | T22: 0 | U22: 0 | V22: 0 | W22: 0
B23: AP012 | C23: Citipower | D23: Urban | E23: 110 | F23: 0.01719 | G23: 0.98973 | H23: 1.377 | I23: 0 | J23: 0.322 | K23: 0 | L23: 0 | M23: 0 | N23: 0 | O23: 0 | P23: 1 | Q23: 35.45454545 | R23: 35.45454545 | S23: 0.2727272727 | T23: 0.2727272727 | U23: 0 | V23: 0 | W23: 0
B24: AP013 | C24: Citipower | D24: Urban | E24: 523 | F24: 0 | G24: 2.789167 | H24: 2.323 | I24: 0 | J24: 0 | K24: 0 | L24: 0 | M24: 0 | N24: 0 | O24: 0 | P24: 0 | Q24: 0 | R24: 0 | S24: 0 | T24: 0 | U24: 0 | V24: 0 | W24: 0
B25: AP014 | C25: Citipower | D25: Urban | E25: 1880 | F25: 3.18324 | G25: 1.87953 | H25: 4.067 | I25: 0.465 | J25: 0 | K25: 2 | L25: 17.35319149 | M25: 4.686170213 | N25: 0.0664893617 | O25: 0.0329787234 | P25: 0 | Q25: 0 | R25: 0 | S25: 0 | T25: 0 | U25: 1 | V25: 1.000531915 | W25: 0
B26: AP015 | C26: Citipower | D26: Urban | E26: 1991 | F26: 3.19324 | G26: 1.22471 | H26: 2.885 | I26: 0.052 | J26: 0.403 | K26: 2 | L26: 2.737317931 | M26: 2.737317931 | N26: 0.01607232546 | O26: 0.01607232546 | P26: 5 | Q26: 21.19989955 | R26: 21.19989955 | S26: 0.06629834254 | T26: 0.06629834254 | U26: 0 | V26: 0 | W26: 0
B27: AP017 | C27: Citipower | D27: Urban | E27: 978 | F27: 0.94796 | G27: 7.025466 | H27: 4.261 | I27: 0.084 | J27: 1.567 | K27: 2 | L27: 3.005112474 | M27: 3.005112474 | N27: 0.0081799591 | O27: 0.0081799591 | P27: 4 | Q27: 55.82208589 | R27: 55.82208589 | S27: 0.1513292434 | T27: 0.1513292434 | U27: 0 | V27: 0 | W27: 0
B28: AP018 | C28: Citipower | D28: Urban | E28: 521 | F28: 0.89323 | G28: 1.431224 | H28: 4.845 | I28: 0.717 | J28: 0 | K28: 1 | L28: 22.46257198 | M28: 22.46257198 | N28: 0.0556621881 | O28: 0.0556621881 | P28: 0 | Q28: 0 | R28: 0 | S28: 0 | T28: 0 | U28: 1 | V28: 0.9942418426 | W28: 0.9942418426
B29: AP019 | C29: Citipower | D29: Urban | E29: 922 | F29: 1.07511 | G29: 1.801483 | H29: 3.666 | I29: 1.529 | J29: 0.026 | K29: 2 | L29: 63.31019523 | M29: 63.31019523 | N29: 1.070498915 | O29: 1.070498915 | P29: 1 | Q29: 1.073752711 | R29: 1.073752711 | S29: 0.006507592191 | T29: 0.006507592191 | U29: 0 | V29: 0 | W29: 0
B30: AR002 | C30: Citipower | D30: Urban | E30: 485 | F30: 0.32898 | G30: 1.68602 | H30: 3.218 | I30: 0.025 | J30: 0 | K30: 1 | L30: 1.18556701 | M30: 1.18556701 | N30: 0.00618556701 | O30: 0.00618556701 | P30: 0 | Q30: 0 | R30: 0 | S30: 0 | T30: 0 | U30: 0 | V30: 0 | W30: 0
B31: AR003 | C31: Citipower | D31: Urban | E31: 941 | F31: 1.80009 | G31: 2.37749 | H31: 2.956 | I31: 1.976 | J31: 0.976 | K31: 4 | L31: 101.4803401 | M31: 101.4803401 | N31: 1.150903294 | O31: 1.150903294 | P31: 7 | Q31: 50.12858661 | R31: 50.12858661 | S31: 0.2231668438 | T31: 0.2231668438 | U31: 1 | V31: 1.011689692 | W31: 1.011689692
B32: AR004 | C32: Citipower | D32: Urban | E32: 2559 | F32: 2.01962 | G32: 2.45921 | H32: 2.5 | I32: 0.019 | J32: 0.02 | K32: 1 | L32: 1.176631497 | M32: 1.176631497 | N32: 0.007424775303 | O32: 0.007424775303 | P32: 2 | Q32: 1.240719031 | R32: 1.240719031 | S32: 0.006643220008 | T32: 0.006643220008 | U32: 1 | V32: 1.084407972 | W32: 1.084407972
B33: AR005 | C33: Citipower | D33: Urban | E33: 889 | F33: 2.78905 | G33: 1.41348 | H33: 2.569 | I33: 0.103 | J33: 0 | K33: 1 | L33: 6.094488189 | M33: 6.094488189 | N33: 0.0157480315 | O33: 0.0157480315 | P33: 0 | Q33: 0 | R33: 0 | S33: 0 | T33: 0 | U33: 0 | V33: 0 | W33: 0
B34: AR006 | C34: Citipower | D34: Urban | E34: 365 | F34: 0.358 | G34: 2.61285 | H34: 3.778 | I34: 0.003 | J34: 1.369 | K34: 0 | L34: 0.1178082192 | M34: 0.1178082192 | N34: 0.002739726027 | O34: 0.002739726027 | P34: 2 | Q34: 55.01917808 | R34: 55.01917808 | S34: 1.106849315 | T34: 1.106849315 | U34: 0 | V34: 0 | W34: 0
B35: AR007 | C35: Citipower | D35: Urban | E35: 1481 | F35: 3.15169 | G35: 1.636133 | H35: 3.109 | I35: 1.191 | J35: 0.625 | K35: 4 | L35: 58.16475354 | M35: 58.16475354 | N35: 0.1431465226 | O35: 0.1431465226 | P35: 3 | Q35: 30.50641458 | R35: 30.50641458 | S35: 0.1019581364 | T35: 0.1019581364 | U35: 1 | V35: 1.030384875 | W35: 1.030384875
B36: AR009 | C36: Citipower | D36: Urban | E36: 807 | F36: 1.91631 | G36: 0.594824 | H36: 1.801 | I36: 0.222 | J36: 0.228 | K36: 3 | L36: 18.68153656 | M36: 18.68153656 | N36: 0.1387856258 | O36: 0.1387856258 | P36: 3 | Q36: 19.26022305 | R36: 19.26022305 | S36: 0.04832713755 | T36: 0.04832713755 | U36: 0 | V36: 0 | W36: 0
B37: AR010 | C37: Citipower | D37: Urban | E37: 2428 | F37: 2.91143 | G37: 1.105467 | H37: 2.724 | I37: 0.59 | J37: 0.334 | K37: 5 | L37: 32.91515651 | M37: 32.91515651 | N37: 1.034184514 | O37: 1.034184514 | P37: 1 | Q37: 18.64250412 | R37: 18.64250412 | S37: 0.0568369028 | T37: 0.0568369028 | U37: 2 | V37: 2.013591433 | W37: 1.007001647
B38: AR011 | C38: Citipower | D38: Urban | E38: 1575 | F38: 3.31941 | G38: 0.6534 | H38: 3.731 | I38: 0.762 | J38: 0.061 | K38: 8 | L38: 31.03047619 | M38: 31.03047619 | N38: 0.1625396825 | O38: 0.1625396825 | P38: 1 | Q38: 2.473015873 | R38: 2.473015873 | S38: 0.01206349206 | T38: 0.01206349206 | U38: 0 | V38: 0 | W38: 0
B39: AR012 | C39: Citipower | D39: Urban | E39: 519 | F39: 2.00652 | G39: 0.50425 | H39: 4.018 | I39: 0.005 | J39: 0.37 | K39: 0 | L39: 0.1734104046 | M39: 0.1734104046 | N39: 0.001926782274 | O39: 0.001926782274 | P39: 1 | Q39: 13.96917148 | R39: 13.96917148 | S39: 0.05587668593 | T39: 0.05587668593 | U39: 0 | V39: 0 | W39: 0
B40: AR013 | C40: Citipower | D40: Urban | E40: 405 | F40: 0.60167 | G40: 0.66107 | H40: 1.576 | I40: 0.058 | J40: 0.565 | K40: 1 | L40: 5.607407407 | M40: 5.607407407 | N40: 0.02222222222 | O40: 0.02222222222 | P40: 2 | Q40: 54.47901235 | R40: 54.47901235 | S40: 0.237037037 | T40: 0.237037037 | U40: 0 | V40: 0 | W40: 0
B41: B001 | C41: Citipower | D41: Urban | E41: 0 | F41: 0 | G41: 0 | H41: 0 | I41: 0 | J41: 0 | K41: 0 | L41: 0 | M41: 0 | N41: 0 | O41: 0 | P41: 0 | Q41: 0 | R41: 0 | S41: 0 | T41: 0 | U41: 0 | V41: 0 | W41: 0
B42: B002 | C42: Citipower | D42: Urban | E42: 351 | F42: 0 | G42: 2.04259 | H42: 2.173 | I42: 0 | J42: 0.003 | K42: 0 | L42: 0 | M42: 0 | N42: 0 | O42: 0 | P42: 0 | Q42: 0.1794871795 | R42: 0.1794871795 | S42: 0.002849002849 | T42: 0.002849002849 | U42: 0 | V42: 0 | W42: 0
B43: B003 | C43: Citipower | D43: Urban | E43: 277 | F43: 0.10282 | G43: 1.410594 | H43: 2.385 | I43: 0 | J43: 0 | K43: 0 | L43: 0 | M43: 0 | N43: 0 | O43: 0 | P43: 0 | Q43: 0 | R43: 0 | S43: 0 | T43: 0 | U43: 0 | V43: 0 | W43: 0
B44: B004 | C44: Citipower | D44: Urban | E44: 1110 | F44: 0.21212 | G44: 3.793913 | H44: 4.046 | I44: 0.05 | J44: 0 | K44: 1 | L44: 1.877477477 | M44: 1.877477477 | N44: 0.00990990991 | O44: 0.00990990991 | P44: 0 | Q44: 0 | R44: 0 | S44: 0 | T44: 0 | U44: 0 | V44: 0 | W44: 0
B45: B011 | C45: Citipower | D45: Urban | E45: 191 | F45: 0.2343 | G45: 3.0084 | H45: 3.734 | I45: 0.015 | J45: 2.521 | K45: 1 | L45: 0.6073298429 | M45: 0 | N45: 0.01047120419 | O45: 0 | P45: 2 | Q45: 102.486911 | R45: 102.486911 | S45: 0.3769633508 | T45: 0.3769633508 | U45: 0 | V45: 0 | W45: 0
B46: B012 | C46: Citipower | D46: Urban | E46: 527 | F46: 0.85859 | G46: 2.321983 | H46: 4.705 | I46: 0.867 | J46: 0.755 | K46: 3 | L46: 27.98102467 | M46: 27.98102467 | N46: 0.09677419355 | O46: 0.09677419355 | P46: 3 | Q46: 24.37001898 | R46: 24.37001898 | S46: 0.2333965844 | T46: 0.2333965844 | U46: 0 | V46: 0 | W46: 0
B47: B014 | C47: Citipower | D47: Urban | E47: 716 | F47: 0.17644 | G47: 1.98284 | H47: 1.985 | I47: 0.019 | J47: 0 | K47: 0 | L47: 1.44972067 | M47: 1.44972067 | N47: 0.005586592179 | O47: 0.005586592179 | P47: 0 | Q47: 0 | R47: 0 | S47: 0 | T47: 0 | U47: 0 | V47: 0 | W47: 0
B48: B015 | C48: Citipower | D48: Urban | E48: 0 | F48: 0 | G48: 0 | H48: 0 | I48: 0 | J48: 0 | K48: 0 | L48: 0 | M48: 0 | N48: 0 | O48: 0 | P48: 0 | Q48: 0 | R48: 0 | S48: 0 | T48: 0 | U48: 0 | V48: 0 | W48: 0
B49: B016 | C49: Citipower | D49: Urban | E49: 1238 | F49: 0 | G49: 2.338307 | H49: 1.28 | I49: 0.415 | J49: 0.116 | K49: 4 | L49: 49.25605816 | M49: 49.25605816 | N49: 1.062197092 | O49: 1.062197092 | P49: 3 | Q49: 13.71001616 | R49: 13.71001616 | S49: 0.2180936995 | T49: 0.2180936995 | U49: 0 | V49: 0 | W49: 0
B50: B021 | C50: Citipower | D50: Urban | E50: 1060 | F50: 0.00094 | G50: 2.445807 | H50: 2.7 | I50: 1.825 | J50: 0.022 | K50: 2 | L50: 102.6311321 | M50: 102.6311321 | N50: 1.006603774 | O50: 1.006603774 | P50: 3 | Q50: 1.253773585 | R50: 1.253773585 | S50: 0.02264150943 | T50: 0.02264150943 | U50: 0 | V50: 0 | W50: 0
B51: B023 | C51: Citipower | D51: Urban | E51: 753 | F51: 0.49293 | G51: 1.542893 | H51: 3.92 | I51: 3.926 | J51: 0.346 | K51: 2 | L51: 152.0491368 | M51: 152.0491368 | N51: 1.845949535 | O51: 1.845949535 | P51: 1 | Q51: 13.38645418 | R51: 13.38645418 | S51: 0.06374501992 | T51: 0.06374501992 | U51: 0 | V51: 0 | W51: 0
B52: B024 | C52: Citipower | D52: Urban | E52: 98 | F52: 3e-05 | G52: 2.08529 | H52: 1.736 | I52: 1.548 | J52: 0 | K52: 3 | L52: 135.4591837 | M52: 135.4591837 | N52: 2.989795918 | O52: 2.989795918 | P52: 0 | Q52: 0 | R52: 0 | S52: 0 | T52: 0 | U52: 0 | V52: 0 | W52: 0
B53: B025 | C53: Citipower | D53: Urban | E53: 0 | F53: 0 | G53: 0 | H53: 0 | I53: 0 | J53: 0 | K53: 0 | L53: 0 | M53: 0 | N53: 0 | O53: 0 | P53: 0 | Q53: 0 | R53: 0 | S53: 0 | T53: 0 | U53: 0 | V53: 0 | W53: 0
B54: B026 | C54: Citipower | D54: Urban | E54: 2 | F54: 0 | G54: 1.59663 | H54: 2.555 | I54: 0.025 | J54: 0 | K54: 1 | L54: 1.5 | M54: 1.5 | N54: 1.5 | O54: 1.5 | P54: 0 | Q54: 0 | R54: 0 | S54: 0 | T54: 0 | U54: 0 | V54: 0 | W54: 0
B55: B026_B027 | C55: Citipower | D55: Urban | E55: 2 | F55: 0 | G55: 0 | H55: 5.04 | I55: 0 | J55: 0 | K55: 0 | L55: 0 | M55: 0 | N55: 0 | O55: 0 | P55: 0 | Q55: 0 | R55: 0 | S55: 0 | T55: 0 | U55: 0 | V55: 0 | W55: 0
B56: B027 | C56: Citipower | D56: Urban | E56: 0 | F56: 0 | G56: 1.2689 | H56: 2.485 | I56: 0 | J56: 0 | K56: 0 | L56: 0 | M56: 0 | N56: 0 | O56: 0 | P56: 0 | Q56: 0 | R56: 0 | S56: 0 | T56: 0 | U56: 0 | V56: 0 | W56: 0
B57: BC003 | C57: Citipower | D57: Urban | E57: 2508 | F57: 2.67008 | G57: 6.539052 | H57: 0 | I57: 0 | J57: 0 | K57: 5 | L57: 119.5952951 | M57: 119.1483254 | N57: 0.9377990431 | O57: 0.937400319 | P57: 5 | Q57: 4.284688995 | R57: 4.284688995 | S57: 0.01275917065 | T57: 0.01275917065 | U57: 0 | V57: 0 | W57: 0
B58: BC006 | C58: Citipower | D58: Urban | E58: 1228 | F58: 0.00669 | G58: 2.64989 | H58: 1.966 | I58: 0.113 | J58: 0 | K58: 2 | L58: 8.697882736 | M58: 8.697882736 | N58: 0.04560260586 | O58: 0.04560260586 | P58: 0 | Q58: 0 | R58: 0 | S58: 0 | T58: 0 | U58: 0 | V58: 0 | W58: 0
B59: BC007 | C59: Citipower | D59: Urban | E59: 2266 | F59: 1.03114 | G59: 5.749276 | H59: 5.323 | I59: 2.49 | J59: 0.487 | K59: 5 | L59: 71.01588703 | M59: 71.01588703 | N59: 0.6218005296 | O59: 0.6218005296 | P59: 5 | Q59: 13.89938217 | R59: 13.89938217 | S59: 0.06707855252 | T59: 0.06707855252 | U59: 0 | V59: 0 | W59: 0
B60: BC011 | C60: Citipower | D60: Urban | E60: 324 | F60: 1.46097 | G60: 1.52745 | H60: 1.982 | I60: 0.01 | J60: 0 | K60: 1 | L60: 0.7407407407 | M60: 0.7407407407 | N60: 0.01851851852 | O60: 0.01851851852 | P60: 0 | Q60: 0 | R60: 0 | S60: 0 | T60: 0 | U60: 0 | V60: 0 | W60: 0
B61: BC012 | C61: Citipower | D61: Urban | E61: 1833 | F61: 3.41636 | G61: 1.205543 | H61: 3.743 | I61: 0.047 | J61: 0.36 | K61: 1 | L61: 1.886524823 | M61: 1.886524823 | N61: 0.01691216585 | O61: 0.01691216585 | P61: 3 | Q61: 14.59683579 | R61: 14.59683579 | S61: 0.04964539007 | T61: 0.04964539007 | U61: 1 | V61: 1.003273322 | W61: 1.003273322
B62: BC013 | C62: Citipower | D62: Urban | E62: 2105 | F62: 1.49139 | G62: 2.382124 | H62: 2.184 | I62: 0.357 | J62: 0.214 | K62: 2 | L62: 24.84370546 | M62: 24.84370546 | N62: 1.010926366 | O62: 1.010926366 | P62: 2 | Q62: 14.86460808 | R62: 14.86460808 | S62: 0.05653206651 | T62: 0.05653206651 | U62: 1 | V62: 1.003800475 | W62: 1.003800475
B63: BC014 | C63: Citipower | D63: Urban | E63: 458 | F63: 0.76158 | G63: 0.59412 | H63: 2.772 | I63: 0.013 | J63: 0 | K63: 1 | L63: 0.7096069869 | M63: 0.7096069869 | N63: 0.002183406114 | O63: 0.002183406114 | P63: 0 | Q63: 0 | R63: 0 | S63: 0 | T63: 0 | U63: 0 | V63: 0 | W63: 0
B64: BC015 | C64: Citipower | D64: Urban | E64: 3136 | F64: 2.93027 | G64: 1.50882 | H64: 2.404 | I64: 0.431 | J64: 0 | K64: 3 | L64: 27.24489796 | M64: 3.619260204 | N64: 0.09661989796 | O64: 0.02040816327 | P64: 0 | Q64: 0 | R64: 0 | S64: 0 | T64: 0 | U64: 0 | V64: 0 | W64: 0
B65: BC019 | C65: Citipower | D65: Urban | E65: 975 | F65: 0.22566 | G65: 5.17793 | H65: 5.995 | I65: 0.023 | J65: 0.418 | K65: 0 | L65: 0.5897435897 | M65: 0.5897435897 | N65: 0.003076923077 | O65: 0.003076923077 | P65: 2 | Q65: 10.59487179 | R65: 10.59487179 | S65: 0.02358974359 | T65: 0.02358974359 | U65: 0 | V65: 0 | W65: 0
B66: BC020 | C66: Citipower | D66: Urban | E66: 1951 | F66: 0.49839 | G66: 2.765229 | H66: 2.267 | I66: 0.031 | J66: 0.204 | K66: 1 | L66: 2.068682727 | M66: 2.068682727 | N66: 0.003587903639 | O66: 0.003587903639 | P66: 1 | Q66: 13.65453614 | R66: 13.65453614 | S66: 0.1137878011 | T66: 0.1137878011 | U66: 0 | V66: 0 | W66: 0
B67: BC022 | C67: Citipower | D67: Urban | E67: 424 | F67: 0.04561 | G67: 3.16134 | H67: 1.707 | I67: 0.034 | J67: 0 | K67: 1 | L67: 3.018867925 | M67: 3.018867925 | N67: 0.09433962264 | O67: 0.09433962264 | P67: 0 | Q67: 0 | R67: 0 | S67: 0 | T67: 0 | U67: 0 | V67: 0 | W67: 0
B68: BC023 | C68: Citipower | D68: Urban | E68: 0 | F68: 2.85899 | G68: 1.73934 | H68: 4.59 | I68: 0 | J68: 0 | K68: 0 | L68: 0 | M68: 0 | N68: 0 | O68: 0 | P68: 0 | Q68: 0 | R68: 0 | S68: 0 | T68: 0 | U68: 0 | V68: 0 | W68: 0
B69: BC024 | C69: Citipower | D69: Urban | E69: 2482 | F69: 0.00163 | G69: 8.671143 | H69: 0 | I69: 0 | J69: 0 | K69: 2 | L69: 1.119661563 | M69: 1.119661563 | N69: 0.0088638195 | O69: 0.0088638195 | P69: 0 | Q69: 0.1446414182 | R69: 0.1446414182 | S69: 0.0004029008864 | T69: 0.0004029008864 | U69: 0 | V69: 0 | W69: 0
B70: BK002 | C70: Citipower | D70: Urban | E70: 1485 | F70: 2.377 | G70: 1.922549 | H70: 2.294 | I70: 0.06 | J70: 0.667 | K70: 3 | L70: 3.979124579 | M70: 3.979124579 | N70: 0.03501683502 | O70: 0.03501683502 | P70: 5 | Q70: 44.12053872 | R70: 44.12053872 | S70: 0.195959596 | T70: 0.195959596 | U70: 0 | V70: 0 | W70: 0
B71: BK003 | C71: Citipower | D71: Urban | E71: 444 | F71: 1.62401 | G71: 0.644676 | H71: 1.923 | I71: 0.13 | J71: 0 | K71: 2 | L71: 10.25900901 | M71: 10.25900901 | N71: 0.03603603604 | O71: 0.03603603604 | P71: 0 | Q71: 0 | R71: 0 | S71: 0 | T71: 0 | U71: 0 | V71: 0 | W71: 0
B72: BK004 | C72: Citipower | D72: Urban | E72: 1349 | F72: 2.98603 | G72: 0.77474 | H72: 2.166 | I72: 0.125 | J72: 0.367 | K72: 2 | L72: 8.765752409 | M72: 8.765752409 | N72: 0.02149740549 | O72: 0.02149740549 | P72: 2 | Q72: 25.70126019 | R72: 25.70126019 | S72: 0.1386212009 | T72: 0.1386212009 | U72: 0 | V72: 0 | W72: 0
B73: BK005 | C73: Citipower | D73: Urban | E73: 258 | F73: 1.56389 | G73: 1.53271 | H73: 0 | I73: 1.51 | J73: 0 | K73: 1 | L73: 72.41860465 | M73: 72.41860465 | N73: 2.011627907 | O73: 2.011627907 | P73: 0 | Q73: 0 | R73: 0 | S73: 0 | T73: 0 | U73: 0 | V73: 0 | W73: 0
B74: BK006 | C74: Citipower | D74: Urban | E74: 248 | F74: 0.59487 | G74: 1.31806 | H74: 0.386 | I74: 0.001 | J74: 0 | K74: 0 | L74: 0.4717741935 | M74: 0.4717741935 | N74: 0.004032258065 | O74: 0.004032258065 | P74: 0 | Q74: 0 | R74: 0 | S74: 0 | T74: 0 | U74: 0 | V74: 0 | W74: 0
B75: BK007 | C75: Citipower | D75: Urban | E75: 1343 | F75: 2.59363 | G75: 0.500694 | H75: 2.148 | I75: 0.514 | J75: 0.008 | K75: 5 | L75: 36.29709605 | M75: 36.29709605 | N75: 0.9627699181 | O75: 0.9627699181 | P75: 1 | Q75: 0.5956813105 | R75: 0.5956813105 | S75: 0.02755026061 | T75: 0.02755026061 | U75: 0 | V75: 0 | W75: 0
B76: BK009 | C76: Citipower | D76: Urban | E76: 724 | F76: 2.03626 | G76: 3.194145 | H76: 1.051 | I76: 0.031 | J76: 0.395 | K76: 1 | L76: 4.406077348 | M76: 4.406077348 | N76: 0.04696132597 | O76: 0.04696132597 | P76: 8 | Q76: 57.01519337 | R76: 57.01519337 | S76: 0.1698895028 | T76: 0.1698895028 | U76: 0 | V76: 0 | W76: 0
B77: BK011 | C77: Citipower | D77: Urban | E77: 1456 | F77: 2.15022 | G77: 0.959618 | H77: 1.924 | I77: 0.01 | J77: 0.162 | K77: 0 | L77: 0.7774725275 | M77: 0.7774725275 | N77: 0.003434065934 | O77: 0.003434065934 | P77: 3 | Q77: 12.78159341 | R77: 12.78159341 | S77: 0.0364010989 | T77: 0.0364010989 | U77: 0 | V77: 0 | W77: 0
B78: BQ001 | C78: Citipower | D78: CBD | E78: 92 | F78: 0 | G78: 0.07458 | H78: 0.267 | I78: 0.163 | J78: 0 | K78: 1 | L78: 92.83695652 | M78: 92.83695652 | N78: 0.4239130435 | O78: 0.4239130435 | P78: 0 | Q78: 0 | R78: 0 | S78: 0 | T78: 0 | U78: 0 | V78: 0 | W78: 0
B79: BQ002 | C79: Citipower | D79: CBD | E79: 0 | F79: 0 | G79: 1.28158 | H79: 0 | I79: 0 | J79: 0 | K79: 0 | L79: 0 | M79: 0 | N79: 0 | O79: 0 | P79: 0 | Q79: 0 | R79: 0 | S79: 0 | T79: 0 | U79: 0 | V79: 0 | W79: 0
B80: BQ003 | C80: Citipower | D80: Urban | E80: 0 | F80: 0 | G80: 0 | H80: 0 | I80: 0 | J80: 0 | K80: 0 | L80: 0 | M80: 0 | N80: 0 | O80: 0 | P80: 0 | Q80: 0 | R80: 0 | S80: 0 | T80: 0 | U80: 0 | V80: 0 | W80: 0
B81: BQ005 | C81: Citipower | D81: CBD | E81: 0 | F81: 0 | G81: 0.73972 | H81: 0 | I81: 0 | J81: 0 | K81: 0 | L81: 0 | M81: 0 | N81: 0 | O81: 0 | P81: 0 | Q81: 0 | R81: 0 | S81: 0 | T81: 0 | U81: 0 | V81: 0 | W81: 0
B82: BQ007 | C82: Citipower | D82: Urban | E82: 12 | F82: 0 | G82: 1.5188 | H82: 3.886 | I82: 0 | J82: 0 | K82: 0 | L82: 0 | M82: 0 | N82: 0 | O82: 0 | P82: 0 | Q82: 0 | R82: 0 | S82: 0 | T82: 0 | U82: 0 | V82: 0 | W82: 0
B83: BQ009 | C83: Citipower | D83: CBD | E83: 0 | F83: 0 | G83: 0 | H83: 0 | I83: 0 | J83: 0 | K83: 0 | L83: 0 | M83: 0 | N83: 0 | O83: 0 | P83: 0 | Q83: 0 | R83: 0 | S83: 0 | T83: 0 | U83: 0 | V83: 0 | W83: 0
B84: BQ012 | C84: Citipower | D84: CBD | E84: 0 | F84: 0 | G84: 5.16275 | H84: 0 | I84: 0 | J84: 0 | K84: 0 | L84: 0 | M84: 0 | N84: 0 | O84: 0 | P84: 0 | Q84: 0 | R84: 0 | S84: 0 | T84: 0 | U84: 0 | V84: 0 | W84: 0
B85: BQ014 | C85: Citipower | D85: CBD | E85: 21 | F85: 0 | G85: 1.132753 | H85: 1.835 | I85: 0 | J85: 1.623 | K85: 0 | L85: 0 | M85: 0 | N85: 0 | O85: 0 | P85: 1 | Q85: 134.2857143 | R85: 134.2857143 | S85: 0.1904761905 | T85: 0.1904761905 | U85: 0 | V85: 0 | W85: 0
B86: BQ015 | C86: Citipower | D86: Urban | E86: 60 | F86: 0 | G86: 0.844373 | H86: 1.275 | I86: 0 | J86: 0 | K86: 0 | L86: 0 | M86: 0 | N86: 0 | O86: 0 | P86: 0 | Q86: 0 | R86: 0 | S86: 0 | T86: 0 | U86: 0 | V86: 0 | W86: 0
B87: BQ019 | C87: Citipower | D87: Urban | E87: 1 | F87: 0 | G87: 1.2267 | H87: 1.2 | I87: 0 | J87: 0 | K87: 0 | L87: 0 | M87: 0 | N87: 0 | O87: 0 | P87: 0 | Q87: 0 | R87: 0 | S87: 0 | T87: 0 | U87: 0 | V87: 0 | W87: 0
B88: BQ020 | C88: Citipower | D88: CBD | E88: 62 | F88: 0 | G88: 0.08852 | H88: 0.481 | I88: 0.011 | J88: 0 | K88: 0 | L88: 3.338709677 | M88: 3.338709677 | N88: 0.01612903226 | O88: 0.01612903226 | P88: 0 | Q88: 0 | R88: 0 | S88: 0 | T88: 0 | U88: 0 | V88: 0 | W88: 0
B89: BQ024 | C89: Citipower | D89: CBD | E89: 5 | F89: 0 | G89: 1.43155 | H89: 4.096 | I89: 0 | J89: 0 | K89: 0 | L89: 0 | M89: 0 | N89: 0 | O89: 0 | P89: 0 | Q89: 0 | R89: 0 | S89: 0 | T89: 0 | U89: 0 | V89: 0 | W89: 0
B90: BQ026 | C90: Citipower | D90: CBD | E90: 1 | F90: 0 | G90: 2.09404 | H90: 3.567 | I90: 0 | J90: 0 | K90: 0 | L90: 0 | M90: 0 | N90: 0 | O90: 0 | P90: 0 | Q90: 0 | R90: 0 | S90: 0 | T90: 0 | U90: 0 | V90: 0 | W90: 0
B91: BQ032 | C91: Citipower | D91: CBD | E91: 0 | F91: 0 | G91: 0.14447 | H91: 0 | I91: 0 | J91: 0 | K91: 0 | L91: 0 | M91: 0 | N91: 0 | O91: 0 | P91: 0 | Q91: 0 | R91: 0 | S91: 0 | T91: 0 | U91: 0 | V91: 0 | W91: 0
B92: BQ033 | C92: Citipower | D92: CBD | E92: 395 | F92: 0 | G92: 1.63216 | H92: 0.982 | I92: 0 | J92: 0 | K92: 0 | L92: 0 | M92: 0 | N92: 0 | O92: 0 | P92: 0 | Q92: 0 | R92: 0 | S92: 0 | T92: 0 | U92: 0 | V92: 0 | W92: 0
B93: BQ041 | C93: Citipower | D93: Urban | E93: 2509 | F93: 0 | G93: 5.42564 | H93: 2.51 | I93: 0.356 | J93: 0 | K93: 4 | L93: 21.53846154 | M93: 21.53846154 | N93: 0.04862495018 | O93: 0.04862495018 | P93: 0 | Q93: 0 | R93: 0 | S93: 0 | T93: 0 | U93: 0 | V93: 0 | W93: 0
B94: BQ043 | C94: Citipower | D94: CBD | E94: 302 | F94: 0 | G94: 2.962686 | H94: 3.842 | I94: 0 | J94: 0 | K94: 0 | L94: 0 | M94: 0 | N94: 0 | O94: 0 | P94: 0 | Q94: 0 | R94: 0 | S94: 0 | T94: 0 | U94: 0 | V94: 0 | W94: 0
B95: BQ046 | C95: Citipower | D95: CBD | E95: 198 | F95: 0 | G95: 1.92604 | H95: 4.756 | I95: 0 | J95: 0 | K95: 0 | L95: 0 | M95: 0 | N95: 0 | O95: 0 | P95: 0 | Q95: 0 | R95: 0 | S95: 0 | T95: 0 | U95: 0 | V95: 0 | W95: 0
B96: BQ047 | C96: Citipower | D96: CBD | E96: 1230 | F96: 0 | G96: 3.77892 | H96: 3.567 | I96: 0.051 | J96: 0.004 | K96: 1 | L96: 2.16097561 | M96: 2.16097561 | N96: 0.01382113821 | O96: 0.01382113821 | P96: 1 | Q96: 0.1886178862 | R96: 0.1886178862 | S96: 0.0008130081301 | T96: 0.0008130081301 | U96: 0 | V96: 0 | W96: 0
B97: BQ051 | C97: Citipower | D97: Urban | E97: 3127 | F97: 0 | G97: 8.61537 | H97: 3.85 | I97: 0.033 | J97: 0 | K97: 3 | L97: 1.316917173 | M97: 1.316917173 | N97: 0.1045730732 | O97: 0.1045730732 | P97: 0 | Q97: 0 | R97: 0 | S97: 0 | T97: 0 | U97: 0 | V97: 0 | W97: 0
B98: BQ052 | C98: Citipower | D98: CBD | E98: 110 | F98: 0 | G98: 4.27812 | H98: 3.875 | I98: 0 | J98: 0 | K98: 0 | L98: 0 | M98: 0 | N98: 0 | O98: 0 | P98: 0 | Q98: 0 | R98: 0 | S98: 0 | T98: 0 | U98: 0 | V98: 0 | W98: 0
B99: BQ053 | C99: Citipower | D99: Urban | E99: 894 | F99: 0 | G99: 4.566797 | H99: 3.559 | I99: 0.01 | J99: 0.223 | K99: 0 | L99: 0.4261744966 | M99: 0.4261744966 | N99: 0.002237136465 | O99: 0.002237136465 | P99: 1 | Q99: 9.507829978 | R99: 9.507829978 | S99: 0.1118568233 | T99: 0.1118568233 | U99: 0 | V99: 0 | W99: 0
B100: BQ056 | C100: Citipower | D100: CBD | E100: 747 | F100: 0 | G100: 3.183776 | H100: 3.076 | I100: 0.005 | J100: 0 | K100: 0 | L100: 0.2382864793 | M100: 0.2382864793 | N100: 0.001338688086 | O100: 0.001338688086 | P100: 0 | Q100: 0 | R100: 0 | S100: 0 | T100: 0 | U100: 0 | V100: 0 | W100: 0
B101: BQ057 | C101: Citipower | D101: Urban | E101: 474 | F101: 0 | G101: 1.87329 | H101: 1.611 | I101: 0.91 | J101: 0 | K101: 1 | L101: 85.76160338 | M101: 85.76160338 | N101: 0.9852320675 | O101: 0.9852320675 | P101: 0 | Q101: 0 | R101: 0 | S101: 0 | T101: 0 | U101: 0 | V101: 0 | W101: 0
B102: BQ061 | C102: Citipower | D102: CBD | E102: 61 | F102: 0 | G102: 4.349803 | H102: 3.442 | I102: 0 | J102: 0 | K102: 0 | L102: 0 | M102: 0 | N102: 0 | O102: 0 | P102: 0 | Q102: 0 | R102: 0 | S102: 0 | T102: 0 | U102: 0 | V102: 0 | W102: 0
B103: BQ062 | C103: Citipower | D103: Urban | E103: 137 | F103: 0 | G103: 4.48903 | H103: 3.776 | I103: 0 | J103: 2.017 | K103: 0 | L103: 0 | M103: 0 | N103: 0 | O103: 0 | P103: 1 | Q103: 81.08759124 | R103: 81.08759124 | S103: 0.1678832117 | T103: 0.1678832117 | U103: 0 | V103: 0 | W103: 0
B104: BQ065 | C104: Citipower | D104: Urban | E104: 962 | F104: 0 | G104: 7.367281 | H104: 2.886 | I104: 0.022 | J104: 0 | K104: 1 | L104: 1.182952183 | M104: 1.182952183 | N104: 0.004158004158 | O104: 0.004158004158 | P104: 0 | Q104: 0 | R104: 0 | S104: 0 | T104: 0 | U104: 0 | V104: 0 | W104: 0
B105: BQ066 | C105: Citipower | D105: Urban | E105: 2043 | F105: 0 | G105: 5.74372 | H105: 4.082 | I105: 0.038 | J105: 0.072 | K105: 2 | L105: 1.399902105 | M105: 1.399902105 | N105: 0.003915810083 | O105: 0.003915810083 | P105: 1 | Q105: 2.696035242 | R105: 2.696035242 | S105: 0.01664219285 | T105: 0.01664219285 | U105: 0 | V105: 0 | W105: 0
B106: BQ067 | C106: Citipower | D106: CBD | E106: 304 | F106: 0 | G106: 1.491697 | H106: 2.778 | I106: 0 | J106: 0.03 | K106: 0 | L106: 0 | M106: 0 | N106: 0 | O106: 0 | P106: 1 | Q106: 1.618421053 | R106: 1.618421053 | S106: 0.01973684211 | T106: 0.01973684211 | U106: 0 | V106: 0 | W106: 0
B107: BTS-RUS177 | C107: Citipower | D107: Urban | E107: 1 | F107: 4.27474 | G107: 0.75006 | H107: 5.716 | I107: 0 | J107: 0 | K107: 0 | L107: 0 | M107: 0 | N107: 0 | O107: 0 | P107: 0 | Q107: 0 | R107: 0 | S107: 0 | T107: 0 | U107: 0 | V107: 0 | W107: 0
B108: BTS-VP180 | C108: Citipower | D108: Urban | E108: 2 | F108: 0.92046 | G108: 7.22947 | H108: 4.42 | I108: 0.175 | J108: 0 | K108: 1 | L108: 6 | M108: 6 | N108: 0.5 | O108: 0.5 | P108: 0 | Q108: 0 | R108: 0 | S108: 0 | T108: 0 | U108: 0 | V108: 0 | W108: 0
B109: BW021 | C109: Citipower | D109: Urban | E109: 13 | F109: 1.31101 | G109: 0.37102 | H109: 0 | I109: 0 | J109: 0 | K109: 0 | L109: 0 | M109: 0 | N109: 0 | O109: 0 | P109: 0 | Q109: 0 | R109: 0 | S109: 0 | T109: 0 | U109: 0 | V109: 0 | W109: 0
B110: C020 | C110: Citipower | D110: Urban | E110: 1444 | F110: 3.26229 | G110: 0.918704 | H110: 2.503 | I110: 0.098 | J110: 0.256 | K110: 3 | L110: 5.915512465 | M110: 5.915512465 | N110: 0.05817174515 | O110: 0.05817174515 | P110: 2 | Q110: 15.54362881 | R110: 15.54362881 | S110: 0.03601108033 | T110: 0.03601108033 | U110: 0 | V110: 0 | W110: 0
B111: C021 | C111: Citipower | D111: Urban | E111: 1 | F111: 0 | G111: 1.00692 | H111: 0.603 | I111: 0 | J111: 0 | K111: 0 | L111: 0 | M111: 0 | N111: 0 | O111: 0 | P111: 0 | Q111: 0 | R111: 0 | S111: 0 | T111: 0 | U111: 0 | V111: 0 | W111: 0
B112: C022 | C112: Citipower | D112: Urban | E112: 1221 | F112: 3.07747 | G112: 0.519277 | H112: 2.242 | I112: 0.002 | J112: 0.046 | K112: 0 | L112: 0.1343161343 | M112: 0.1343161343 | N112: 0.000819000819 | O112: 0.000819000819 | P112: 1 | Q112: 3.095823096 | R112: 3.095823096 | S112: 0.01146601147 | T112: 0.01146601147 | U112: 0 | V112: 0 | W112: 0
B113: C023 | C113: Citipower | D113: Urban | E113: 1438 | F113: 3.4906 | G113: 2.203019 | H113: 1.688 | I113: 0.014 | J113: 1.131 | K113: 1 | L113: 1.287899861 | M113: 1.287899861 | N113: 0.01112656467 | O113: 0.01112656467 | P113: 6 | Q113: 101.7190542 | R113: 101.7190542 | S113: 0.2329624478 | T113: 0.2329624478 | U113: 0 | V113: 0 | W113: 0
B114: C024 | C114: Citipower | D114: Urban | E114: 0 | F114: 1.80284 | G114: 1.629633 | H114: 0.335 | I114: 0 | J114: 0 | K114: 0 | L114: 0 | M114: 0 | N114: 0 | O114: 0 | P114: 0 | Q114: 0 | R114: 0 | S114: 0 | T114: 0 | U114: 0 | V114: 0 | W114: 0
B115: C027 | C115: Citipower | D115: Urban | E115: 145 | F115: 0 | G115: 0.962827 | H115: 1.413 | I115: 0.351 | J115: 0.043 | K115: 1 | L115: 37.73793103 | M115: 37.73793103 | N115: 1.137931034 | O115: 1.137931034 | P115: 1 | Q115: 4.593103448 | R115: 4.593103448 | S115: 0.04137931034 | T115: 0.04137931034 | U115: 0 | V115: 0 | W115: 0
B116: C028 | C116: Citipower | D116: Urban | E116: 760 | F116: 1.77624 | G116: 0.20726 | H116: 2.081 | I116: 0.001 | J116: 0.421 | K116: 0 | L116: 0.08684210526 | M116: 0.08684210526 | N116: 0.001315789474 | O116: 0.001315789474 | P116: 2 | Q116: 30.74342105 | R116: 30.74342105 | S116: 0.08157894737 | T116: 0.08157894737 | U116: 0 | V116: 0 | W116: 0
B117: C029 | C117: Citipower | D117: Urban | E117: 530 | F117: 0.85134 | G117: 0.832566 | H117: 1.019 | I117: 0.002 | J117: 0.08 | K117: 0 | L117: 0.3339622642 | M117: 0.3339622642 | N117: 0.001886792453 | O117: 0.001886792453 | P117: 2 | Q117: 11.94150943 | R117: 11.94150943 | S117: 0.0358490566 | T117: 0.0358490566 | U117: 0 | V117: 0 | W117: 0
B118: CFD021 | C118: Citipower | D118: Urban | E118: 106 | F118: 0 | G118: 1.93597 | H118: 0 | I118: 0 | J118: 0 | K118: 0 | L118: 0 | M118: 0 | N118: 0 | O118: 0 | P118: 0 | Q118: 0 | R118: 0 | S118: 0 | T118: 0 | U118: 0 | V118: 0 | W118: 0
B119: CFD022 | C119: Citipower | D119: Urban | E119: 0 | F119: 0 | G119: 1.51077 | H119: 0 | I119: 0 | J119: 0 | K119: 0 | L119: 0 | M119: 0 | N119: 0 | O119: 0 | P119: 0 | Q119: 0 | R119: 0 | S119: 0 | T119: 0 | U119: 0 | V119: 0 | W119: 0
B120: CFD023 | C120: Citipower | D120: Urban | E120: 365 | F120: 0.88902 | G120: 3.32089 | H120: 0 | I120: 0 | J120: 0 | K120: 2 | L120: 212.9424658 | M120: 212.9424658 | N120: 0.5589041096 | O120: 0.5589041096 | P120: 0 | Q120: 0 | R120: 0 | S120: 0 | T120: 0 | U120: 0 | V120: 0 | W120: 0
B121: CL011 | C121: Citipower | D121: Urban | E121: 2354 | F121: 8.30627 | G121: 1.124619 | H121: 3.842 | I121: 3.668 | J121: 1.075 | K121: 5 | L121: 144.9766355 | M121: 39.90569244 | N121: 2.780798641 | O121: 0.7782497876 | P121: 6 | Q121: 42.48725573 | R121: 42.48725573 | S121: 0.08666100255 | T121: 0.08666100255 | U121: 2 | V121: 1.997875956 | W121: 0.9906542056
B122: CL013 | C122: Citipower | D122: Urban | E122: 678 | F122: 2.13808 | G122: 4.166289 | H122: 3.192 | I122: 0.361 | J122: 0.328 | K122: 1 | L122: 17.16224189 | M122: 0.5250737463 | N122: 1.113569322 | O122: 0.004424778761 | P122: 5 | Q122: 15.60914454 | R122: 15.60914454 | S122: 0.06637168142 | T122: 0.06637168142 | U122: 0 | V122: 0 | W122: 0
B123: CL014 | C123: Citipower | D123: Urban | E123: 392 | F123: 0 | G123: 1.907957 | H123: 3.617 | I123: 0.343 | J123: 2.257 | K123: 1 | L123: 14.39285714 | M123: 0 | N123: 1.028061224 | O123: 0 | P123: 2 | Q123: 94.73469388 | R123: 94.73469388 | S123: 0.112244898 | T123: 0.112244898 | U123: 0 | V123: 0 | W123: 0
B124: CL016 | C124: Citipower | D124: Urban | E124: 282 | F124: 0.32693 | G124: 2.956937 | H124: 3.892 | I124: 0.629 | J124: 0 | K124: 2 | L124: 24.5248227 | M124: 8.638297872 | N124: 1.067375887 | O124: 0.07446808511 | P124: 0 | Q124: 0 | R124: 0 | S124: 0 | T124: 0 | U124: 0 | V124: 0 | W124: 0
B125: CL021 | C125: Citipower | D125: Urban | E125: 1082 | F125: 1.01552 | G125: 1.95315 | H125: 3.724 | I125: 0.558 | J125: 0 | K125: 2 | L125: 22.76709797 | M125: 8.818853974 | N125: 1.053604436 | O125: 0.0573012939 | P125: 0 | Q125: 0 | R125: 0 | S125: 0 | T125: 0 | U125: 0 | V125: 0 | W125: 0
B126: CL022 | C126: Citipower | D126: Urban | E126: 1095 | F126: 3.63083 | G126: 0.64692 | H126: 4.693 | I126: 0.747 | J126: 0.214 | K126: 4 | L126: 24.1543379 | M126: 10.1543379 | N126: 1.079452055 | O126: 0.07945205479 | P126: 2 | Q126: 6.915981735 | R126: 6.915981735 | S126: 0.02648401826 | T126: 0.02648401826 | U126: 0 | V126: 0 | W126: 0
B127: CL023 | C127: Citipower | D127: Urban | E127: 1336 | F127: 2.79546 | G127: 2.58704 | H127: 3.972 | I127: 0.621 | J127: 0.569 | K127: 4 | L127: 23.74476048 | M127: 9.36751497 | N127: 1.119011976 | O127: 0.09206586826 | P127: 1 | Q127: 21.73652695 | R127: 21.73652695 | S127: 0.09056886228 | T127: 0.09056886228 | U127: 0 | V127: 0 | W127: 0
B128: CL026 | C128: Citipower | D128: Urban | E128: 585 | F128: 0.31246 | G128: 1.155274 | H128: 4.092 | I128: 0.38 | J128: 0.018 | K128: 1 | L128: 14.0957265 | M128: 0 | N128: 1.006837607 | O128: 0 | P128: 1 | Q128: 0.6837606838 | R128: 0.6837606838 | S128: 0.008547008547 | T128: 0.008547008547 | U128: 0 | V128: 0 | W128: 0
B129: CL027 | C129: Citipower | D129: Urban | E129: 165 | F129: 0 | G129: 1.6012 | H129: 2.19 | I129: 0.185 | J129: 0 | K129: 1 | L129: 12.84242424 | M129: 0 | N129: 0.9878787879 | O129: 0 | P129: 0 | Q129: 0 | R129: 0 | S129: 0 | T129: 0 | U129: 0 | V129: 0 | W129: 0
B130: CL028 | C130: Citipower | D130: Urban | E130: 177 | F130: 0 | G130: 4.016164 | H130: 3.52 | I130: 0.31 | J130: 0.292 | K130: 1 | L130: 13.36723164 | M130: 0 | N130: 1.028248588 | O130: 0 | P130: 1 | Q130: 12.61016949 | R130: 12.61016949 | S130: 0.1016949153 | T130: 0.1016949153 | U130: 0 | V130: 0 | W130: 0
B131: CL033 | C131: Citipower | D131: Urban | E131: 1789 | F131: 1.75828 | G131: 1.32348 | H131: 2.888 | I131: 0.252 | J131: 0.098 | K131: 1 | L131: 13.23979877 | M131: 0.2325321409 | N131: 1.001676914 | O131: 0.001117942985 | P131: 3 | Q131: 5.159306875 | R131: 5.159306875 | S131: 0.01956400224 | T131: 0.01956400224 | U131: 0 | V131: 0 | W131: 0
B132: CL035 | C132: Citipower | D132: Urban | E132: 224 | F132: 0.28185 | G132: 1.188117 | H132: 2.71 | I132: 0.241 | J132: 0 | K132: 1 | L132: 13.52678571 | M132: 0.5848214286 | N132: 1 | O132: 0.004464285714 | P132: 0 | Q132: 0 | R132: 0 | S132: 0 | T132: 0 | U132: 0 | V132: 0 | W132: 0
B133: CL036 | C133: Citipower | D133: Urban | E133: 1694 | F133: 4.29417 | G133: 3.887897 | H133: 2.656 | I133: 0.328 | J133: 0.483 | K133: 5 | L133: 18.73553719 | M133: 5.873671783 | N133: 1.087957497 | O133: 0.09858323495 | P133: 6 | Q133: 27.58913813 | R133: 27.58913813 | S133: 0.07142857143 | T133: 0.07142857143 | U133: 0 | V133: 0 | W133: 0
B134: CL037 | C134: Citipower | D134: Urban | E134: 1530 | F134: 2.05607 | G134: 3.139274 | H134: 3.305 | I134: 0.35 | J134: 0.016 | K134: 2 | L134: 16.0875817 | M134: 4.267973856 | N134: 1.003267974 | O134: 0.01830065359 | P134: 1 | Q134: 0.7320261438 | R134: 0.7320261438 | S134: 0.004575163399 | T134: 0.004575163399 | U134: 0 | V134: 0 | W134: 0
B135: CL038 | C135: Citipower | D135: Urban | E135: 1274 | F135: 2.51948 | G135: 5.25177 | H135: 5.95 | I135: 0.83 | J135: 0.026 | K135: 3 | L135: 21.1844584 | M135: 9.184458399 | N135: 1.050235479 | O135: 0.05023547881 | P135: 2 | Q135: 0.6640502355 | R135: 0.6640502355 | S135: 0.003139717425 | T135: 0.003139717425 | U135: 0 | V135: 0 | W135: 0
B136: CW004 | C136: Citipower | D136: Urban | E136: 1501 | F136: 0.2673 | G136: 2.765553 | H136: 1.489 | I136: 0.006 | J136: 0.002 | K136: 1 | L136: 0.6215856096 | M136: 0.6215856096 | N136: 0.005996002665 | O136: 0.005996002665 | P136: 1 | Q136: 0.2151898734 | R136: 0.2151898734 | S136: 0.001332445037 | T136: 0.001332445037 | U136: 0 | V136: 0 | W136: 0
B137: CW005 | C137: Citipower | D137: Urban | E137: 0 | F137: 0 | G137: 0 | H137: 3.58 | I137: 0 | J137: 0 | K137: 0 | L137: 0 | M137: 0 | N137: 0 | O137: 0 | P137: 0 | Q137: 0 | R137: 0 | S137: 0 | T137: 0 | U137: 0 | V137: 0 | W137: 0
B138: CW006 | C138: Citipower | D138: Urban | E138: 312 | F138: 0 | G138: 2.232314 | H138: 1.557 | I138: 0 | J138: 0.136 | K138: 0 | L138: 0 | M138: 0 | N138: 0 | O138: 0 | P138: 1 | Q138: 13.30448718 | R138: 13.30448718 | S138: 0.02243589744 | T138: 0.02243589744 | U138: 0 | V138: 0 | W138: 0
B139: CW007 | C139: Citipower | D139: Urban | E139: 1377 | F139: 0.76669 | G139: 2.48911 | H139: 3.217 | I139: 0.151 | J139: 0.012 | K139: 2 | L139: 7.135076253 | M139: 7.135076253 | N139: 0.08859840232 | O139: 0.08859840232 | P139: 1 | Q139: 0.5468409586 | R139: 0.5468409586 | S139: 0.007262164125 | T139: 0.007262164125 | U139: 0 | V139: 0 | W139: 0
B140: CW008 | C140: Citipower | D140: Urban | E140: 373 | F140: 0.37303 | G140: 0.628977 | H140: 1.309 | I140: 0.619 | J140: 0 | K140: 2 | L140: 71.77479893 | M140: 71.77479893 | N140: 0.2680965147 | O140: 0.2680965147 | P140: 0 | Q140: 0 | R140: 0 | S140: 0 | T140: 0 | U140: 0 | V140: 0 | W140: 0
B141: CW009 | C141: Citipower | D141: Urban | E141: 1200 | F141: 1.92016 | G141: 5.001393 | H141: 4.514 | I141: 0.141 | J141: 0 | K141: 5 | L141: 4.751666667 | M141: 4.751666667 | N141: 0.0525 | O141: 0.0525 | P141: 0 | Q141: 0 | R141: 0 | S141: 0 | T141: 0 | U141: 0 | V141: 0 | W141: 0
B142: CW011 | C142: Citipower | D142: Urban | E142: 1433 | F142: 0.00441 | G142: 3.937007 | H142: 1.84 | I142: 0.019 | J142: 0.168 | K142: 1 | L142: 1.552686671 | M142: 1.552686671 | N142: 0.00558269365 | O142: 0.00558269365 | P142: 3 | Q142: 13.83182135 | R142: 13.83182135 | S142: 0.04396371249 | T142: 0.04396371249 | U142: 0 | V142: 0 | W142: 0
B143: CW012 | C143: Citipower | D143: Urban | E143: 714 | F143: 0 | G143: 3.41835 | H143: 3.03 | I143: 2.507 | J143: 0.032 | K143: 5 | L143: 125.6358543 | M143: 125.6358543 | N143: 3.065826331 | O143: 3.065826331 | P143: 1 | Q143: 1.593837535 | R143: 1.593837535 | S143: 0.002801120448 | T143: 0.002801120448 | U143: 0 | V143: 0 | W143: 0
B144: CW013 | C144: Citipower | D144: Urban | E144: 525 | F144: 0.42014 | G144: 1.243747 | H144: 3.485 | I144: 0.702 | J144: 0 | K144: 1 | L144: 30.58666667 | M144: 30.58666667 | N144: 0.9866666667 | O144: 0.9866666667 | P144: 0 | Q144: 0 | R144: 0 | S144: 0 | T144: 0 | U144: 0 | V144: 0 | W144: 0
B145: CW014 | C145: Citipower | D145: Urban | E145: 1597 | F145: 0.17662 | G145: 3.25403 | H145: 2.369 | I145: 0.437 | J145: 0.77 | K145: 4 | L145: 27.97620539 | M145: 27.97620539 | N145: 0.09142141515 | O145: 0.09142141515 | P145: 1 | Q145: 49.31747026 | R145: 49.31747026 | S145: 0.1120851597 | T145: 0.1120851597 | U145: 0 | V145: 0 | W145: 0
B146: CW015 | C146: Citipower | D146: Urban | E146: 949 | F146: 0 | G146: 3.19343 | H146: 3.105 | I146: 0.012 | J146: 2.453 | K146: 2 | L146: 0.5753424658 | M146: 0.5753424658 | N146: 0.009483667018 | O146: 0.009483667018 | P146: 3 | Q146: 119.943098 | R146: 119.943098 | S146: 0.2750263435 | T146: 0.2750263435 | U146: 0 | V146: 0 | W146: 0
B147: DA004 | C147: Citipower | D147: Urban | E147: 16 | F147: 0.94308 | G147: 3.76048 | H147: 2.393 | I147: 0.2 | J147: 0.532 | K147: 0 | L147: 12.6875 | M147: 12.6875 | N147: 0.0625 | O147: 0.0625 | P147: 1 | Q147: 33.75 | R147: 33.75 | S147: 0.0625 | T147: 0.0625 | U147: 0 | V147: 0 | W147: 0
B148: DA006 | C148: Citipower | D148: Urban | E148: 311 | F148: 0 | G148: 4.33022 | H148: 1.296 | I148: 0 | J148: 0 | K148: 0 | L148: 0 | M148: 0 | N148: 0 | O148: 0 | P148: 0 | Q148: 0 | R148: 0 | S148: 0 | T148: 0 | U148: 0 | V148: 0 | W148: 0
B149: DA007 | C149: Citipower | D149: Urban | E149: 442 | F149: 0 | G149: 1.4385 | H149: 0 | I149: 0 | J149: 0 | K149: 0 | L149: 0 | M149: 0 | N149: 0 | O149: 0 | P149: 1 | Q149: 3.119909502 | R149: 3.119909502 | S149: 0.002262443439 | T149: 0.002262443439 | U149: 0 | V149: 0 | W149: 0
B150: DA008 | C150: Citipower | D150: Urban | E150: 1162 | F150: 0 | G150: 9.822044 | H150: 2.913 | I150: 0 | J150: 0.003 | K150: 0 | L150: 0 | M150: 0 | N150: 0 | O150: 0 | P150: 0 | Q150: 0.1351118761 | R150: 0.1351118761 | S150: 0.0008605851979 | T150: 0.0008605851979 | U150: 0 | V150: 0 | W150: 0
B151: DA009 | C151: Citipower | D151: Urban | E151: 22 | F151: 0 | G151: 2.55801 | H151: 3.487 | I151: 0 | J151: 0 | K151: 0 | L151: 0 | M151: 0 | N151: 0 | O151: 0 | P151: 0 | Q151: 0 | R151: 0 | S151: 0 | T151: 0 | U151: 0 | V151: 0 | W151: 0
B152: DA013 | C152: Citipower | D152: Urban | E152: 4 | F152: 0 | G152: 1.66278 | H152: 0.686 | I152: 0 | J152: 0 | K152: 0 | L152: 0 | M152: 0 | N152: 0 | O152: 0 | P152: 0 | Q152: 0 | R152: 0 | S152: 0 | T152: 0 | U152: 0 | V152: 0 | W152: 0
B153: DA015 | C153: Citipower | D153: Urban | E153: 2 | F153: 0 | G153: 4.37359 | H153: 0 | I153: 0 | J153: 0 | K153: 0 | L153: 0 | M153: 0 | N153: 0 | O153: 0 | P153: 0 | Q153: 0 | R153: 0 | S153: 0 | T153: 0 | U153: 0 | V153: 0 | W153: 0
B154: DA016 | C154: Citipower | D154: Urban | E154: 29 | F154: 0 | G154: 5.80177 | H154: 3.578 | I154: 0.265 | J154: 0 | K154: 0 | L154: 11.24137931 | M154: 11.24137931 | N154: 0.03448275862 | O154: 0.03448275862 | P154: 0 | Q154: 0 | R154: 0 | S154: 0 | T154: 0 | U154: 0 | V154: 0 | W154: 0
B155: DA020 | C155: Citipower | D155: Urban | E155: 43 | F155: 0 | G155: 5.551397 | H155: 3.144 | I155: 0.074 | J155: 0 | K155: 0 | L155: 3.581395349 | M155: 3.581395349 | N155: 0.02325581395 | O155: 0.02325581395 | P155: 0 | Q155: 0 | R155: 0 | S155: 0 | T155: 0 | U155: 0 | V155: 0 | W155: 0
B156: DA021 | C156: Citipower | D156: Urban | E156: 305 | F156: 0 | G156: 4.502936 | H156: 3.182 | I156: 0 | J156: 0.002 | K156: 0 | L156: 0 | M156: 0 | N156: 0 | O156: 0 | P156: 1 | Q156: 0.07868852459 | R156: 0.07868852459 | S156: 0.07868852459 | T156: 0.07868852459 | U156: 0 | V156: 0 | W156: 0
B157: DA022 | C157: Citipower | D157: Urban | E157: 253 | F157: 0.00282 | G157: 3.394386 | H157: 0 | I157: 0 | J157: 0 | K157: 0 | L157: 0 | M157: 0 | N157: 0 | O157: 0 | P157: 0 | Q157: 0 | R157: 0 | S157: 0 | T157: 0 | U157: 0 | V157: 0 | W157: 0
B158: DA026 | C158: Citipower | D158: Urban | E158: 38 | F158: 0 | G158: 4.37319 | H158: 3.748 | I158: 0 | J158: 0 | K158: 0 | L158: 0 | M158: 0 | N158: 0 | O158: 0 | P158: 0 | Q158: 0 | R158: 0 | S158: 0 | T158: 0 | U158: 0 | V158: 0 | W158: 0
B159: DA027 | C159: Citipower | D159: Urban | E159: 1 | F159: 0 | G159: 1.65242 | H159: 3.792 | I159: 0 | J159: 0 | K159: 0 | L159: 0 | M159: 0 | N159: 0 | O159: 0 | P159: 0 | Q159: 0 | R159: 0 | S159: 0 | T159: 0 | U159: 0 | V159: 0 | W159: 0
B160: DA028 | C160: Citipower | D160: Urban | E160: 44 | F160: 0 | G160: 5.30532 | H160: 1.486 | I160: 0 | J160: 0.481 | K160: 0 | L160: 0 | M160: 0 | N160: 0 | O160: 0 | P160: 2 | Q160: 49.11363636 | R160: 49.11363636 | S160: 0.1590909091 | T160: 0.1590909091 | U160: 0 | V160: 0 | W160: 0
B161: DA029 | C161: Citipower | D161: Urban | E161: 192 | F161: 0 | G161: 3.86182 | H161: 0 | I161: 0 | J161: 0 | K161: 2 | L161: 28.14583333 | M161: 28.14583333 | N161: 2.010416667 | O161: 2.010416667 | P161: 0 | Q161: 0 | R161: 0 | S161: 0 | T161: 0 | U161: 0 | V161: 0 | W161: 0
B162: DA030 | C162: Citipower | D162: Urban | E162: 22 | F162: 0 | G162: 3.18688 | H162: 3.395 | I162: 0 | J162: 0 | K162: 0 | L162: 0 | M162: 0 | N162: 0 | O162: 0 | P162: 0 | Q162: 0 | R162: 0 | S162: 0 | T162: 0 | U162: 0 | V162: 0 | W162: 0
B163: DLF002 | C163: Citipower | D163: CBD | E163: 13 | F163: 0 | G163: 6.05495 | H163: 7.016 | I163: 0 | J163: 0 | K163: 0 | L163: 0 | M163: 0 | N163: 0 | O163: 0 | P163: 0 | Q163: 0 | R163: 0 | S163: 0 | T163: 0 | U163: 0 | V163: 0 | W163: 0
B164: DLF003 | C164: Citipower | D164: Urban | E164: 1 | F164: 0 | G164: 4.69457 | H164: 2.85 | I164: 0 | J164: 0 | K164: 0 | L164: 0 | M164: 0 | N164: 0 | O164: 0 | P164: 0 | Q164: 0 | R164: 0 | S164: 0 | T164: 0 | U164: 0 | V164: 0 | W164: 0
B165: DLF063 | C165: Citipower | D165: CBD | E165: 23 | F165: 0 | G165: 5.2887 | H165: 2.596 | I165: 0 | J165: 0 | K165: 0 | L165: 0 | M165: 0 | N165: 0 | O165: 0 | P165: 0 | Q165: 0 | R165: 0 | S165: 0 | T165: 0 | U165: 0 | V165: 0 | W165: 0
B166: E021 | C166: Citipower | D166: Urban | E166: 0 | F166: 0 | G166: 0.81454 | H166: 0.115 | I166: 0 | J166: 0 | K166: 0 | L166: 0 | M166: 0 | N166: 0 | O166: 0 | P166: 0 | Q166: 0 | R166: 0 | S166: 0 | T166: 0 | U166: 0 | V166: 0 | W166: 0
B167: E021_E022 | C167: Citipower | D167: Urban | E167: 5 | F167: 0.34113 | G167: 1.41186 | H167: 0.185 | I167: 0 | J167: 0 | K167: 0 | L167: 0 | M167: 0 | N167: 0 | O167: 0 | P167: 0 | Q167: 0 | R167: 0 | S167: 0 | T167: 0 | U167: 0 | V167: 0 | W167: 0
B168: E022 | C168: Citipower | D168: Urban | E168: 0 | F168: 0.34113 | G168: 0.59732 | H168: 0.07 | I168: 0 | J168: 0 | K168: 0 | L168: 0 | M168: 0 | N168: 0 | O168: 0 | P168: 0 | Q168: 0 | R168: 0 | S168: 0 | T168: 0 | U168: 0 | V168: 0 | W168: 0
B169: E023 | C169: Citipower | D169: Urban | E169: 0 | F169: 0 | G169: 0.49777 | H169: 0 | I169: 0 | J169: 0 | K169: 0 | L169: 0 | M169: 0 | N169: 0 | O169: 0 | P169: 0 | Q169: 0 | R169: 0 | S169: 0 | T169: 0 | U169: 0 | V169: 0 | W169: 0
B170: E024 | C170: Citipower | D170: Urban | E170: 1 | F170: 0 | G170: 0.48504 | H170: 2.065 | I170: 0 | J170: 0 | K170: 0 | L170: 0 | M170: 0 | N170: 0 | O170: 0 | P170: 0 | Q170: 0 | R170: 0 | S170: 0 | T170: 0 | U170: 0 | V170: 0 | W170: 0
B171: E027 | C171: Citipower | D171: Urban | E171: 1 | F171: 0 | G171: 0.948663 | H171: 0.258 | I171: 0 | J171: 0 | K171: 0 | L171: 0 | M171: 0 | N171: 0 | O171: 0 | P171: 0 | Q171: 0 | R171: 0 | S171: 0 | T171: 0 | U171: 0 | V171: 0 | W171: 0
B172: E029 | C172: Citipower | D172: Urban | E172: 9 | F172: 0 | G172: 1.291224 | H172: 1.082 | I172: 0 | J172: 0.539 | K172: 0 | L172: 0 | M172: 0 | N172: 0 | O172: 0 | P172: 2 | Q172: 75.66666667 | R172: 75.66666667 | S172: 0.2222222222 | T172: 0.2222222222 | U172: 0 | V172: 0 | W172: 0
B173: E032 | C173: Citipower | D173: Urban | E173: 17 | F173: 0.15515 | G173: 2.28566 | H173: 0.297 | I173: 0 | J173: 0.105 | K173: 0 | L173: 0 | M173: 0 | N173: 0 | O173: 0 | P173: 1 | Q173: 53.64705882 | R173: 53.64705882 | S173: 0.1764705882 | T173: 0.1764705882 | U173: 0 | V173: 0 | W173: 0
B174: E033 | C174: Citipower | D174: Urban | E174: 49 | F174: 0.44639 | G174: 0.72783 | H174: 1.072 | I174: 0.169 | J174: 0 | K174: 0 | L174: 23.87755102 | M174: 23.87755102 | N174: 0.02040816327 | O174: 0.02040816327 | P174: 0 | Q174: 0 | R174: 0 | S174: 0 | T174: 0 | U174: 0 | V174: 0 | W174: 0
B175: E035 | C175: Citipower | D175: Urban | E175: 0 | F175: 0.09018 | G175: 0.14972 | H175: 0 | I175: 0 | J175: 0 | K175: 0 | L175: 0 | M175: 0 | N175: 0 | O175: 0 | P175: 0 | Q175: 0 | R175: 0 | S175: 0 | T175: 0 | U175: 0 | V175: 0 | W175: 0
B176: EL005 | C176: Citipower | D176: Urban | E176: 0 | F176: 0.0005 | G176: 2.99657 | H176: 0 | I176: 0 | J176: 0 | K176: 0 | L176: 0 | M176: 0 | N176: 0 | O176: 0 | P176: 0 | Q176: 0 | R176: 0 | S176: 0 | T176: 0 | U176: 0 | V176: 0 | W176: 0
B177: EL009 | C177: Citipower | D177: Urban | E177: 75 | F177: 1.1337 | G177: 1.45773 | H177: 0 | I177: 0 | J177: 0 | K177: 1 | L177: 58.77333333 | M177: 58.77333333 | N177: 1.013333333 | O177: 1.013333333 | P177: 1 | Q177: 64.42666667 | R177: 64.42666667 | S177: 0.1066666667 | T177: 0.1066666667 | U177: 0 | V177: 0 | W177: 0
B178: EL011 | C178: Citipower | D178: Urban | E178: 996 | F178: 2.14391 | G178: 1.34749 | H178: 0 | I178: 0 | J178: 0 | K178: 2 | L178: 77.77208835 | M178: 77.77208835 | N178: 1.075301205 | O178: 1.075301205 | P178: 1 | Q178: 16.62650602 | R178: 16.62650602 | S178: 0.06927710843 | T178: 0.06927710843 | U178: 0 | V178: 0 | W178: 0
B179: EW001 | C179: Citipower | D179: Urban | E179: 0 | F179: 0 | G179: 2.71608 | H179: 0 | I179: 0 | J179: 0 | K179: 0 | L179: 0 | M179: 0 | N179: 0 | O179: 0 | P179: 0 | Q179: 0 | R179: 0 | S179: 0 | T179: 0 | U179: 0 | V179: 0 | W179: 0
B180: EW009 | C180: Citipower | D180: Urban | E180: 1 | F180: 0 | G180: 1.9881 | H180: 0 | I180: 0 | J180: 0 | K180: 0 | L180: 0 | M180: 0 | N180: 0 | O180: 0 | P180: 0 | Q180: 0 | R180: 0 | S180: 0 | T180: 0 | U180: 1 | V180: 1 | W180: 1
B181: EW012 | C181: Citipower | D181: Urban | E181: 0 | F181: 0 | G181: 2.22855 | H181: 0 | I181: 0 | J181: 0 | K181: 0 | L181: 0 | M181: 0 | N181: 0 | O181: 0 | P181: 0 | Q181: 0 | R181: 0 | S181: 0 | T181: 0 | U181: 0 | V181: 0 | W181: 0
B182: F026 | C182: Citipower | D182: Urban | E182: 450 | F182: 0.15431 | G182: 1.70694 | H182: 1.131 | I182: 0.043 | J182: 0.09 | K182: 2 | L182: 5.824444444 | M182: 5.824444444 | N182: 0.03555555556 | O182: 0.03555555556 | P182: 2 | Q182: 12.05555556 | R182: 12.05555556 | S182: 0.03111111111 | T182: 0.03111111111 | U182: 0 | V182: 0 | W182: 0
B183: F027 | C183: Citipower | D183: Urban | E183: 1148 | F183: 0.00029 | G183: 3.8869 | H183: 1.609 | I183: 0.09 | J183: 0 | K183: 3 | L183: 8.533101045 | M183: 8.533101045 | N183: 0.100174216 | O183: 0.100174216 | P183: 0 | Q183: 0 | R183: 0 | S183: 0 | T183: 0 | U183: 0 | V183: 0 | W183: 0
B184: F028 | C184: Citipower | D184: Urban | E184: 1217 | F184: 1.8707 | G184: 0.92079 | H184: 1.513 | I184: 0.911 | J184: 0 | K184: 2 | L184: 91.44617913 | M184: 91.37633525 | N184: 1.011503698 | O184: 1.009860312 | P184: 0 | Q184: 0 | R184: 0 | S184: 0 | T184: 0 | U184: 0 | V184: 0 | W184: 0
B185: F029 | C185: Citipower | D185: Urban | E185: 569 | F185: 2.09674 | G185: 0.46671 | H185: 1.129 | I185: 0.002 | J185: 0 | K185: 0 | L185: 0.2934973638 | M185: 0.2934973638 | N185: 0.001757469244 | O185: 0.001757469244 | P185: 0 | Q185: 0 | R185: 0 | S185: 0 | T185: 0 | U185: 0 | V185: 0 | W185: 0
B186: F030 | C186: Citipower | D186: Urban | E186: 1 | F186: 0 | G186: 0.6191 | H186: 0.38 | I186: 0 | J186: 0 | K186: 0 | L186: 0 | M186: 0 | N186: 0 | O186: 0 | P186: 0 | Q186: 0 | R186: 0 | S186: 0 | T186: 0 | U186: 0 | V186: 0 | W186: 0
B187: F032 | C187: Citipower | D187: Urban | E187: 382 | F187: 1.50862 | G187: 0.17336 | H187: 0.711 | I187: 0 | J187: 0 | K187: 0 | L187: 0 | M187: 0 | N187: 0 | O187: 0 | P187: 0 | Q187: 0 | R187: 0 | S187: 0 | T187: 0 | U187: 0 | V187: 0 | W187: 0
B188: F033 | C188: Citipower | D188: Urban | E188: 1394 | F188: 0.3241 | G188: 3.996743 | H188: 1.667 | I188: 0.077 | J188: 0 | K188: 1 | L188: 7.030129125 | M188: 7.030129125 | N188: 0.03586800574 | O188: 0.03586800574 | P188: 0 | Q188: 0 | R188: 0 | S188: 0 | T188: 0 | U188: 0 | V188: 0 | W188: 0
B189: F034 | C189: Citipower | D189: Urban | E189: 1272 | F189: 1.12739 | G189: 1.74157 | H189: 1.656 | I189: 0.023 | J189: 0 | K189: 2 | L189: 2.100628931 | M189: 2.100628931 | N189: 0.02830188679 | O189: 0.02830188679 | P189: 0 | Q189: 0 | R189: 0 | S189: 0 | T189: 0 | U189: 0 | V189: 0 | W189: 0
B190: F035 | C190: Citipower | D190: Urban | E190: 590 | F190: 0.90822 | G190: 2.532467 | H190: 1.388 | I190: 0 | J190: 0.259 | K190: 0 | L190: 0 | M190: 0 | N190: 0 | O190: 0 | P190: 3 | Q190: 28.27966102 | R190: 28.27966102 | S190: 0.07627118644 | T190: 0.07627118644 | U190: 0 | V190: 0 | W190: 0
B191: F037 | C191: Citipower | D191: Urban | E191: 1399 | F191: 1.53142 | G191: 1.0119 | H191: 2.228 | I191: 0.103 | J191: 0 | K191: 3 | L191: 7.038598999 | M191: 7.038598999 | N191: 0.03073624017 | O191: 0.03073624017 | P191: 0 | Q191: 0 | R191: 0 | S191: 0 | T191: 0 | U191: 0 | V191: 0 | W191: 0
B192: FB001 | C192: Citipower | D192: CBD | E192: 2 | F192: 0 | G192: 0.134993 | H192: 2.988 | I192: 0 | J192: 0 | K192: 0 | L192: 0 | M192: 0 | N192: 0 | O192: 0 | P192: 0 | Q192: 0 | R192: 0 | S192: 0 | T192: 0 | U192: 0 | V192: 0 | W192: 0
B193: FB002 | C193: Citipower | D193: Urban | E193: 1 | F193: 0 | G193: 1.49378 | H193: 0.085 | I193: 0 | J193: 0 | K193: 0 | L193: 0 | M193: 0 | N193: 0 | O193: 0 | P193: 0 | Q193: 0 | R193: 0 | S193: 0 | T193: 0 | U193: 0 | V193: 0 | W193: 0
B194: FB004 | C194: Citipower | D194: Urban | E194: 1 | F194: 0.01744 | G194: 1.17861 | H194: 3.374 | I194: 0 | J194: 0 | K194: 0 | L194: 0 | M194: 0 | N194: 0 | O194: 0 | P194: 0 | Q194: 0 | R194: 0 | S194: 0 | T194: 0 | U194: 0 | V194: 0 | W194: 0
B195: FB005 | C195: Citipower | D195: Urban | E195: 91 | F195: 0 | G195: 1.97279 | H195: 1.928 | I195: 0 | J195: 0 | K195: 0 | L195: 0 | M195: 0 | N195: 0 | O195: 0 | P195: 0 | Q195: 0 | R195: 0 | S195: 0 | T195: 0 | U195: 0 | V195: 0 | W195: 0
B196: FB006 | C196: Citipower | D196: Urban | E196: 1 | F196: 0 | G196: 0.29308 | H196: 2.382 | I196: 0 | J196: 0 | K196: 0 | L196: 0 | M196: 0 | N196: 0 | O196: 0 | P196: 0 | Q196: 0 | R196: 0 | S196: 0 | T196: 0 | U196: 0 | V196: 0 | W196: 0
B197: FB009 | C197: Citipower | D197: Urban | E197: 1 | F197: 0 | G197: 0.175126 | H197: 2.862 | I197: 0 | J197: 0 | K197: 0 | L197: 0 | M197: 0 | N197: 0 | O197: 0 | P197: 0 | Q197: 0 | R197: 0 | S197: 0 | T197: 0 | U197: 0 | V197: 0 | W197: 0
B198: FB010 | C198: Citipower | D198: CBD | E198: 2 | F198: 0 | G198: 0.63327 | H198: 1.57 | I198: 0 | J198: 0 | K198: 0 | L198: 0 | M198: 0 | N198: 0 | O198: 0 | P198: 0 | Q198: 0 | R198: 0 | S198: 0 | T198: 0 | U198: 0 | V198: 0 | W198: 0
B199: FB011 | C199: Citipower | D199: Urban | E199: 66 | F199: 0 | G199: 2.0227 | H199: 1.283 | I199: 0 | J199: 0 | K199: 0 | L199: 0 | M199: 0 | N199: 0 | O199: 0 | P199: 0 | Q199: 0 | R199: 0 | S199: 0 | T199: 0 | U199: 0 | V199: 0 | W199: 0
B200: FB013 | C200: Citipower | D200: CBD | E200: 2 | F200: 0 | G200: 1.4422 | H200: 0.137 | I200: 0 | J200: 0 | K200: 0 | L200: 0 | M200: 0 | N200: 0 | O200: 0 | P200: 0 | Q200: 0 | R200: 0 | S200: 0 | T200: 0 | U200: 0 | V200: 0 | W200: 0
B201: FB014 | C201: Citipower | D201: Urban | E201: 53 | F201: 1.11064 | G201: 7.077277 | H201: 1.346 | I201: 1.296 | J201: 0.192 | K201: 1 | L201: 146.1132075 | M201: 146.1132075 | N201: 1.037735849 | O201: 1.037735849 | P201: 1 | Q201: 21.60377358 | R201: 21.60377358 | S201: 0.03773584906 | T201: 0.03773584906 | U201: 0 | V201: 0 | W201: 0
B202: FB015 | C202: Citipower | D202: CBD | E202: 1 | F202: 0.91435 | G202: 0.40079 | H202: 3.628 | I202: 0 | J202: 0 | K202: 0 | L202: 0 | M202: 0 | N202: 0 | O202: 0 | P202: 0 | Q202: 0 | R202: 0 | S202: 0 | T202: 0 | U202: 0 | V202: 0 | W202: 0
B203: FB018 | C203: Citipower | D203: CBD | E203: 1 | F203: 0 | G203: 1.30029 | H203: 1.186 | I203: 0 | J203: 3.233 | K203: 0 | L203: 0 | M203: 0 | N203: 0 | O203: 0 | P203: 1 | Q203: 414 | R203: 414 | S203: 1 | T203: 1 | U203: 0 | V203: 0 | W203: 0
B204: FB019 | C204: Citipower | D204: CBD | E204: 2 | F204: 0 | G204: 1.03261 | H204: 5.89 | I204: 0 | J204: 0 | K204: 0 | L204: 0 | M204: 0 | N204: 0 | O204: 0 | P204: 0 | Q204: 0 | R204: 0 | S204: 0 | T204: 0 | U204: 0 | V204: 0 | W204: 0
... 481 more rows

Sheet 3.6.9 Network-reliability
B1: =(LOOKUP(dms_Model,dms_Model_List,dms_Worksheet_List)) -> ANNUAL REPORTING STATEMENT
B2: =dms_TradingName -> CitiPower
B3: =CONCATENATE("Annual Reporting RIN Response ",CRY) -> Annual Reporting RIN Response 2016
B4: 3.6 QUALITY OF SERVICES
B7: 3.6.9 - NETWORK FEEDER RELIABILITY - PLANNED OUTAGES
C8: =CRY -> 2016
B9: 3.6.9.1 - PLANNED MINUTES OFF SUPPLY (SAIDI)
B10: =INDEX(dms_FeederName_1,MATCH(dms_TradingName,dms_TradingName_List)) -> CBD | C10: 8.831758387
B11: =INDEX(dms_FeederName_2,MATCH(dms_TradingName,dms_TradingName_List)) -> Urban | C11: 13.97127087
B12: =INDEX(dms_FeederName_3,MATCH(dms_TradingName,dms_TradingName_List)) -> Short rural | C12: 0
B13: =INDEX(dms_FeederName_4,MATCH(dms_TradingName,dms_TradingName_List)) -> Long rural | C13: 0
B14: =IF((INDEX(dms_FeederName_5,MATCH(dms_TradingName,dms_TradingName_List))=0),"",(INDEX(dms_FeederName_5,MATCH(dms_TradingName,dms_TradingName_List)))) -> 
C16: =CRY -> 2016
B17: 3.6.9.2 - PLANNED INTERRUPTIONS TO SUPPLY (SAIFI)
B18: =INDEX(dms_FeederName_1,MATCH(dms_TradingName,dms_TradingName_List)) -> CBD | C18: 0.02595261566
B19: =INDEX(dms_FeederName_2,MATCH(dms_TradingName,dms_TradingName_List)) -> Urban | C19: 0.05097103639
B20: =INDEX(dms_FeederName_3,MATCH(dms_TradingName,dms_TradingName_List)) -> Short rural | C20: 0
B21: =INDEX(dms_FeederName_4,MATCH(dms_TradingName,dms_TradingName_List)) -> Long rural | C21: 0
B22: =IF((INDEX(dms_FeederName_5,MATCH(dms_TradingName,dms_TradingName_List))=0),"",(INDEX(dms_FeederName_5,MATCH(dms_TradingName,dms_TradingName_List)))) -> 

Sheet 4.1 Public lighting
B1: =(LOOKUP(dms_Model,dms_Model_List,dms_Worksheet_List)) -> ANNUAL REPORTING STATEMENT
B2: =dms_TradingName -> CitiPower
B3: =CONCATENATE("Annual Reporting RIN Response ",CRY) -> Annual Reporting RIN Response 2016
B4: 4.1 PUBLIC LIGHTING
B6: Tables 4.1.1 - 4.1.3 deliberately omitted.
B8: 4.1.4 - PUBLIC LIGHTING METRICS BY TARIFF
C9: Number of Lights | D9: Public Lighting Revenue
B10: Tariff categories | C10: 0's | D10: $0's, nominal
B11: Category P LED High Output | C11: 104 | D11: 2210.96
B12: Category P LED Standard Output | C12: 5193 | D12: 132149.01
B13: Compact Fluoro 32W | C13: 648 | D13: 24410.3
B14: Compact Fluoro 42W | C14: 469 | D14: 18480.9
B15: Fluorescent 20 watt | C15: 58 | D15: 8546.36
B16: Fluorescent 40 watt | C16: 149 | D16: 18544.54
B17: Mercury vapour 125 watt | C17: 1050 | D17: 112500.05
B18: Mercury vapour 250 watt | C18: 489 | D18: 45815.58
B19: Mercury vapour 400 watt | C19: 206 | D19: 20568.11
B20: Mercury vapour 50 watt | C20: 92 | D20: 9230.61
B21: Mercury vapour 80 watt | C21: 3109 | D21: 209007.43
B22: Metal halide 100 watt | C22: 129 | D22: 22985.09
B23: Metal halide 1000 watt | C23: 2 | D23: 423.35
B24: Metal halide 150 watt | C24: 299 | D24: 85024.72
B25: Metal halide 250 watt | C25: 671 | D25: 86609.76
B26: Metal halide 400 watt | C26: 1212 | D26: 159619.34
B27: Metal halide 70 watt | C27: 1007 | D27: 143788.66
B28: Sodium high pressure 100 watt | C28: 346 | D28: 36157.32
B29: Sodium high pressure 150 watt | C29: 12704 | D29: 1315424.05
B30: Sodium high pressure 220 watt | C30: 1714 | D30: 183337.24
B31: Sodium high pressure 250 watt | C31: 5552.2 | D31: 578804.96
B32: Sodium high pressure 360 watt | C32: 185 | D32: 21682.82
B33: Sodium high pressure 400 watt | C33: 420 | D33: 47836.8
B34: Sodium high pressure 70 watt | C34: 321 | D34: 44189.35
B35: T5 2X14W | C35: 14031 | D35: 562764.23
B36: T5 2X24W | C36: 2360 | D36: 93957.61
B42: To enter further tariff categories - please insert new lines above this line.
B43: Total | C43: =SUM(C11:C41) -> 52520.2 | D43: =SUM(D11:D41) -> 3984069.15

Sheet 6.2 STPIS Reliability
B1: =(LOOKUP(dms_Model,dms_Model_List,dms_Worksheet_List)) -> ANNUAL REPORTING STATEMENT
B2: =dms_TradingName -> CitiPower
B3: =CONCATENATE("Annual Reporting RIN Response ",CRY) -> Annual Reporting RIN Response 2016
B4: 6.2 RELIABILITY AND CUSTOMER SERVICE PERFORMANCE
B6: Did the MAIFI parameter of the STPIS apply during the period? NB:This flag is set from the response on worksheet 3.6.8 Network feeders | D6: =dms_MAIFI_Flag -> Yes
B9: 6.2.1 - UNPLANNED MINUTES OFF SUPPLY (SAIDI)
D10: =CRY -> 2016
B11: Total sustained minutes off supply | C11: =INDEX(dms_FeederName_1,MATCH(dms_TradingName,dms_TradingName_List)) -> CBD | D11: 9.31
C12: =INDEX(dms_FeederName_2,MATCH(dms_TradingName,dms_TradingName_List)) -> Urban | D12: 33.77
C13: =INDEX(dms_FeederName_3,MATCH(dms_TradingName,dms_TradingName_List)) -> Short rural | D13: 0
C14: =INDEX(dms_FeederName_4,MATCH(dms_TradingName,dms_TradingName_List)) -> Long rural | D14: 0
C15: =IF((INDEX(dms_FeederName_5,MATCH(dms_TradingName,dms_TradingName_List))=0),"",(INDEX(dms_FeederName_5,MATCH(dms_TradingName,dms_TradingName_List)))) -> 
C16: Whole Network | D16: 29.38
B17: Total of excluded events* *see 3.3 of STPIS | C17: =INDEX(dms_FeederName_1,MATCH(dms_TradingName,dms_TradingName_List)) -> CBD | D17: 0
C18: =INDEX(dms_FeederName_2,MATCH(dms_TradingName,dms_TradingName_List)) -> Urban | D18: 5.95
C19: =INDEX(dms_FeederName_3,MATCH(dms_TradingName,dms_TradingName_List)) -> Short rural | D19: 0
C20: =INDEX(dms_FeederName_4,MATCH(dms_TradingName,dms_TradingName_List)) -> Long rural | D20: 0
C21: =IF((INDEX(dms_FeederName_5,MATCH(dms_TradingName,dms_TradingName_List))=0),"",(INDEX(dms_FeederName_5,MATCH(dms_TradingName,dms_TradingName_List)))) -> 
C22: Whole Network | D22: 4.88
B23: Total sustained minutes off supply after removing excluded events | C23: =INDEX(dms_FeederName_1,MATCH(dms_TradingName,dms_TradingName_List)) -> CBD | D23: 9.31
C24: =INDEX(dms_FeederName_2,MATCH(dms_TradingName,dms_TradingName_List)) -> Urban | D24: 27.82
C25: =INDEX(dms_FeederName_3,MATCH(dms_TradingName,dms_TradingName_List)) -> Short rural | D25: 0
C26: =INDEX(dms_FeederName_4,MATCH(dms_TradingName,dms_TradingName_List)) -> Long rural | D26: 0
C27: =IF((INDEX(dms_FeederName_5,MATCH(dms_TradingName,dms_TradingName_List))=0),"",(INDEX(dms_FeederName_5,MATCH(dms_TradingName,dms_TradingName_List)))) -> 
C28: Whole Network | D28: 24.5
B31: 6.2.2 - UNPLANNED INTERRUPTIONS TO SUPPLY (SAIFI)
D32: =CRY -> 2016
B33: Total sustained interruptions | C33: =INDEX(dms_FeederName_1,MATCH(dms_TradingName,dms_TradingName_List)) -> CBD | D33: 0.13
C34: =INDEX(dms_FeederName_2,MATCH(dms_TradingName,dms_TradingName_List)) -> Urban | D34: 0.5
C35: =INDEX(dms_FeederName_3,MATCH(dms_TradingName,dms_TradingName_List)) -> Short rural | D35: 0
C36: =INDEX(dms_FeederName_4,MATCH(dms_TradingName,dms_TradingName_List)) -> Long rural | D36: 0
C37: =IF((INDEX(dms_FeederName_5,MATCH(dms_TradingName,dms_TradingName_List))=0),"",(INDEX(dms_FeederName_5,MATCH(dms_TradingName,dms_TradingName_List)))) -> 
C38: Whole Network | D38: 0.44
B39: Total of excluded events* *see 3.3 of STPIS | C39: =INDEX(dms_FeederName_1,MATCH(dms_TradingName,dms_TradingName_List)) -> CBD | D39: 0
C40: =INDEX(dms_FeederName_2,MATCH(dms_TradingName,dms_TradingName_List)) -> Urban | D40: 0.09
C41: =INDEX(dms_FeederName_3,MATCH(dms_TradingName,dms_TradingName_List)) -> Short rural | D41: 0
C42: =INDEX(dms_FeederName_4,MATCH(dms_TradingName,dms_TradingName_List)) -> Long rural | D42: 0
C43: =IF((INDEX(dms_FeederName_5,MATCH(dms_TradingName,dms_TradingName_List))=0),"",(INDEX(dms_FeederName_5,MATCH(dms_TradingName,dms_TradingName_List)))) -> 
C44: Whole Network | D44: 0.07
B45: Total sustained interruptions after removing excluded events | C45: =INDEX(dms_FeederName_1,MATCH(dms_TradingName,dms_TradingName_List)) -> CBD | D45: 0.13
C46: =INDEX(dms_FeederName_2,MATCH(dms_TradingName,dms_TradingName_List)) -> Urban | D46: 0.41
C47: =INDEX(dms_FeederName_3,MATCH(dms_TradingName,dms_TradingName_List)) -> Short rural | D47: 0
C48: =INDEX(dms_FeederName_4,MATCH(dms_TradingName,dms_TradingName_List)) -> Long rural | D48: 0
C49: =IF((INDEX(dms_FeederName_5,MATCH(dms_TradingName,dms_TradingName_List))=0),"",(INDEX(dms_FeederName_5,MATCH(dms_TradingName,dms_TradingName_List)))) -> 
C50: Whole Network | D50: 0.36
B53: 6.2.3 - UNPLANNED MOMENTARY INTERRUPTIONS TO SUPPLY (MAIFI)
D54: =CRY -> 2016
B55: Total momentary interruptions | C55: =INDEX(dms_FeederName_1,MATCH(dms_TradingName,dms_TradingName_List)) -> CBD | D55: 0
C56: =INDEX(dms_FeederName_2,MATCH(dms_TradingName,dms_TradingName_List)) -> Urban | D56: 0.18
C57: =INDEX(dms_FeederName_3,MATCH(dms_TradingName,dms_TradingName_List)) -> Short rural | D57: 0
C58: =INDEX(dms_FeederName_4,MATCH(dms_TradingName,dms_TradingName_List)) -> Long rural | D58: 0
C59: =IF((INDEX(dms_FeederName_5,MATCH(dms_TradingName,dms_TradingName_List))=0),"",(INDEX(dms_FeederName_5,MATCH(dms_TradingName,dms_TradingName_List)))) -> 
C60: Whole Network | D60: 0.14
B61: Total of excluded events* *see 3.3 of STPIS | C61: =INDEX(dms_FeederName_1,MATCH(dms_TradingName,dms_TradingName_List)) -> CBD | D61: 0
C62: =INDEX(dms_FeederName_2,MATCH(dms_TradingName,dms_TradingName_List)) -> Urban | D62: 0
C63: =INDEX(dms_FeederName_3,MATCH(dms_TradingName,dms_TradingName_List)) -> Short rural | D63: 0
C64: =INDEX(dms_FeederName_4,MATCH(dms_TradingName,dms_TradingName_List)) -> Long rural | D64: 0
C65: =IF((INDEX(dms_FeederName_5,MATCH(dms_TradingName,dms_TradingName_List))=0),"",(INDEX(dms_FeederName_5,MATCH(dms_TradingName,dms_TradingName_List)))) -> 
C66: Whole Network | D66: 0
B67: Total momentary interruptions after removing excluded events | C67: =INDEX(dms_FeederName_1,MATCH(dms_TradingName,dms_TradingName_List)) -> CBD | D67: 0
C68: =INDEX(dms_FeederName_2,MATCH(dms_TradingName,dms_TradingName_List)) -> Urban | D68: 0.14
C69: =INDEX(dms_FeederName_3,MATCH(dms_TradingName,dms_TradingName_List)) -> Short rural | D69: 0
C70: =INDEX(dms_FeederName_4,MATCH(dms_TradingName,dms_TradingName_List)) -> Long rural | D70: 0
C71: =IF((INDEX(dms_FeederName_5,MATCH(dms_TradingName,dms_TradingName_List))=0),"",(INDEX(dms_FeederName_5,MATCH(dms_TradingName,dms_TradingName_List)))) -> 
C72: Whole Network | D72: 0.12
B75: 6.2.4 - DISTRIBUTION CUSTOMER NUMBERS
D76: =CRY -> 2016
B77: Customer numbers at the start of the period | C77: =INDEX(dms_FeederName_1,MATCH(dms_TradingName,dms_TradingName_List)) -> CBD | D77: 58793
C78: =INDEX(dms_FeederName_2,MATCH(dms_TradingName,dms_TradingName_List)) -> Urban | D78: 267594
C79: =INDEX(dms_FeederName_3,MATCH(dms_TradingName,dms_TradingName_List)) -> Short rural | D79: 0
C80: =INDEX(dms_FeederName_4,MATCH(dms_TradingName,dms_TradingName_List)) -> Long rural | D80: 0
C81: =IF((INDEX(dms_FeederName_5,MATCH(dms_TradingName,dms_TradingName_List))=0),"",(INDEX(dms_FeederName_5,MATCH(dms_TradingName,dms_TradingName_List)))) ->  | D81: 0
C82: Whole Network | D82: 326387
B83: Customer numbers at the end of the period | C83: =INDEX(dms_FeederName_1,MATCH(dms_TradingName,dms_TradingName_List)) -> CBD | D83: 58765
C84: =INDEX(dms_FeederName_2,MATCH(dms_TradingName,dms_TradingName_List)) -> Urban | D84: 269611
C85: =INDEX(dms_FeederName_3,MATCH(dms_TradingName,dms_TradingName_List)) -> Short rural | D85: 0
C86: =INDEX(dms_FeederName_4,MATCH(dms_TradingName,dms_TradingName_List)) -> Long rural | D86: 0
C87: =IF((INDEX(dms_FeederName_5,MATCH(dms_TradingName,dms_TradingName_List))=0),"",(INDEX(dms_FeederName_5,MATCH(dms_TradingName,dms_TradingName_List)))) ->  | D87: 0
C88: Whole Network | D88: 328376
B89: Average customer numbers | C89: =INDEX(dms_FeederName_1,MATCH(dms_TradingName,dms_TradingName_List)) -> CBD | D89: =ROUND(SUM(D77+D83)/2,0) -> 58779
C90: =INDEX(dms_FeederName_2,MATCH(dms_TradingName,dms_TradingName_List)) -> Urban | D90: =ROUND(SUM(D78+D84)/2,0) -> 268603
C91: =INDEX(dms_FeederName_3,MATCH(dms_TradingName,dms_TradingName_List)) -> Short rural | D91: =ROUND(SUM(D79+D85)/2,0) -> 0
C92: =INDEX(dms_FeederName_4,MATCH(dms_TradingName,dms_TradingName_List)) -> Long rural | D92: =ROUND(SUM(D80+D86)/2,0) -> 0
C93: =IF((INDEX(dms_FeederName_5,MATCH(dms_TradingName,dms_TradingName_List))=0),"",(INDEX(dms_FeederName_5,MATCH(dms_TradingName,dms_TradingName_List)))) ->  | D93: =ROUND(SUM(D81+D87)/2,0) -> 0
C94: Whole Network | D94: 327382

Sheet 6.6 STPIS Customer Service
B1: =(LOOKUP(dms_Model,dms_Model_List,dms_Worksheet_List)) -> ANNUAL REPORTING STATEMENT
B2: =dms_TradingName -> CitiPower
B3: =CONCATENATE("Annual Reporting RIN Response ",CRY) -> Annual Reporting RIN Response 2016
B4: 6.6 STPIS CUSTOMER SERVICE
B7: 6.6.1 - TELEPHONE ANSWERING
C8: Number of calls after removing excluded events | D8: Total number of calls
C9: =CRY -> 2016 | D9: =CRY -> 2016
B10: Number of calls received | C10: 30203 | D10: 31342
B11: Number of calls answered within 30 seconds | C11: 26449
B12: Percentage of calls answered within 30 seconds | C12: =C11/C10 -> 0.8757077112

Sheet 6.7 STPIS Daily Performance
B1: =(LOOKUP(dms_Model,dms_Model_List,dms_Worksheet_List)) -> ANNUAL REPORTING STATEMENT | I1: =CONCATENATE(IF(LEN(CRY)=4,"1-Jan-","1-Jul-"),LEFT(CRY,4)) -> 1-Jan-2016
B2: =dms_TradingName -> CitiPower
B3: =CONCATENATE("Annual Reporting RIN Response ",CRY) -> Annual Reporting RIN Response 2016
B4: 6.7 STPIS DAILY PERFORMANCE
B7: Did the MAIFI parameter of the STPIS apply during the period? This flag is set from the response on worksheet 3.6.8 Network feeders | G7: =dms_MAIFI_Flag -> Yes
B9: The excluded events to be removed from the data refer only to events listed in clause 3.3(a) of the STPIS, with respect to reliability data, and in clause 5.4 of the STPIS with respect to customer service parameters. *Customer service information must be reported as per the definitions in the STPIS, that is excluding: • calls to payment lines and automated interactive services • calls abandoned by the customer within 30 seconds of the call being queued for response by a human operator (where the time in which a telephone call is abandoned is not measured, then an estimate of the number of calls abandoned within 30 seconds will be determined by taking 20 per cent of all calls abandoned).
B11: 6.7.1 - DAILY PERFORMANCE DATA - UNPLANNED
B12: Date | C12: Customer service* | E12: MAIFI
C13: Number of calls received (after removing excluded events) | D13: Number of calls answered in 30 seconds (after removing excluded events) | E13: =INDEX(dms_FeederName_1,MATCH(dms_TradingName,dms_TradingName_List)) -> CBD | G13: =INDEX(dms_FeederName_2,MATCH(dms_TradingName,dms_TradingName_List)) -> Urban | I13: =INDEX(dms_FeederName_3,MATCH(dms_TradingName,dms_TradingName_List)) -> Short rural | K13: =INDEX(dms_FeederName_4,MATCH(dms_TradingName,dms_TradingName_List)) -> Long rural | M13: =IF((INDEX(dms_FeederName_5,MATCH(dms_TradingName,dms_TradingName_List))=0),"Network",(INDEX(dms_FeederName_5,MATCH(dms_TradingName,dms_TradingName_List)))) -> Network | O13: Network
E14: All events | F14: After removing excluded events | G14: All events | H14: After removing excluded events | I14: All events | J14: After removing excluded events | K14: All events | L14: After removing excluded events | M14: All events | N14: After removing excluded events | O14: All events | P14: After removing excluded events
B15: =CONCATENATE(IF(LEN(CRY)=4,"1-Jan-","1-Jul-"),LEFT(CRY,4)) -> 1-Jan-2016 | C15: 39 | D15: 38 | E15: 0 | F15: 0 | G15: 0 | H15: 0 | I15: 0 | J15: 0 | K15: 0 | L15: 0 | M15: 0 | N15: 0
B16: =B15+1 -> 2016-01-02 | C16: 55 | D16: 51 | E16: 0 | F16: 0 | G16: 0 | H16: 0 | I16: 0 | J16: 0 | K16: 0 | L16: 0 | M16: 0 | N16: 0
B17: 2016-01-03 | C17: 38 | D17: 32 | E17: 0 | F17: 0 | G17: 0 | H17: 0 | I17: 0 | J17: 0 | K17: 0 | L17: 0 | M17: 0 | N17: 0
B18: 2016-01-04 | C18: 89 | D18: 84 | E18: 0 | F18: 0 | G18: 0 | H18: 0 | I18: 0 | J18: 0 | K18: 0 | L18: 0 | M18: 0 | N18: 0
B19: 2016-01-05 | C19: 73 | D19: 70 | E19: 0 | F19: 0 | G19: 0 | H19: 0 | I19: 0 | J19: 0 | K19: 0 | L19: 0 | M19: 0 | N19: 0
B20: 2016-01-06 | C20: 75 | D20: 71 | E20: 0 | F20: 0 | G20: 0 | H20: 0 | I20: 0 | J20: 0 | K20: 0 | L20: 0 | M20: 0 | N20: 0
B21: 2016-01-07 | C21: 67 | D21: 62 | E21: 0 | F21: 0 | G21: 0 | H21: 0 | I21: 0 | J21: 0 | K21: 0 | L21: 0 | M21: 0 | N21: 0
B22: 2016-01-08 | C22: 50 | D22: 42 | E22: 0 | F22: 0 | G22: 0 | H22: 0 | I22: 0 | J22: 0 | K22: 0 | L22: 0 | M22: 0 | N22: 0
B23: 2016-01-09 | C23: 72 | D23: 72 | E23: 0 | F23: 0 | G23: 0 | H23: 0 | I23: 0 | J23: 0 | K23: 0 | L23: 0 | M23: 0 | N23: 0
B24: 2016-01-10 | C24: 46 | D24: 41 | E24: 0 | F24: 0 | G24: 0 | H24: 0 | I24: 0 | J24: 0 | K24: 0 | L24: 0 | M24: 0 | N24: 0
B25: 2016-01-11 | C25: 88 | D25: 80 | E25: 0 | F25: 0 | G25: 0 | H25: 0 | I25: 0 | J25: 0 | K25: 0 | L25: 0 | M25: 0 | N25: 0
B26: 2016-01-12 | C26: 75 | D26: 67 | E26: 0 | F26: 0 | G26: 0 | H26: 0 | I26: 0 | J26: 0 | K26: 0 | L26: 0 | M26: 0 | N26: 0
B27: 2016-01-13 | C27: 430 | D27: 258 | E27: 0 | F27: 0 | G27: 0.00834815879 | H27: 0.00834815879 | I27: 0 | J27: 0 | K27: 0 | L27: 0 | M27: 0.006848436737 | N27: 0.006848436737
B28: 2016-01-14 | C28: 179 | D28: 137 | E28: 0 | F28: 0 | G28: 0 | H28: 0 | I28: 0 | J28: 0 | K28: 0 | L28: 0 | M28: 0 | N28: 0
B29: 2016-01-15 | C29: 89 | D29: 81 | E29: 0 | F29: 0 | G29: 0 | H29: 0 | I29: 0 | J29: 0 | K29: 0 | L29: 0 | M29: 0 | N29: 0
B30: 2016-01-16 | C30: 41 | D30: 35 | E30: 0 | F30: 0 | G30: 0 | H30: 0 | I30: 0 | J30: 0 | K30: 0 | L30: 0 | M30: 0 | N30: 0
B31: 2016-01-17 | C31: 53 | D31: 45 | E31: 0 | F31: 0 | G31: 0 | H31: 0 | I31: 0 | J31: 0 | K31: 0 | L31: 0 | M31: 0 | N31: 0
B32: 2016-01-18 | C32: 101 | D32: 75 | E32: 0 | F32: 0 | G32: 0 | H32: 0 | I32: 0 | J32: 0 | K32: 0 | L32: 0 | M32: 0 | N32: 0
B33: 2016-01-19 | C33: 106 | D33: 96 | E33: 0 | F33: 0 | G33: 0 | H33: 0 | I33: 0 | J33: 0 | K33: 0 | L33: 0 | M33: 0 | N33: 0
B34: 2016-01-20 | C34: 122 | D34: 104 | E34: 0 | F34: 0 | G34: 0 | H34: 0 | I34: 0 | J34: 0 | K34: 0 | L34: 0 | M34: 0 | N34: 0
B35: 2016-01-21 | C35: 129 | D35: 103 | E35: 0 | F35: 0 | G35: 0 | H35: 0 | I35: 0 | J35: 0 | K35: 0 | L35: 0 | M35: 0 | N35: 0
B36: 2016-01-22 | C36: 123 | D36: 82 | E36: 0 | F36: 0 | G36: 0 | H36: 0 | I36: 0 | J36: 0 | K36: 0 | L36: 0 | M36: 0 | N36: 0
B37: 2016-01-23 | C37: 57 | D37: 41 | E37: 0 | F37: 0 | G37: 0 | H37: 0 | I37: 0 | J37: 0 | K37: 0 | L37: 0 | M37: 0 | N37: 0
B38: 2016-01-24 | C38: 32 | D38: 28 | E38: 0 | F38: 0 | G38: 0 | H38: 0 | I38: 0 | J38: 0 | K38: 0 | L38: 0 | M38: 0 | N38: 0
B39: 2016-01-25 | C39: 53 | D39: 51 | E39: 0 | F39: 0 | G39: 0 | H39: 0 | I39: 0 | J39: 0 | K39: 0 | L39: 0 | M39: 0 | N39: 0
B40: 2016-01-26 | C40: 49 | D40: 43 | E40: 0 | F40: 0 | G40: 0 | H40: 0 | I40: 0 | J40: 0 | K40: 0 | L40: 0 | M40: 0 | N40: 0
B41: 2016-01-27 | C41: 235 | D41: 149 | E41: 0 | F41: 0 | G41: 0 | H41: 0 | I41: 0 | J41: 0 | K41: 0 | L41: 0 | M41: 0 | N41: 0
B42: 2016-01-28 | C42: 124 | D42: 97 | E42: 0 | F42: 0 | G42: 0 | H42: 0 | I42: 0 | J42: 0 | K42: 0 | L42: 0 | M42: 0 | N42: 0
B43: 2016-01-29 | C43: 137 | D43: 104 | E43: 0 | F43: 0 | G43: 0 | H43: 0 | I43: 0 | J43: 0 | K43: 0 | L43: 0 | M43: 0 | N43: 0
B44: 2016-01-30 | C44: 71 | D44: 53 | E44: 0 | F44: 0 | G44: 0 | H44: 0 | I44: 0 | J44: 0 | K44: 0 | L44: 0 | M44: 0 | N44: 0
B45: 2016-01-31 | C45: 94 | D45: 54 | E45: 0 | F45: 0 | G45: 0 | H45: 0 | I45: 0 | J45: 0 | K45: 0 | L45: 0 | M45: 0 | N45: 0
B46: 2016-02-01 | C46: 92 | D46: 85 | E46: 0 | F46: 0 | G46: 0 | H46: 0 | I46: 0 | J46: 0 | K46: 0 | L46: 0 | M46: 0 | N46: 0
B47: 2016-02-02 | C47: 90 | D47: 82 | E47: 0 | F47: 0 | G47: 0 | H47: 0 | I47: 0 | J47: 0 | K47: 0 | L47: 0 | M47: 0 | N47: 0
B48: 2016-02-03 | C48: 79 | D48: 70 | E48: 0 | F48: 0 | G48: 0.0002270341891 | H48: 0.0002270341891 | I48: 0 | J48: 0 | K48: 0 | L48: 0 | M48: 0.000186248168 | N48: 0.000186248168
B49: 2016-02-04 | C49: 83 | D49: 77 | E49: 0 | F49: 0 | G49: 0 | H49: 0 | I49: 0 | J49: 0 | K49: 0 | L49: 0 | M49: 0 | N49: 0
B50: 2016-02-05 | C50: 135 | D50: 124 | E50: 0 | F50: 0 | G50: 0 | H50: 0 | I50: 0 | J50: 0 | K50: 0 | L50: 0 | M50: 0 | N50: 0
B51: 2016-02-06 | C51: 48 | D51: 46 | E51: 0 | F51: 0 | G51: 0 | H51: 0 | I51: 0 | J51: 0 | K51: 0 | L51: 0 | M51: 0 | N51: 0
B52: 2016-02-07 | C52: 35 | D52: 34 | E52: 0 | F52: 0 | G52: 0 | H52: 0 | I52: 0 | J52: 0 | K52: 0 | L52: 0 | M52: 0 | N52: 0
B53: 2016-02-08 | C53: 61 | D53: 60 | E53: 0 | F53: 0 | G53: 0 | H53: 0 | I53: 0 | J53: 0 | K53: 0 | L53: 0 | M53: 0 | N53: 0
B54: 2016-02-09 | C54: 74 | D54: 73 | E54: 0 | F54: 0 | G54: 0 | H54: 0 | I54: 0 | J54: 0 | K54: 0 | L54: 0 | M54: 0 | N54: 0
B55: 2016-02-10 | C55: 63 | D55: 60 | E55: 0 | F55: 0 | G55: 0 | H55: 0 | I55: 0 | J55: 0 | K55: 0 | L55: 0 | M55: 0 | N55: 0
B56: 2016-02-11 | C56: 92 | D56: 89 | E56: 0 | F56: 0 | G56: 0 | H56: 0 | I56: 0 | J56: 0 | K56: 0 | L56: 0 | M56: 0 | N56: 0
B57: 2016-02-12 | C57: 88 | D57: 82 | E57: 0 | F57: 0 | G57: 0 | H57: 0 | I57: 0 | J57: 0 | K57: 0 | L57: 0 | M57: 0 | N57: 0
B58: 2016-02-13 | C58: 68 | D58: 62 | E58: 0 | F58: 0 | G58: 0 | H58: 0 | I58: 0 | J58: 0 | K58: 0 | L58: 0 | M58: 0 | N58: 0
B59: 2016-02-14 | C59: 52 | D59: 50 | E59: 0 | F59: 0 | G59: 0.008854333376 | H59: 0.008854333376 | I59: 0 | J59: 0 | K59: 0 | L59: 0 | M59: 0.007263678554 | N59: 0.007263678554
B60: 2016-02-15 | C60: 83 | D60: 75 | E60: 0 | F60: 0 | G60: 0 | H60: 0 | I60: 0 | J60: 0 | K60: 0 | L60: 0 | M60: 0 | N60: 0
B61: 2016-02-16 | C61: 72 | D61: 72 | E61: 0 | F61: 0 | G61: 0 | H61: 0 | I61: 0 | J61: 0 | K61: 0 | L61: 0 | M61: 0 | N61: 0
B62: 2016-02-17 | C62: 89 | D62: 88 | E62: 0 | F62: 0 | G62: 0 | H62: 0 | I62: 0 | J62: 0 | K62: 0 | L62: 0 | M62: 0 | N62: 0
B63: 2016-02-18 | C63: 96 | D63: 93 | E63: 0 | F63: 0 | G63: 0 | H63: 0 | I63: 0 | J63: 0 | K63: 0 | L63: 0 | M63: 0 | N63: 0
B64: 2016-02-19 | C64: 88 | D64: 82 | E64: 0 | F64: 0 | G64: 0 | H64: 0 | I64: 0 | J64: 0 | K64: 0 | L64: 0 | M64: 0 | N64: 0
B65: 2016-02-20 | C65: 63 | D65: 59 | E65: 0 | F65: 0 | G65: 0 | H65: 0 | I65: 0 | J65: 0 | K65: 0 | L65: 0 | M65: 0 | N65: 0
B66: 2016-02-21 | C66: 52 | D66: 44 | E66: 0 | F66: 0 | G66: 0 | H66: 0 | I66: 0 | J66: 0 | K66: 0 | L66: 0 | M66: 0 | N66: 0
B67: 2016-02-22 | C67: 147 | D67: 114 | E67: 0 | F67: 0 | G67: 0 | H67: 0 | I67: 0 | J67: 0 | K67: 0 | L67: 0 | M67: 0 | N67: 0
B68: 2016-02-23 | C68: 202 | D68: 185 | E68: 0 | F68: 0 | G68: 0 | H68: 0 | I68: 0 | J68: 0 | K68: 0 | L68: 0 | M68: 0 | N68: 0
B69: 2016-02-24 | C69: 114 | D69: 107 | E69: 0 | F69: 0 | G69: 0 | H69: 0 | I69: 0 | J69: 0 | K69: 0 | L69: 0 | M69: 0 | N69: 0
B70: 2016-02-25 | C70: 121 | D70: 109 | E70: 0 | F70: 0 | G70: 0.0056795766 | H70: 0.0056795766 | I70: 0 | J70: 0 | K70: 0 | L70: 0 | M70: 0.00465925745 | N70: 0.00465925745
B71: 2016-02-26 | C71: 102 | D71: 97 | E71: 0 | F71: 0 | G71: 0.004354590185 | H71: 0.004354590185 | I71: 0 | J71: 0 | K71: 0 | L71: 0 | M71: 0.003572300928 | N71: 0.003572300928
B72: 2016-02-27 | C72: 61 | D72: 53 | E72: 0 | F72: 0 | G72: 0 | H72: 0 | I72: 0 | J72: 0 | K72: 0 | L72: 0 | M72: 0 | N72: 0
B73: 2016-02-28 | C73: 53 | D73: 50 | E73: 0 | F73: 0 | G73: 0 | H73: 0 | I73: 0 | J73: 0 | K73: 0 | L73: 0 | M73: 0 | N73: 0
B74: 2016-02-29 | C74: 79 | D74: 71 | E74: 0 | F74: 0 | G74: 0 | H74: 0 | I74: 0 | J74: 0 | K74: 0 | L74: 0 | M74: 0 | N74: 0
B75: 2016-03-01 | C75: 101 | D75: 99 | E75: 0 | F75: 0 | G75: 0 | H75: 0 | I75: 0 | J75: 0 | K75: 0 | L75: 0 | M75: 0 | N75: 0
B76: 2016-03-02 | C76: 105 | D76: 87 | E76: 0 | F76: 0 | G76: 0 | H76: 0 | I76: 0 | J76: 0 | K76: 0 | L76: 0 | M76: 0 | N76: 0
B77: 2016-03-03 | C77: 75 | D77: 69 | E77: 0 | F77: 0 | G77: 0 | H77: 0 | I77: 0 | J77: 0 | K77: 0 | L77: 0 | M77: 0 | N77: 0
B78: 2016-03-04 | C78: 121 | D78: 105 | E78: 0 | F78: 0 | G78: 0 | H78: 0 | I78: 0 | J78: 0 | K78: 0 | L78: 0 | M78: 0 | N78: 0
B79: 2016-03-05 | C79: 58 | D79: 47 | E79: 0 | F79: 0 | G79: 0 | H79: 0 | I79: 0 | J79: 0 | K79: 0 | L79: 0 | M79: 0 | N79: 0
B80: =B79+1 -> 2016-03-06 | C80: 30 | D80: 27 | E80: 0 | F80: 0 | G80: 0 | H80: 0 | I80: 0 | J80: 0 | K80: 0 | L80: 0 | M80: 0 | N80: 0
B81: 2016-03-07 | C81: 91 | D81: 78 | E81: 0 | F81: 0 | G81: 0 | H81: 0 | I81: 0 | J81: 0 | K81: 0 | L81: 0 | M81: 0 | N81: 0
B82: 2016-03-08 | C82: 331 | D82: 153 | E82: 0 | F82: 0 | G82: 0 | H82: 0 | I82: 0 | J82: 0 | K82: 0 | L82: 0 | M82: 0 | N82: 0
B83: 2016-03-09 | C83: 159 | D83: 109 | E83: 0 | F83: 0 | G83: 0 | H83: 0 | I83: 0 | J83: 0 | K83: 0 | L83: 0 | M83: 0 | N83: 0
B84: 2016-03-10 | C84: 221 | D84: 149 | E84: 0 | F84: 0 | G84: 0 | H84: 0 | I84: 0 | J84: 0 | K84: 0 | L84: 0 | M84: 0 | N84: 0
B85: 2016-03-11 | C85: 92 | D85: 67 | E85: 0 | F85: 0 | G85: 0 | H85: 0 | I85: 0 | J85: 0 | K85: 0 | L85: 0 | M85: 0 | N85: 0
B86: 2016-03-12 | C86: 80 | D86: 61 | E86: 0 | F86: 0 | G86: 0 | H86: 0 | I86: 0 | J86: 0 | K86: 0 | L86: 0 | M86: 0 | N86: 0
B87: 2016-03-13 | C87: 32 | D87: 31 | E87: 0 | F87: 0 | G87: 0 | H87: 0 | I87: 0 | J87: 0 | K87: 0 | L87: 0 | M87: 0 | N87: 0
B88: 2016-03-14 | C88: 33 | D88: 33 | E88: 0 | F88: 0 | G88: 0 | H88: 0 | I88: 0 | J88: 0 | K88: 0 | L88: 0 | M88: 0 | N88: 0
B89: 2016-03-15 | C89: 121 | D89: 103 | E89: 0 | F89: 0 | G89: 0 | H89: 0 | I89: 0 | J89: 0 | K89: 0 | L89: 0 | M89: 0 | N89: 0
B90: 2016-03-16 | C90: 70 | D90: 68 | E90: 0 | F90: 0 | G90: 0 | H90: 0 | I90: 0 | J90: 0 | K90: 0 | L90: 0 | M90: 0 | N90: 0
B91: 2016-03-17 | C91: 91 | D91: 82 | E91: 0 | F91: 0 | G91: 0 | H91: 0 | I91: 0 | J91: 0 | K91: 0 | L91: 0 | M91: 0 | N91: 0
B92: 2016-03-18 | C92: 244 | D92: 167 | E92: 0 | F92: 0 | G92: 0 | H92: 0 | I92: 0 | J92: 0 | K92: 0 | L92: 0 | M92: 0 | N92: 0
B93: 2016-03-19 | C93: 104 | D93: 90 | E93: 0 | F93: 0 | G93: 0 | H93: 0 | I93: 0 | J93: 0 | K93: 0 | L93: 0 | M93: 0 | N93: 0
B94: 2016-03-20 | C94: 31 | D94: 29 | E94: 0 | F94: 0 | G94: 0 | H94: 0 | I94: 0 | J94: 0 | K94: 0 | L94: 0 | M94: 0 | N94: 0
B95: 2016-03-21 | C95: 66 | D95: 58 | E95: 0 | F95: 0 | G95: 0 | H95: 0 | I95: 0 | J95: 0 | K95: 0 | L95: 0 | M95: 0 | N95: 0
B96: 2016-03-22 | C96: 92 | D96: 82 | E96: 0 | F96: 0 | G96: 0 | H96: 0 | I96: 0 | J96: 0 | K96: 0 | L96: 0 | M96: 0 | N96: 0
B97: 2016-03-23 | C97: 79 | D97: 65 | E97: 0 | F97: 0 | G97: 0 | H97: 0 | I97: 0 | J97: 0 | K97: 0 | L97: 0 | M97: 0 | N97: 0
B98: 2016-03-24 | C98: 80 | D98: 73 | E98: 0 | F98: 0 | G98: 0 | H98: 0 | I98: 0 | J98: 0 | K98: 0 | L98: 0 | M98: 0 | N98: 0
B99: 2016-03-25 | C99: 35 | D99: 30 | E99: 0 | F99: 0 | G99: 0 | H99: 0 | I99: 0 | J99: 0 | K99: 0 | L99: 0 | M99: 0 | N99: 0
B100: 2016-03-26 | C100: 26 | D100: 25 | E100: 0 | F100: 0 | G100: 0 | H100: 0 | I100: 0 | J100: 0 | K100: 0 | L100: 0 | M100: 0 | N100: 0
B101: 2016-03-27 | C101: 20 | D101: 20 | E101: 0 | F101: 0 | G101: 0 | H101: 0 | I101: 0 | J101: 0 | K101: 0 | L101: 0 | M101: 0 | N101: 0
B102: 2016-03-28 | C102: 22 | D102: 22 | E102: 0 | F102: 0 | G102: 0 | H102: 0 | I102: 0 | J102: 0 | K102: 0 | L102: 0 | M102: 0 | N102: 0
B103: 2016-03-29 | C103: 71 | D103: 68 | E103: 0 | F103: 0 | G103: 0 | H103: 0 | I103: 0 | J103: 0 | K103: 0 | L103: 0 | M103: 0 | N103: 0
B104: 2016-03-30 | C104: 58 | D104: 57 | E104: 0 | F104: 0 | G104: 0 | H104: 0 | I104: 0 | J104: 0 | K104: 0 | L104: 0 | M104: 0 | N104: 0
B105: 2016-03-31 | C105: 78 | D105: 71 | E105: 0 | F105: 0 | G105: 0 | H105: 0 | I105: 0 | J105: 0 | K105: 0 | L105: 0 | M105: 0 | N105: 0
B106: 2016-04-01 | C106: 72 | D106: 58 | E106: 0 | F106: 0 | G106: 0.008679405394 | H106: 0.008679405394 | I106: 0 | J106: 0 | K106: 0 | L106: 0 | M106: 0.007120175867 | N106: 0.007120175867
B107: 2016-04-02 | C107: 68 | D107: 62 | E107: 0 | F107: 0 | G107: 0 | H107: 0 | I107: 0 | J107: 0 | K107: 0 | L107: 0 | M107: 0 | N107: 0
B108: 2016-04-03 | C108: 28 | D108: 27 | E108: 0 | F108: 0 | G108: 0 | H108: 0 | I108: 0 | J108: 0 | K108: 0 | L108: 0 | M108: 0 | N108: 0
B109: 2016-04-04 | C109: 84 | D109: 70 | E109: 0 | F109: 0 | G109: 0.003777700032 | H109: 0.003777700032 | I109: 0 | J109: 0 | K109: 0 | L109: 0 | M109: 0.003099047386 | N109: 0.003099047386
B110: 2016-04-05 | C110: 100 | D110: 93 | E110: 0 | F110: 0 | G110: 0 | H110: 0 | I110: 0 | J110: 0 | K110: 0 | L110: 0 | M110: 0 | N110: 0
B111: 2016-04-06 | C111: 110 | D111: 94 | E111: 0 | F111: 0 | G111: 0 | H111: 0 | I111: 0 | J111: 0 | K111: 0 | L111: 0 | M111: 0 | N111: 0
B112: 2016-04-07 | C112: 91 | D112: 87 | E112: 0 | F112: 0 | G112: 0 | H112: 0 | I112: 0 | J112: 0 | K112: 0 | L112: 0 | M112: 0 | N112: 0
B113: 2016-04-08 | C113: 90 | D113: 86 | E113: 0 | F113: 0 | G113: 0 | H113: 0 | I113: 0 | J113: 0 | K113: 0 | L113: 0 | M113: 0 | N113: 0
B114: 2016-04-09 | C114: 39 | D114: 38 | E114: 0 | F114: 0 | G114: 0 | H114: 0 | I114: 0 | J114: 0 | K114: 0 | L114: 0 | M114: 0 | N114: 0
B115: 2016-04-10 | C115: 60 | D115: 57 | E115: 0 | F115: 0 | G115: 0 | H115: 0 | I115: 0 | J115: 0 | K115: 0 | L115: 0 | M115: 0 | N115: 0
B116: 2016-04-11 | C116: 71 | D116: 64 | E116: 0 | F116: 0 | G116: 0 | H116: 0 | I116: 0 | J116: 0 | K116: 0 | L116: 0 | M116: 0 | N116: 0
B117: 2016-04-12 | C117: 57 | D117: 49 | E117: 0 | F117: 0 | G117: 0 | H117: 0 | I117: 0 | J117: 0 | K117: 0 | L117: 0 | M117: 0 | N117: 0
B118: 2016-04-13 | C118: 89 | D118: 88 | E118: 0 | F118: 0 | G118: 0 | H118: 0 | I118: 0 | J118: 0 | K118: 0 | L118: 0 | M118: 0 | N118: 0
B119: 2016-04-14 | C119: 64 | D119: 61 | E119: 0 | F119: 0 | G119: 0 | H119: 0 | I119: 0 | J119: 0 | K119: 0 | L119: 0 | M119: 0 | N119: 0
B120: 2016-04-15 | C120: 56 | D120: 53 | E120: 0 | F120: 0 | G120: 0 | H120: 0 | I120: 0 | J120: 0 | K120: 0 | L120: 0 | M120: 0 | N120: 0
B121: 2016-04-16 | C121: 38 | D121: 36 | E121: 0 | F121: 0 | G121: 0 | H121: 0 | I121: 0 | J121: 0 | K121: 0 | L121: 0 | M121: 0 | N121: 0
B122: 2016-04-17 | C122: 35 | D122: 35 | E122: 0 | F122: 0 | G122: 0 | H122: 0 | I122: 0 | J122: 0 | K122: 0 | L122: 0 | M122: 0 | N122: 0
B123: 2016-04-18 | C123: 77 | D123: 70 | E123: 0 | F123: 0 | G123: 0.02048146136 | H123: 0.02048146136 | I123: 0 | J123: 0 | K123: 0 | L123: 0 | M123: 0.01680202736 | N123: 0.01680202736
B124: 2016-04-19 | C124: 81 | D124: 72 | E124: 0 | F124: 0 | G124: 0 | H124: 0 | I124: 0 | J124: 0 | K124: 0 | L124: 0 | M124: 0 | N124: 0
B125: 2016-04-20 | C125: 80 | D125: 64 | E125: 0 | F125: 0 | G125: 0 | H125: 0 | I125: 0 | J125: 0 | K125: 0 | L125: 0 | M125: 0 | N125: 0
B126: 2016-04-21 | C126: 66 | D126: 63 | E126: 0 | F126: 0 | G126: 0 | H126: 0 | I126: 0 | J126: 0 | K126: 0 | L126: 0 | M126: 0 | N126: 0
B127: 2016-04-22 | C127: 81 | D127: 81 | E127: 0 | F127: 0 | G127: 0 | H127: 0 | I127: 0 | J127: 0 | K127: 0 | L127: 0 | M127: 0 | N127: 0
B128: 2016-04-23 | C128: 61 | D128: 55 | E128: 0 | F128: 0 | G128: 0 | H128: 0 | I128: 0 | J128: 0 | K128: 0 | L128: 0 | M128: 0 | N128: 0
B129: 2016-04-24 | C129: 32 | D129: 30 | E129: 0 | F129: 0 | G129: 0 | H129: 0 | I129: 0 | J129: 0 | K129: 0 | L129: 0 | M129: 0 | N129: 0
B130: 2016-04-25 | C130: 22 | D130: 22 | E130: 0 | F130: 0 | G130: 0 | H130: 0 | I130: 0 | J130: 0 | K130: 0 | L130: 0 | M130: 0 | N130: 0
B131: 2016-04-26 | C131: 69 | D131: 67 | E131: 0 | F131: 0 | G131: 0 | H131: 0 | I131: 0 | J131: 0 | K131: 0 | L131: 0 | M131: 0 | N131: 0
B132: 2016-04-27 | C132: 88 | D132: 84 | E132: 0 | F132: 0 | G132: 0 | H132: 0 | I132: 0 | J132: 0 | K132: 0 | L132: 0 | M132: 0 | N132: 0
B133: 2016-04-28 | C133: 198 | D133: 108 | E133: 0 | F133: 0 | G133: 0 | H133: 0 | I133: 0 | J133: 0 | K133: 0 | L133: 0 | M133: 0 | N133: 0
B134: 2016-04-29 | C134: 101 | D134: 91 | E134: 0 | F134: 0 | G134: 0 | H134: 0 | I134: 0 | J134: 0 | K134: 0 | L134: 0 | M134: 0 | N134: 0
B135: 2016-04-30 | C135: 53 | D135: 50 | E135: 0 | F135: 0 | G135: 0 | H135: 0 | I135: 0 | J135: 0 | K135: 0 | L135: 0 | M135: 0 | N135: 0
B136: 2016-05-01 | C136: 121 | D136: 81 | E136: 0 | F136: 0 | G136: 0 | H136: 0 | I136: 0 | J136: 0 | K136: 0 | L136: 0 | M136: 0 | N136: 0
B137: 2016-05-02 | C137: 139 | D137: 115 | E137: 0 | F137: 0 | G137: 0 | H137: 0 | I137: 0 | J137: 0 | K137: 0 | L137: 0 | M137: 0 | N137: 0
B138: 2016-05-03 | C138: 162 | D138: 138 | E138: 0 | F138: 0 | G138: 0 | H138: 0 | I138: 0 | J138: 0 | K138: 0 | L138: 0 | M138: 0 | N138: 0
B139: 2016-05-04 | C139: 109 | D139: 91 | E139: 0 | F139: 0 | G139: 0 | H139: 0 | I139: 0 | J139: 0 | K139: 0 | L139: 0 | M139: 0 | N139: 0
B140: 2016-05-05 | C140: 67 | D140: 63 | E140: 0 | F140: 0 | G140: 0 | H140: 0 | I140: 0 | J140: 0 | K140: 0 | L140: 0 | M140: 0 | N140: 0
B141: 2016-05-06 | C141: 70 | D141: 68 | E141: 0 | F141: 0 | G141: 0 | H141: 0 | I141: 0 | J141: 0 | K141: 0 | L141: 0 | M141: 0 | N141: 0
B142: 2016-05-07 | C142: 59 | D142: 54 | E142: 0 | F142: 0 | G142: 0 | H142: 0 | I142: 0 | J142: 0 | K142: 0 | L142: 0 | M142: 0 | N142: 0
B143: 2016-05-08 | C143: 96 | D143: 92 | E143: 0 | F143: 0 | G143: 0 | H143: 0 | I143: 0 | J143: 0 | K143: 0 | L143: 0 | M143: 0 | N143: 0
B144: =B143+1 -> 2016-05-09 | C144: 131 | D144: 80 | E144: 0 | F144: 0 | G144: 0 | H144: 0 | I144: 0 | J144: 0 | K144: 0 | L144: 0 | M144: 0 | N144: 0
B145: 2016-05-10 | C145: 113 | D145: 89 | E145: 0 | F145: 0 | G145: 0 | H145: 0 | I145: 0 | J145: 0 | K145: 0 | L145: 0 | M145: 0 | N145: 0
B146: 2016-05-11 | C146: 94 | D146: 83 | E146: 0 | F146: 0 | G146: 0 | H146: 0 | I146: 0 | J146: 0 | K146: 0 | L146: 0 | M146: 0 | N146: 0
B147: 2016-05-12 | C147: 67 | D147: 64 | E147: 0 | F147: 0 | G147: 0 | H147: 0 | I147: 0 | J147: 0 | K147: 0 | L147: 0 | M147: 0 | N147: 0
B148: 2016-05-13 | C148: 99 | D148: 96 | E148: 0 | F148: 0 | G148: 0 | H148: 0 | I148: 0 | J148: 0 | K148: 0 | L148: 0 | M148: 0 | N148: 0
B149: 2016-05-14 | C149: 97 | D149: 76 | E149: 0 | F149: 0 | G149: 0 | H149: 0 | I149: 0 | J149: 0 | K149: 0 | L149: 0 | M149: 0 | N149: 0
B150: 2016-05-15 | C150: 30 | D150: 30 | E150: 0 | F150: 0 | G150: 0 | H150: 0 | I150: 0 | J150: 0 | K150: 0 | L150: 0 | M150: 0 | N150: 0
B151: 2016-05-16 | C151: 97 | D151: 85 | E151: 0 | F151: 0 | G151: 0 | H151: 0 | I151: 0 | J151: 0 | K151: 0 | L151: 0 | M151: 0 | N151: 0
B152: 2016-05-17 | C152: 65 | D152: 60 | E152: 0 | F152: 0 | G152: 0 | H152: 0 | I152: 0 | J152: 0 | K152: 0 | L152: 0 | M152: 0 | N152: 0
B153: 2016-05-18 | C153: 91 | D153: 85 | E153: 0 | F153: 0 | G153: 0 | H153: 0 | I153: 0 | J153: 0 | K153: 0 | L153: 0 | M153: 0 | N153: 0
B154: 2016-05-19 | C154: 118 | D154: 103 | E154: 0 | F154: 0 | G154: 0 | H154: 0 | I154: 0 | J154: 0 | K154: 0 | L154: 0 | M154: 0 | N154: 0
B155: 2016-05-20 | C155: 62 | D155: 59 | E155: 0 | F155: 0 | G155: 0 | H155: 0 | I155: 0 | J155: 0 | K155: 0 | L155: 0 | M155: 0 | N155: 0
B156: 2016-05-21 | C156: 37 | D156: 36 | E156: 0 | F156: 0 | G156: 0 | H156: 0 | I156: 0 | J156: 0 | K156: 0 | L156: 0 | M156: 0 | N156: 0
B157: 2016-05-22 | C157: 46 | D157: 44 | E157: 0 | F157: 0 | G157: 0 | H157: 0 | I157: 0 | J157: 0 | K157: 0 | L157: 0 | M157: 0 | N157: 0
B158: 2016-05-23 | C158: 83 | D158: 78 | E158: 0 | F158: 0 | G158: 0 | H158: 0 | I158: 0 | J158: 0 | K158: 0 | L158: 0 | M158: 0 | N158: 0
B159: 2016-05-24 | C159: 88 | D159: 80 | E159: 0 | F159: 0 | G159: 0 | H159: 0 | I159: 0 | J159: 0 | K159: 0 | L159: 0 | M159: 0 | N159: 0
B160: 2016-05-25 | C160: 94 | D160: 75 | E160: 0 | F160: 0 | G160: 0 | H160: 0 | I160: 0 | J160: 0 | K160: 0 | L160: 0 | M160: 0 | N160: 0
B161: 2016-05-26 | C161: 114 | D161: 89 | E161: 0 | F161: 0 | G161: 0 | H161: 0 | I161: 0 | J161: 0 | K161: 0 | L161: 0 | M161: 0 | N161: 0
B162: 2016-05-27 | C162: 64 | D162: 60 | E162: 0 | F162: 0 | G162: 0 | H162: 0 | I162: 0 | J162: 0 | K162: 0 | L162: 0 | M162: 0 | N162: 0
B163: 2016-05-28 | C163: 69 | D163: 62 | E163: 0 | F163: 0 | G163: 0 | H163: 0 | I163: 0 | J163: 0 | K163: 0 | L163: 0 | M163: 0 | N163: 0
B164: 2016-05-29 | C164: 42 | D164: 34 | E164: 0 | F164: 0 | G164: 0 | H164: 0 | I164: 0 | J164: 0 | K164: 0 | L164: 0 | M164: 0 | N164: 0
B165: 2016-05-30 | C165: 100 | D165: 90 | E165: 0 | F165: 0 | G165: 0 | H165: 0 | I165: 0 | J165: 0 | K165: 0 | L165: 0 | M165: 0 | N165: 0
B166: 2016-05-31 | C166: 107 | D166: 99 | E166: 0 | F166: 0 | G166: 0 | H166: 0 | I166: 0 | J166: 0 | K166: 0 | L166: 0 | M166: 0 | N166: 0
B167: 2016-06-01 | C167: 93 | D167: 86 | E167: 0 | F167: 0 | G167: 0 | H167: 0 | I167: 0 | J167: 0 | K167: 0 | L167: 0 | M167: 0 | N167: 0
B168: 2016-06-02 | C168: 123 | D168: 104 | E168: 0 | F168: 0 | G168: 0 | H168: 0 | I168: 0 | J168: 0 | K168: 0 | L168: 0 | M168: 0 | N168: 0
B169: 2016-06-03 | C169: 107 | D169: 95 | E169: 0 | F169: 0 | G169: 0 | H169: 0 | I169: 0 | J169: 0 | K169: 0 | L169: 0 | M169: 0 | N169: 0
B170: 2016-06-04 | C170: 89 | D170: 76 | E170: 0 | F170: 0 | G170: 0.0009639648358 | H170: 0.0009639648358 | I170: 0 | J170: 0 | K170: 0 | L170: 0 | M170: 0.000790791402 | N170: 0.000790791402
B171: 2016-06-05 | C171: 62 | D171: 58 | E171: 0 | F171: 0 | G171: 0 | H171: 0 | I171: 0 | J171: 0 | K171: 0 | L171: 0 | M171: 0 | N171: 0
B172: 2016-06-06 | C172: 80 | D172: 72 | E172: 0 | F172: 0 | G172: 0 | H172: 0 | I172: 0 | J172: 0 | K172: 0 | L172: 0 | M172: 0 | N172: 0
B173: 2016-06-07 | C173: 73 | D173: 65 | E173: 0 | F173: 0 | G173: 0 | H173: 0 | I173: 0 | J173: 0 | K173: 0 | L173: 0 | M173: 0 | N173: 0
B174: 2016-06-08 | C174: 80 | D174: 73 | E174: 0 | F174: 0 | G174: 0 | H174: 0 | I174: 0 | J174: 0 | K174: 0 | L174: 0 | M174: 0 | N174: 0
B175: 2016-06-09 | C175: 80 | D175: 72 | E175: 0 | F175: 0 | G175: 0 | H175: 0 | I175: 0 | J175: 0 | K175: 0 | L175: 0 | M175: 0 | N175: 0
B176: 2016-06-10 | C176: 76 | D176: 71 | E176: 0 | F176: 0 | G176: 0 | H176: 0 | I176: 0 | J176: 0 | K176: 0 | L176: 0 | M176: 0 | N176: 0
B177: 2016-06-11 | C177: 51 | D177: 47 | E177: 0 | F177: 0 | G177: 0 | H177: 0 | I177: 0 | J177: 0 | K177: 0 | L177: 0 | M177: 0 | N177: 0
B178: 2016-06-12 | C178: 34 | D178: 31 | E178: 0 | F178: 0 | G178: 0 | H178: 0 | I178: 0 | J178: 0 | K178: 0 | L178: 0 | M178: 0 | N178: 0
B179: 2016-06-13 | C179: 38 | D179: 38 | E179: 0 | F179: 0 | G179: 0 | H179: 0 | I179: 0 | J179: 0 | K179: 0 | L179: 0 | M179: 0 | N179: 0
B180: 2016-06-14 | C180: 79 | D180: 66 | E180: 0 | F180: 0 | G180: 0 | H180: 0 | I180: 0 | J180: 0 | K180: 0 | L180: 0 | M180: 0 | N180: 0
B181: 2016-06-15 | C181: 64 | D181: 59 | E181: 0 | F181: 0 | G181: 0 | H181: 0 | I181: 0 | J181: 0 | K181: 0 | L181: 0 | M181: 0 | N181: 0
B182: 2016-06-16 | C182: 69 | D182: 65 | E182: 0 | F182: 0 | G182: 0 | H182: 0 | I182: 0 | J182: 0 | K182: 0 | L182: 0 | M182: 0 | N182: 0
B183: 2016-06-17 | C183: 157 | D183: 125 | E183: 0 | F183: 0 | G183: 0.004633730581 | H183: 0.004633730581 | I183: 0 | J183: 0 | K183: 0 | L183: 0 | M183: 0.003801294577 | N183: 0.003801294577
B184: 2016-06-18 | C184: 74 | D184: 63 | E184: 0 | F184: 0 | G184: 3.72187195e-06 | H184: 3.72187195e-06 | I184: 0 | J184: 0 | K184: 0 | L184: 0 | M184: 3.05324866e-06 | N184: 3.05324866e-06
B185: 2016-06-19 | C185: 38 | D185: 37 | E185: 0 | F185: 0 | G185: 0 | H185: 0 | I185: 0 | J185: 0 | K185: 0 | L185: 0 | M185: 0 | N185: 0
B186: 2016-06-20 | C186: 113 | D186: 97 | E186: 0 | F186: 0 | G186: 0 | H186: 0 | I186: 0 | J186: 0 | K186: 0 | L186: 0 | M186: 0 | N186: 0
B187: 2016-06-21 | C187: 76 | D187: 72 | E187: 0 | F187: 0 | G187: 0 | H187: 0 | I187: 0 | J187: 0 | K187: 0 | L187: 0 | M187: 0 | N187: 0
B188: 2016-06-22 | C188: 71 | D188: 66 | E188: 0 | F188: 0 | G188: 0 | H188: 0 | I188: 0 | J188: 0 | K188: 0 | L188: 0 | M188: 0 | N188: 0
B189: 2016-06-23 | C189: 105 | D189: 98 | E189: 0 | F189: 0 | G189: 0 | H189: 0 | I189: 0 | J189: 0 | K189: 0 | L189: 0 | M189: 0 | N189: 0
B190: 2016-06-24 | C190: 96 | D190: 80 | E190: 0 | F190: 0 | G190: 0 | H190: 0 | I190: 0 | J190: 0 | K190: 0 | L190: 0 | M190: 0 | N190: 0
B191: 2016-06-25 | C191: 97 | D191: 74 | E191: 0 | F191: 0 | G191: 0 | H191: 0 | I191: 0 | J191: 0 | K191: 0 | L191: 0 | M191: 0 | N191: 0
B192: 2016-06-26 | C192: 83 | D192: 66 | E192: 0 | F192: 0 | G192: 0 | H192: 0 | I192: 0 | J192: 0 | K192: 0 | L192: 0 | M192: 0 | N192: 0
B193: 2016-06-27 | C193: 136 | D193: 105 | E193: 0 | F193: 0 | G193: 0 | H193: 0 | I193: 0 | J193: 0 | K193: 0 | L193: 0 | M193: 0 | N193: 0
B194: 2016-06-28 | C194: 99 | D194: 98 | E194: 0 | F194: 0 | G194: 0 | H194: 0 | I194: 0 | J194: 0 | K194: 0 | L194: 0 | M194: 0 | N194: 0
B195: 2016-06-29 | C195: 98 | D195: 95 | E195: 0 | F195: 0 | G195: 0 | H195: 0 | I195: 0 | J195: 0 | K195: 0 | L195: 0 | M195: 0 | N195: 0
B196: 2016-06-30 | C196: 104 | D196: 102 | E196: 0 | F196: 0 | G196: 0 | H196: 0 | I196: 0 | J196: 0 | K196: 0 | L196: 0 | M196: 0 | N196: 0
B197: 2016-07-01 | C197: 86 | D197: 76 | E197: 0 | F197: 0 | G197: 0 | H197: 0 | I197: 0 | J197: 0 | K197: 0 | L197: 0 | M197: 0 | N197: 0
B198: 2016-07-02 | C198: 55 | D198: 49 | E198: 0 | F198: 0 | G198: 0 | H198: 0 | I198: 0 | J198: 0 | K198: 0 | L198: 0 | M198: 0 | N198: 0
B199: 2016-07-03 | C199: 58 | D199: 51 | E199: 0 | F199: 0 | G199: 0 | H199: 0 | I199: 0 | J199: 0 | K199: 0 | L199: 0 | M199: 0 | N199: 0
B200: 2016-07-04 | C200: 62 | D200: 58 | E200: 0 | F200: 0 | G200: 0 | H200: 0 | I200: 0 | J200: 0 | K200: 0 | L200: 0 | M200: 0 | N200: 0
B201: 2016-07-05 | C201: 103 | D201: 94 | E201: 0 | F201: 0 | G201: 0 | H201: 0 | I201: 0 | J201: 0 | K201: 0 | L201: 0 | M201: 0 | N201: 0
B202: 2016-07-06 | C202: 136 | D202: 121 | E202: 0 | F202: 0 | G202: 0.007864315436 | H202: 0.007864315436 | I202: 0 | J202: 0 | K202: 0 | L202: 0 | M202: 0.006451514411 | N202: 0.006451514411
B203: 2016-07-07 | C203: 89 | D203: 82 | E203: 0 | F203: 0 | G203: 0 | H203: 0 | I203: 0 | J203: 0 | K203: 0 | L203: 0 | M203: 0 | N203: 0
B204: 2016-07-08 | C204: 64 | D204: 58 | E204: 0 | F204: 0 | G204: 0.003543222099 | H204: 0.003543222099 | I204: 0 | J204: 0 | K204: 0 | L204: 0 | M204: 0.002906692721 | N204: 0.002906692721
... 176 more rows

Sheet 6.8 STPIS Exclusions
B1: =(LOOKUP(dms_Model,dms_Model_List,dms_Worksheet_List)) -> ANNUAL REPORTING STATEMENT
B2: =dms_TradingName -> CitiPower
B3: =CONCATENATE("Annual Reporting RIN Response ",CRY) -> Annual Reporting RIN Response 2016
B4: 6.8 STPIS EXCLUSIONS
B7: =CONCATENATE("This information is collected to inform the application of the STPIS to ",dms_TradingName," in future regulatory periods. The information is also collected to monitor network performance, and may be used in performance reports.") -> This information is collected to inform the application of the STPIS to CitiPower in future regulatory periods. The information is also collected to monitor network performance, and may be used in performance reports.
B9: 6.8.1 - STPIS EXCLUSIONS
B10: Date of event | C10: Outage ID | D10: Feeder ID / name | E10: Feeder classification (drop down) | F10: Cause of event (drop down) | G10: Unplanned | J10: Event category | K10: Effect on unplanned MAIFI | L10: Please provide separate explanation to confirm the outage was not due to inadequate transmission connection planning
B11: DD/MM/YYYY | G11: Number of interruptions | H11: Duration of interruption (mins) | I11: Total unplanned minutes off supply | J11: Use exclusion categories listed in section 3.3(a) of the STPIS (drop down) | K11: by feeder classification | O11: Cause of Event
B12: 2016-06-02 | C12: 860844-1 | D12: CL022 | E12: Urban | F12: Transmission failure | G12: 1095 | H12: 14 | I12: 15330 | J12: 3.3 a) (5) | K12: 0 | L12: Failure of transmission connection assets | O12: Weather
B13: 2016-06-02 | C13: 860860-1 | D13: CL023 | E13: Urban | F13: Transmission failure | G13: 1372 | H13: 14 | I13: 19208 | J13: 3.3 a) (5) | K13: 0 | L13: Failure of transmission connection assets
B14: 2016-06-02 | C14: 860865-1 | D14: CL033 | E14: Urban | F14: Transmission failure | G14: 1790 | H14: 13 | I14: 23270 | J14: 3.3 a) (5) | K14: 0 | L14: Failure of transmission connection assets
B15: 2016-06-02 | C15: 860872-1 | D15: CL013 | E15: Urban | F15: Transmission failure | G15: 752 | H15: 15 | I15: 11280 | J15: 3.3 a) (5) | K15: 0 | L15: Failure of transmission connection assets
B16: 2016-06-02 | C16: 860884-1 | D16: CL016 | E16: Urban | F16: Transmission failure | G16: 280 | H16: 16 | I16: 4480 | J16: 3.3 a) (5) | K16: 0 | L16: Failure of transmission connection assets
B17: 2016-06-02 | C17: 860886-1 | D17: CL011 | E17: Urban | F17: Transmission failure | G17: 2343 | H17: 15 | I17: 35145 | J17: 3.3 a) (5) | K17: 0 | L17: Failure of transmission connection assets
B18: 2016-06-02 | C18: 860920-1 | D18: CL026 | E18: Urban | F18: Transmission failure | G18: 589 | H18: 14 | I18: 8246 | J18: 3.3 a) (5) | K18: 0 | L18: Failure of transmission connection assets
B19: 2016-06-02 | C19: 860922-1 | D19: CL028 | E19: Urban | F19: Transmission failure | G19: 182 | H19: 13 | I19: 2366 | J19: 3.3 a) (5) | K19: 0 | L19: Failure of transmission connection assets
B20: 2016-06-02 | C20: 860934-1 | D20: CL021 | E20: Urban | F20: Transmission failure | G20: 1078 | H20: 14 | I20: 15092 | J20: 3.3 a) (5) | K20: 0 | L20: Failure of transmission connection assets
B21: 2016-06-02 | C21: 860949-1 | D21: CL014 | E21: Urban | F21: Transmission failure | G21: 403 | H21: 14 | I21: 5642 | J21: 3.3 a) (5) | K21: 0 | L21: Failure of transmission connection assets
B22: 2016-06-02 | C22: 861062-1 | D22: K004 | E22: Urban | F22: Transmission failure | G22: 372 | H22: 10 | I22: 3720 | J22: 3.3 a) (5) | K22: 0 | L22: Failure of transmission connection assets
B23: 2016-06-02 | C23: 861063-1 | D23: K007 | E23: Urban | F23: Transmission failure | G23: 12 | H23: 10 | I23: 120 | J23: 3.3 a) (5) | K23: 0 | L23: Failure of transmission connection assets
B24: 2016-06-02 | C24: 861064-1 | D24: K011 | E24: Urban | F24: Transmission failure | G24: 617 | H24: 10 | I24: 6170 | J24: 3.3 a) (5) | K24: 0 | L24: Failure of transmission connection assets
B25: 2016-06-02 | C25: 861181-1 | D25: K003 | E25: Urban | F25: Transmission failure | G25: 137 | H25: 10 | I25: 1370 | J25: 3.3 a) (5) | K25: 0 | L25: Failure of transmission connection assets
B26: 2016-06-02 | C26: F-6241-b | D26: CL027 | E26: Urban | F26: Transmission failure | G26: 163 | H26: 13 | I26: 2119 | J26: 3.3 a) (5) | K26: 0 | L26: Failure of transmission connection assets
B27: 2016-06-02 | C27: F-6241-b | D27: CL035 | E27: Urban | F27: Transmission failure | G27: 223 | H27: 13 | I27: 2899 | J27: 3.3 a) (5) | K27: 0 | L27: Failure of transmission connection assets
B28: 2016-06-02 | C28: F-6241-b | D28: CL036 | E28: Urban | F28: Transmission failure | G28: 1676 | H28: 13 | I28: 21788 | J28: 3.3 a) (5) | K28: 0 | L28: Failure of transmission connection assets
B29: 2016-06-02 | C29: F-6241-b | D29: CL037 | E29: Urban | F29: Transmission failure | G29: 1507 | H29: 12 | I29: 18084 | J29: 3.3 a) (5) | K29: 0 | L29: Failure of transmission connection assets
B30: 2016-06-02 | C30: F-6241-b | D30: CL038 | E30: Urban | F30: Transmission failure | G30: 1274 | H30: 12 | I30: 15288 | J30: 3.3 a) (5) | K30: 0 | L30: Failure of transmission connection assets
B31: 2016-10-09 | C31: 904272-1 | D31: F028 | E31: Urban | F31: Third party impacts | G31: 1 | H31: 17 | I31: 17 | J31: 3.3 b) | K31: 0 | L31: Threshold exceeded due to storm activity on the network
B32: 2016-10-09 | C32: 905759-1 | D32: BC003 | E32: Urban | F32: Equipment failure | G32: 1 | H32: 1121 | I32: 1121 | J32: 3.3 b) | K32: 0 | L32: Threshold exceeded due to storm activity on the network
B33: 2016-10-09 | C33: 905798-1 | D33: RD015 | E33: Urban | F33: Vegetation | G33: 62 | H33: 369 | I33: 22878 | J33: 3.3 b) | K33: 0 | L33: Threshold exceeded due to storm activity on the network
B34: 2016-10-09 | C34: 905810-1 | D34: NR002 | E34: Urban | F34: Vegetation | G34: 3 | H34: 667 | I34: 2001 | J34: 3.3 b) | K34: 0 | L34: Threshold exceeded due to storm activity on the network
B35: 2016-10-09 | C35: 905849-1 | D35: NC013 | E35: Urban | F35: Weather | G35: 1 | H35: 492 | I35: 492 | J35: 3.3 b) | K35: 0 | L35: Threshold exceeded due to storm activity on the network
B36: 2016-10-09 | C36: 905853-1 | D36: F028 | E36: Urban | F36: Weather | G36: 1 | H36: 68 | I36: 68 | J36: 3.3 b) | K36: 0 | L36: Threshold exceeded due to storm activity on the network
B37: 2016-10-09 | C37: 905936-1 | D37: WD011 | E37: Urban | F37: Weather | G37: 1 | H37: 360 | I37: 360 | J37: 3.3 b) | K37: 0 | L37: Threshold exceeded due to storm activity on the network
B38: 2016-10-09 | C38: 905942-1 | D38: WD022 | E38: Urban | F38: Weather | G38: 36 | H38: 275 | I38: 9900 | J38: 3.3 b) | K38: 0 | L38: Threshold exceeded due to storm activity on the network
B39: 2016-10-09 | C39: 906273-1 | D39: AP014 | E39: Urban | F39: Vegetation | G39: 63 | H39: 378 | I39: 23814 | J39: 3.3 b) | K39: 0 | L39: Threshold exceeded due to storm activity on the network
B40: 2016-10-09 | C40: 906277-1 | D40: SK006 | E40: Urban | F40: Vegetation | G40: 16 | H40: 783 | I40: 12528 | J40: 3.3 b) | K40: 0 | L40: Threshold exceeded due to storm activity on the network
B41: 2016-10-09 | C41: 906410-1 | D41: RD002 | E41: Urban | F41: Weather | G41: 1 | H41: 185 | I41: 185 | J41: 3.3 b) | K41: 0 | L41: Threshold exceeded due to storm activity on the network | O41: Equipment failure
B42: 2016-10-09 | C42: 906429-1 | D42: B011 | E42: Urban | F42: Equipment failure | G42: 2 | H42: 58 | I42: 116 | J42: 3.3 b) | K42: 0 | L42: Threshold exceeded due to storm activity on the network | O42: Operational error
B43: 2016-10-09 | C43: 906446-1 | D43: RD013 | E43: Urban | F43: Weather | G43: 1 | H43: 205 | I43: 205 | J43: 3.3 b) | K43: 0 | L43: Threshold exceeded due to storm activity on the network | O43: Vegetation
B44: 2016-10-09 | C44: 906464-1 | D44: RD013 | E44: Urban | F44: Weather | G44: 1 | H44: 190 | I44: 190 | J44: 3.3 b) | K44: 0 | L44: Threshold exceeded due to storm activity on the network | O44: Animals
B45: 2016-10-09 | C45: 906523-1 | D45: BC015 | E45: Urban | F45: Weather | G45: 239 | H45: 310 | I45: 74090 | J45: 3.3 b) | K45: 0 | L45: Threshold exceeded due to storm activity on the network | O45: Third party impacts
B46: 2016-10-09 | C46: 906529-1 | D46: Q014 | E46: Urban | F46: Weather | G46: 1 | H46: 128 | I46: 128 | J46: 3.3 b) | K46: 0 | L46: Threshold exceeded due to storm activity on the network | O46: Transmission failure
B47: 2016-10-09 | C47: 906544-1 | D47: RD013 | E47: Urban | F47: Weather | G47: 1 | H47: 110 | I47: 110 | J47: 3.3 b) | K47: 0 | L47: Threshold exceeded due to storm activity on the network | O47: Load shedding
B48: 2016-10-09 | C48: 906627-1 | D48: RD013 | E48: Urban | F48: Weather | G48: 1 | H48: 11 | I48: 11 | J48: 3.3 b) | K48: 0 | L48: Threshold exceeded due to storm activity on the network | O48: Inter-distributor connection failure
B49: 2016-10-09 | C49: 906724-1 | D49: WD022 | E49: Urban | F49: Other | G49: 798 | H49: 0 | I49: 0 | J49: 3.3 b) | K49: 0 | L49: Threshold exceeded due to storm activity on the network | O49: Other
B50: 2016-10-09 | C50: 906983-1 | D50: WB009 | E50: Urban | F50: Equipment failure | G50: 5 | H50: 1633 | I50: 8165 | J50: 3.3 b) | K50: 0 | L50: Threshold exceeded due to storm activity on the network
B51: 2016-10-09 | C51: F-6967-b | D51: NC013 | E51: Urban | F51: Weather | G51: 1884 | H51: 131.89 | I51: 248483 | J51: 3.3 b) | K51: 0 | L51: Threshold exceeded due to storm activity on the network
B52: 2016-10-09 | C52: F-6972-b | D52: AR010 | E52: Urban | F52: Other | G52: 2444 | H52: 0 | I52: 0 | J52: 3.3 b) | K52: 0.01 | L52: Threshold exceeded due to storm activity on the network
B53: 2016-10-09 | C53: F-6977-b | D53: L001 | E53: Urban | F53: Weather | G53: 1276 | H53: 136 | I53: 173536 | J53: 3.3 b) | K53: 0 | L53: Threshold exceeded due to storm activity on the network
B54: 2016-10-09 | C54: F-6977-b | D54: WD022 | E54: Urban | F54: Weather | G54: 276 | H54: 13 | I54: 3588 | J54: 3.3 b) | K54: 0 | L54: Threshold exceeded due to storm activity on the network
B55: 2016-10-09 | C55: F-6980-b | D55: Q010 | E55: Urban | F55: Equipment failure | G55: 931 | H55: 177 | I55: 164787 | J55: 3.3 b) | K55: 0 | L55: Threshold exceeded due to storm activity on the network
B56: 2016-10-09 | C56: F-6983-b | D56: AP003 | E56: Urban | F56: Other | G56: 1936 | H56: 0 | I56: 0 | J56: 3.3 b) | K56: 0.01 | L56: Threshold exceeded due to storm activity on the network
B57: 2016-10-09 | C57: F-6985-b | D57: RD013 | E57: Urban | F57: Weather | G57: 394 | H57: 342.79 | I57: 135060 | J57: 3.3 b) | K57: 0 | L57: Threshold exceeded due to storm activity on the network
B58: 2016-10-09 | C58: F-6992-b | D58: WD021 | E58: Urban | F58: Weather | G58: 859 | H58: 340.24 | I58: 292268 | J58: 3.3 b) | K58: 0 | L58: Threshold exceeded due to storm activity on the network
B59: 2016-10-09 | C59: F-6997-b | D59: AP014 | E59: Urban | F59: Other | G59: 1881 | H59: 0 | I59: 0 | J59: 3.3 b) | K59: 0.01 | L59: Threshold exceeded due to storm activity on the network
B60: 2016-10-09 | C60: F-6999-b | D60: CL011 | E60: Urban | F60: Other | G60: 2371 | H60: 0 | I60: 0 | J60: 3.3 b) | K60: 0.01 | L60: Threshold exceeded due to storm activity on the network
B61: 2016-10-09 | C61: F-7000-b | D61: CL011 | E61: Urban | F61: Vegetation | G61: 2371 | H61: 89.49 | I61: 212192 | J61: 3.3 b) | K61: 0 | L61: Threshold exceeded due to storm activity on the network
B71: To enter further events - please insert new lines above this line.

Sheet 6.9 STPIS - GSL
B1: =(LOOKUP(dms_Model,dms_Model_List,dms_Worksheet_List)) -> ANNUAL REPORTING STATEMENT
B2: =dms_TradingName -> CitiPower
B3: =CONCATENATE("Annual Reporting RIN Response ",CRY) -> Annual Reporting RIN Response 2016
B4: 6.9 STPIS - GUARANTEED SERVICE LEVEL
B6: Did the AER's GSL Scheme apply at any time during the regulatory year? | D6: No | E6: **IMPORTANT Please ensure this flag is set. Conditional formatting on this worksheet is dependant on this response.
B8: Instructions: Table 6.9.1 collects information relating to jurisdiction GSL scheme parameters. These parameters can be found in the jurisdictonal scheme relevant to NSP. Please identify each parameter in the relevant sub-tables and provide the volume and value of GSL payments. For GSL parameters that do not fit within the provided sub-tables provided, please enter a heading and identify the relevant parameter(s).
B10: 6.9.1 - GUARANTEED SERVICE LEVELS - JURISDICTIONAL GSL SCHEME
D11: =CRY -> 2016 | E11: =CRY -> 2016
D12: Volume | E12: Value of GSL payments
D13: 0's | E13: $0's
B14: Appointments
B15: Customer arranged appointments | D15: 4386
B16: Appointments not met within 15 minutes of agreed time | D16: 0
B17: Appointments - GSL payments | D17: 0 | E17: 0
B19: To enter further GSL parameters relating to appointments - please copy a row from above and "insert copied cells" above this row.
B21: Connections
B22: Connections made | D22: 51865
B23: Connections not made on agreed date | D23: 158
B24: Connections - GSL payments - 1-4 day delay | D24: 67 | E24: 10990
B25: Connections - GSL payments - 5+ day delay | D25: 91 | E25: 31850
B27: To enter further GSL parameters relating to connections - please copy a row from above and "insert copied cells" above this row.
B29: Reliability of supply
B30: Supply restoration payments - 20 hours - number | D30: 27 | E30: 3240
B31: Supply restoration payments - 30 hours - number | D31: 2 | E31: 360
B32: Supply restoration payments - 60 hours - number | D32: 1 | E32: 360
B33: Supply restoration payments - CBD/Urban feeders 12 hours duration - number | D33: 302 | E33: 24160
B34: Supply restoration payments - Rural (long/short) feeders 18 hours duration - number | D34: 0 | E34: 0
B35: Low reliability payments - 10 events (prior 2016) / 8 events (2016) - number | D35: 0 | E35: 0
B36: Low reliability payments - 15 events (prior 2016) / 12 events (2016) - number | D36: 0 | E36: 0
B37: Low reliability payments - 30 events (prior 2016) / 24 events (2016) - number | D37: 0 | E37: 0
B38: Low reliability payments - 24 momentary events - number | D38: 0 | E38: 0
B39: Low reliability payments - 36 momentary events - number | D39: 0 | E39: 0
B41: To enter further GSL parameters relating to reliability of supply - please copy a row from above and "insert copied cells" above this row.
B43: Street lights
B44: Street lights | D44: 52590
B45: Street lights "out" during period | D45: 4084
B46: Street lights not repaired by "fix by" date | D46: 5
B47: Street lights not repaired in 2 business days | D47: 5
B48: Street lights – number of business days to repair | D48: 1.42
B49: Street lights - GSL payments - number | D49: 4 | E49: 100
B51: To enter further GSL parameters relating to street lights - please copy a row from above and "insert copied cells" above this row.
B53: Planned interruptions
B54: Planned interruptions - 4 business days notice not given | D54: 109
B57: To enter further GSL parameters relating to planned interruptions - please copy a row from above and "insert copied cells" above this row.
B59: <NSP defined parameter category>
B63: To enter further GSL parameters - please identify the parameter and if insufficient rows please copy a row from above and "insert copied cells" above this row.
B65: <NSP defined parameter category>
B69: To enter further GSL parameters - please identify the parameter and if insufficient rows please copy a row from above and "insert copied cells" above this row.
B71: <NSP defined parameter category>
B75: To enter further GSL parameters - please identify the parameter and if insufficient rows please copy a row from above and "insert copied cells" above this row.
B77: <NSP defined parameter category>
B81: To enter further GSL parameters - please identify the parameter and if insufficient rows please copy a row from above and "insert copied cells" above this row.
B84: 6.9.2 - GUARANTEED SERVICE LEVELS - AER GSL SCHEME
B86: Complete Table 6.9.2 if the AER's GSL scheme applied at any time during the regulatory year. Do not complete Table 6.9.2 if the AER's GSL scheme did not apply during the regulatory year.
D88: =CRY -> 2016 | E88: =CRY -> 2016
D89: Volume | E89: Value of GSL payments
D90: 0's | E90: $0's
B91: New connections
B92: Number of connections made
B93: Number of connections not made on or before the day agreed
B94: Connections - GSL payments – 1-6 day delay
B95: Connections - GSL payments – 7+ day delay
B96: Reliability of supply
B97: Frequency of interruptions – CBD feeders – 9 interruptions
B98: Frequency of interruptions – Urban feeders – 9 interruptions
B99: Frequency of interruptions – Rural (short and long) feeders – 15 interruptions
B100: Interruptions – CBD feeders – 12 hours duration
B101: Interruptions – Urban feeders – 12 hours duration
B102: Interruptions – Rural (short and long) feeders – 18 hours duration
B103: Total duration of interruptions Level 1 – 20 hours
B104: Total duration of interruptions Level 2 – 30 hours
B105: Total duration of interruptions Level 3 – 60 hours
B106: Street lights
B107: Streetlight repair 5 days – GSL payments
B108: Planned interruptions
B109: Notice of planned interruptions – 4 business days notice not given
B110: Total | E110: =SUM(E109,E107,E97:E105,E94:E95) -> 0

Sheet 7.8 Avoided TUOS Payments
B1: =(LOOKUP(dms_Model,dms_Model_List,dms_Worksheet_List)) -> ANNUAL REPORTING STATEMENT
B2: =dms_TradingName -> CitiPower
B3: =CONCATENATE("Annual Reporting RIN Response ",CRY) -> Annual Reporting RIN Response 2016
B4: 7.8 - AVOIDED TUOS PAYMENTS
B6: 7.8.1 - AVOIDED TUOS PAYMENTS
C7: Avoided TUOS Payment
C8: $0's, nominal
B9: Embedded generators | C9: 0
B10: Market network service providers | C10: 0
B11: Other | C11: 0

Sheet 7.10 Juris Scheme
B1: =(LOOKUP(dms_Model,dms_Model_List,dms_Worksheet_List)) -> ANNUAL REPORTING STATEMENT
B2: =dms_TradingName -> CitiPower
B3: =CONCATENATE("Annual Reporting RIN Response ",CRY) -> Annual Reporting RIN Response 2016
B4: 7.10 - JURISDICTIONAL SCHEMES
B6: Instructions Business must list each relevant jurisdictional scheme individually and report information for each scheme separately from other schemes.
B8: 7.10.1 - JURISDICTIONAL SCHEME PAYMENTS
B9: Jurisdictional Scheme Name | C9: Description | D9: Date DNSP Became Subject to Scheme | E9: Description of Cost Recovery Method | F9: Total Scheme Payments
F10: $0's, nominal
B11: Premium feed-in tariff | C11: PFiT | D11: 2009-11-01 | E11: 0 | F11: 2227581.79
B12: Transitional feed-in tariff | C12: TFiT | D12: 2012-01-01 | E12: 0 | F12: 568164.94
E17: Total | F17: =SUM(F11:F16) -> 2795746.73

Sheet 7.11 DMIS-DMIA
B1: =(LOOKUP(dms_Model,dms_Model_List,dms_Worksheet_List)) -> ANNUAL REPORTING STATEMENT
B2: =dms_TradingName -> CitiPower
B3: =CONCATENATE("Annual Reporting RIN Response ",CRY) -> Annual Reporting RIN Response 2016
B4: 7.11 - DEMAND MANAGEMENT INCENTIVE SCHEME
B6: 7.11.1 - DMIA - PROJECTS SUBMITTED FOR APPROVAL
C7: =CONCATENATE("Total amount of the DMIA spent in ", CRY) -> Total amount of the DMIA spent in 2016
C8: Operating expenditure | D8: Capital expenditure | E8: Total
B9: Name of project | C9: $0's, nominal
B10: No projects reported in 2016 | C10: 0 | D10: 0 | E10: =SUM(C10:D10) -> 0
E11: 0
E12: 0
E13: 0
E14: 0
E15: =SUM(C15:D15) -> 0
B16: To enter additional projects - please copy a row from above and "insert copied cells" above this row.
B17: Total | C17: =SUM(C10:C16) -> 0 | D17: =SUM(D10:D16) -> 0 | E17: =SUM(E10:E16) -> 0

Sheet 7.12 Safety and Bushfire
B1: =(LOOKUP(dms_Model,dms_Model_List,dms_Worksheet_List)) -> ANNUAL REPORTING STATEMENT
B2: =dms_TradingName -> CitiPower
B3: =CONCATENATE("Annual Reporting RIN Response ",CRY) -> Annual Reporting RIN Response 2016
B4: 7.12 SAFETY AND BUSHFIRE RELATED EXPENDITURE
B6: These templates collect information from Victorian businesses only. Bushfire and safety related expenditure information is used by the AER to monitor the expenditures throughout the regulatory control period.
B8: CPI applied to convert expected expenditure in real $ to nominal based on lagged September CPI index
B10: Instructions
B11: For "Exclusive of Margins & Overheads" reported expenditure is to EXCLUDE any overheads, profit margins or management fees paid directly or indirectly to related party contractors (not including actual incurred expense of the related party contractor) for the reporting period.
B12: For "Value of Margins & Overheads" reported expenditure is to COMPRISE ONLY the sum of overheads, profit margins or management fees paid directly or indirectly to related party contractors (not including actual incurred expenses of the related party contractor) for the reporting period.
B14: =CONCATENATE(dms_TradingName, " is to specify each activity in this table in accordance with the definition in Appendix F of the RIN.") -> CitiPower is to specify each activity in this table in accordance with the definition in Appendix F of the RIN.
B15: All activities must be reported but the Reason for Difference is only required if there is a 10 per cent difference between the expected value and the actual value. Use median unit costs. Where unit costs are not recorded at the asset category level - provide the best estimates of the unit cost using the cost allocation method identified in this table. (As a transitional measure, the unit cost may be based on a statistically significant annual sample of actual work orders at a 5% or better confidence interval.) Provide basis of allocation where applicable.
B17: 7.12.1 - SAFETY AND BUSHFIRE RELATED ASSET GROUP DEFINITIONS AND ALLOCATION BASIS
B18: Activity | C18: Definitions | G18: Basis for allocation of cost to activity
B19: Planned non-preferred services replacements
B20: Planned replacement of non-preferred services due to height
B21: Removal of public lighting switchwire
B22: Replacement of existing SWER lines with 22kV overhead bare conductor
B23: Installation of GFN and associated equipment at zone substations
B24: Replacement of crossarms/insulator sets – pole top fire mitigation
B25: Replacement of crossarms – based on age and condition
B26: Replacement of poles – based on age and condition
B27: Stake poles – based on age and condition
B28: Replacement of undersized poles
B29: Stake undersized poles
B30: Replacement of overhead conductor – mainly steel
B31: Service line clearance – overhead services requiring relocation
B32: Service line clearance – overhead services requiring undergrounding
B33: Replacement of 22kV distribution feeders with ABC/underground cabling
B34: Replacement of SWER with covered carbon core conductor or equivalent
B35: Replacement of SWER with ABC
B36: Replacement of SWER with underground
B37: Replacement of surge diverters (neptune configuration)
B38: Replacement of surge diverters (single phase or three phase)
B46: To enter further activities - please copy row from above and "insert copied cells" into a row above this row.
B48: 7.12.2 - BUSHFIRE RELATED
B50: 7.12.2.1 - NUMBER OF ACTIVITIES
B51: Activity | C51: Units | D51: Number of Activities
B52: Planned non-preferred services replacements | C52: number of services
B53: Planned replacement of non-preferred services due to height | C53: number of services
B54: Removal of public lighting switchwire | C54: number of spans removed
B55: Replacement of existing SWER lines with 22kV overhead bare conductor | C55: kms of SWER
B56: Installation of GFN and associated equipment at zone substations | C56: number of zone substations
B57: Replacement of crossarms/insulator sets – pole top fire mitigation | C57: number of crossarms/sets
B58: Replacement of crossarms – based on age and condition | C58: number of crossarms
B59: Replacement of poles – based on age and condition | C59: number of poles
B60: Stake poles – based on age and condition | C60: number of poles
B61: Replacement of undersized poles | C61: number of poles
B62: Stake undersized poles | C62: number of poles
B63: Replacement of overhead conductor – mainly steel | C63: kms
B64: Service line clearance – overhead services requiring relocation | C64: number of services
B65: Service line clearance – overhead services requiring undergrounding | C65: number of services
B66: Replacement of 22kV distribution feeders with ABC/underground cabling | C66: number of feeders
B67: Replacement of SWER with covered carbon core conductor or equivalent | C67: kms
B68: Replacement of SWER with ABC | C68: kms
B69: Replacement of SWER with underground | C69: kms
B70: Replacement of surge diverters (neptune configuration) | C70: number of units
B71: Replacement of surge diverters (single phase or three phase) | C71: number of units
B72: =IF(ISBLANK(B39),"",B39) -> 
B73: =IF(ISBLANK(B40),"",B40) -> 
B79: To enter further activities - please copy row from above and "insert copied cells" into a row above this row.
B82: 7.12.2.2 - EXPENDITURE
B83: Activity | C83: Units | D83: Exclusive of Margins & Overheads | E83: Value of Margins & Overheads
D84: Actual Expenditure
D85: $0's, Nominal
B86: Planned non-preferred services replacements | C86: number of services
B87: Planned replacement of non-preferred services due to height | C87: number of services
B88: Removal of public lighting switchwire | C88: number of spans removed
B89: Replacement of existing SWER lines with 22kV overhead bare conductor | C89: kms of SWER
B90: Installation of GFN and associated equipment at zone substations | C90: number of zone substations
B91: Replacement of crossarms/insulator sets – pole top fire mitigation | C91: number of crossarms/sets
B92: Replacement of crossarms – based on age and condition | C92: number of crossarms
B93: Replacement of poles – based on age and condition | C93: number of poles
B94: Stake poles – based on age and condition | C94: number of poles
B95: Replacement of undersized poles | C95: number of poles
B96: Stake undersized poles | C96: number of poles
B97: Replacement of overhead conductor – mainly steel | C97: kms
B98: Service line clearance – overhead services requiring relocation | C98: number of services
B99: Service line clearance – overhead services requiring undergrounding | C99: number of services
B100: Replacement of 22kV distribution feeders with ABC/underground cabling | C100: number of feeders
B101: Replacement of SWER with covered carbon core conductor or equivalent | C101: kms
B102: Replacement of SWER with ABC | C102: kms
B103: Replacement of SWER with underground | C103: kms
B104: Replacement of surge diverters (neptune configuration) | C104: number of units
B105: Replacement of surge diverters (single phase or three phase) | C105: number of units
B106: =IF(ISBLANK(B39),"",B39) ->  | C106: =IF(ISBLANK(C72),"",C72) -> 
B113: To enter further activities - please copy row from above and "insert copied cells" into a row above this row.
B117: 7.12.2.3 - UNIT COSTS
B118: Activity | D118: Actual
D119: $0's, Per Unit
B120: Planned non-preferred services replacements
B121: Planned replacement of non-preferred services due to height
B122: Removal of public lighting switchwire
B123: Replacement of existing SWER lines with 22kV overhead bare conductor
B124: Installation of GFN and associated equipment at zone substations
B125: Replacement of crossarms/insulator sets – pole top fire mitigation
B126: Replacement of crossarms – based on age and condition
B127: Replacement of poles – based on age and condition
B128: Stake poles – based on age and condition
B129: Replacement of undersized poles
B130: Stake undersized poles
B131: Replacement of overhead conductor – mainly steel
B132: Service line clearance – overhead services requiring relocation
B133: Service line clearance – overhead services requiring undergrounding
B134: Replacement of 22kV distribution feeders with ABC/underground cabling
B135: Replacement of SWER with covered carbon core conductor or equivalent
B136: Replacement of SWER with ABC
B137: Replacement of SWER with underground
B138: Replacement of surge diverters (neptune configuration)
B139: Replacement of surge diverters (single phase or three phase)
B140: =IF(ISBLANK(B39),"",B39) -> 
B147: To enter further activities - please copy row from above and "insert copied cells" into a row above this row.
B150: 7.12.2.4 - CONTINGENT PROJECT APPLICATIONS - VOLUMES APPROVED
B151: Activity | C151: Units | D151: Volume approved under contingent project applications | E151: Actual volumes | F151: Difference
F152: =E152-D152 -> 0
F153: 0
F154: 0
F155: 0
F156: 0
F157: 0
F158: 0
F159: 0
B160: To enter further activities - please copy row from above and "insert copied cells" into a row above this row.
B162: 7.12.2.5 - CONTINGENT PROJECT APPLICATIONS - EXPENDITURE APPROVED
B163: Activity | C163: Exclusive of Margins & Overheads | D163: Value of Margins & Overheads
C164: Actual Expenditure
C165: $0's, Nominal
B166: =IF(ISBLANK(B152),"",B152) -> 
B167: =IF(ISBLANK(B153),"",B153) -> 
B174: To enter further activities - please copy row from above and "insert copied cells" into a row above this row.
B178: 7.12.3 - SAFETY RELATED
B180: 7.12.3.1 - NUMBER OF ACTIVITIES
B181: Activity | C181: Units | D181: Number of Activities
B182: Planned non-preferred services replacements | C182: number of services
B183: Planned replacement of non-preferred services due to height | C183: number of services
B184: Removal of public lighting switchwire | C184: number of spans removed
B185: Replacement of existing SWER lines with 22kV overhead bare conductor | C185: kms of SWER
B186: Installation of GFN and associated equipment at zone substations | C186: number of zone substations
B187: Replacement of crossarms/insulator sets – pole top fire mitigation | C187: number of crossarms/sets
B188: Replacement of crossarms – based on age and condition | C188: number of crossarms
B189: Replacement of poles – based on age and condition | C189: number of poles
B190: Stake poles – based on age and condition | C190: number of poles
B191: Replacement of undersized poles | C191: number of poles
B192: Stake undersized poles | C192: number of poles
B193: Replacement of overhead conductor – mainly steel | C193: kms
B194: Service line clearance – overhead services requiring relocation | C194: number of services
B195: Service line clearance – overhead services requiring undergrounding | C195: number of services
B196: Replacement of 22kV distribution feeders with ABC/underground cabling | C196: number of feeders
B197: Replacement of SWER with covered carbon core conductor or equivalent | C197: kms
B198: Replacement of SWER with ABC | C198: kms
B199: Replacement of SWER with underground | C199: kms
B200: Replacement of surge diverters (neptune configuration) | C200: number of units
B201: Replacement of surge diverters (single phase or three phase) | C201: number of units
B202: =IF(ISBLANK(B39),"",B39) ->  | C202: =IF(ISBLANK(C72),"",C72) -> 
B209: To enter further activities - please copy row from above and "insert copied cells" into a row above this row.
B212: 7.12.3.2 - EXPENDITURE
B213: Activity | C213: Units | D213: Exclusive of Margins & Overheads | E213: Value of Margins & Overheads
D214: Actual Expenditure
D215: $0's, Nominal
B216: Planned non-preferred services replacements | C216: number of services
B217: Planned replacement of non-preferred services due to height | C217: number of services
B218: Removal of public lighting switchwire | C218: number of spans removed
B219: Replacement of existing SWER lines with 22kV overhead bare conductor | C219: kms of SWER
B220: Installation of GFN and associated equipment at zone substations | C220: number of zone substations
B221: Replacement of crossarms/insulator sets – pole top fire mitigation | C221: number of crossarms/sets
B222: Replacement of crossarms – based on age and condition | C222: number of crossarms
B223: Replacement of poles – based on age and condition | C223: number of poles
B224: Stake poles – based on age and condition | C224: number of poles
B225: Replacement of undersized poles | C225: number of poles
B226: Stake undersized poles | C226: number of poles
B227: Replacement of overhead conductor – mainly steel | C227: kms
B228: Service line clearance – overhead services requiring relocation | C228: number of services
B229: Service line clearance – overhead services requiring undergrounding | C229: number of services
B230: Replacement of 22kV distribution feeders with ABC/underground cabling | C230: number of feeders
B231: Replacement of SWER with covered carbon core conductor or equivalent | C231: kms
B232: Replacement of SWER with ABC | C232: kms
B233: Replacement of SWER with underground | C233: kms
B234: Replacement of surge diverters (neptune configuration) | C234: number of units
B235: Replacement of surge diverters (single phase or three phase) | C235: number of units
B236: =IF(ISBLANK(B39),"",B39) ->  | C236: =IF(ISBLANK(C72),"",C72) -> 
B243: To enter further activities - please copy row from above and "insert copied cells" into a row above this row.
B246: 7.12.3.3 - UNIT COSTS
B247: Activity | C247: Units | D247: Actual
D248: $0's, Per Unit
B249: Planned non-preferred services replacements | C249: number of services
B250: Planned replacement of non-preferred services due to height | C250: number of services
B251: Removal of public lighting switchwire | C251: number of spans removed
B252: Replacement of existing SWER lines with 22kV overhead bare conductor | C252: kms of SWER
B253: Installation of GFN and associated equipment at zone substations | C253: number of zone substations
B254: Replacement of crossarms/insulator sets – pole top fire mitigation | C254: number of crossarms/sets
B255: Replacement of crossarms – based on age and condition | C255: number of crossarms
B256: Replacement of poles – based on age and condition | C256: number of poles
B257: Stake poles – based on age and condition | C257: number of poles
B258: Replacement of undersized poles | C258: number of poles
B259: Stake undersized poles | C259: number of poles
B260: Replacement of overhead conductor – mainly steel | C260: kms
B261: Service line clearance – overhead services requiring relocation | C261: number of services
B262: Service line clearance – overhead services requiring undergrounding | C262: number of services
B263: Replacement of 22kV distribution feeders with ABC/underground cabling | C263: number of feeders
B264: Replacement of SWER with covered carbon core conductor or equivalent | C264: kms
B265: Replacement of SWER with ABC | C265: kms
... 65 more rows

Sheet 7.13 TARC
B1: =(LOOKUP(dms_Model,dms_Model_List,dms_Worksheet_List)) -> ANNUAL REPORTING STATEMENT
B2: =dms_TradingName -> CitiPower
B3: =CONCATENATE("Annual Reporting RIN Response ",CRY) -> Annual Reporting RIN Response 2016
B4: 7.13 - TARC
B7: 7.13.1 - TOTAL ANNUAL RETAILER CHARGES
C8: $0's
B9: TARC | C9: 410825646.3

Sheet 8.1 Income
B1: =(LOOKUP(dms_Model,dms_Model_List,dms_Worksheet_List)) -> ANNUAL REPORTING STATEMENT
B2: =dms_TradingName -> CitiPower
B3: =CONCATENATE("Annual Reporting RIN Response ",CRY) -> Annual Reporting RIN Response 2016
B4: 8.1 - INCOME
B6: 8.1.1 - INCOME STATEMENT
C7: Audited Statutory Accounts | D7: Adjustments | E7: Distribution business | F7: Standard Control Services | G7: Alternative Control Services | L7: Negotiated Services
G8: Public Lighting | I8: Other
G9: =IF(dms_Jurisdiction="Vic","Energy efficient","") -> Energy efficient | H9: =IF(dms_Jurisdiction="Vic","Non-energy efficient","") -> Non-energy efficient | I9: Connection services | J9: Metering services | K9: Ancillary network services
C10: $0's, nominal
B11: 8.1.1.1 - REVENUE
B12: Distribution revenue | C12: 325662972.7 | D12: 0 | E12: 325662972.7 | F12: 279326173.3 | G12: 2247328.26 | H12: 1736740.89 | I12: 5462283.43 | J12: 32364241.31 | K12: 4525928.6
B13: Cross boundary revenue | C13: 4468244.94 | D13: -4468244.94 | E13: 0 | F13: 0 | G13: 0 | H13: 0 | I13: 0 | J13: 0 | K13: 0
B14: Contributions | C14: 46023850.94 | D14: -46023850.94 | E14: 0 | F14: 0 | G14: 0 | H14: 0 | I14: 0 | J14: 0 | K14: 0
B15: Interest income | C15: 2387.63 | D15: 0 | E15: 2387.63 | F15: 2215.08255 | G15: 5.878037185 | H15: 7.603303904 | I15: 0 | J15: 159.066109 | K15: 0
B16: Jurisdictional scheme amounts | C16: 2693533.69 | D16: -2693533.69 | E16: 0 | F16: 0 | G16: 0 | H16: 0 | I16: 0 | J16: 0 | K16: 0
B17: Profit from sale of fixed assets | C17: -126224.65 | D17: 126224.65 | E17: 0 | F17: 0 | G17: 0 | H17: 0 | I17: 0 | J17: 0 | K17: 0
B18: TUOS revenue | C18: 78001171.93 | D18: -78001171.93 | E18: 0 | F18: 0 | G18: 0 | H18: 0 | I18: 0 | J18: 0 | K18: 0
B19: Pass through revenue (F-factor) | C19: 0 | D19: 0 | E19: 0 | F19: 0 | G19: 0 | H19: 0 | I19: 0 | J19: 0 | K19: 0
B20: Other Revenue | C20: 34793714.02 | D20: -35929887.37 | E20: -1136173.35 | F20: 89324.57 | G20: 0 | H20: 0 | I20: 0 | J20: -1225497.92 | K20: 0
B21: Total revenue | C21: =SUM(C12:C20) -> 491519651.2 | D21: -166990464.2 | E21: 324529187 | F21: 279417713 | G21: 2247334.138 | H21: 1736748.494 | I21: 5462283.43 | J21: 31138902.46 | K21: 4525928.6 | L21: 0
B23: 8.1.1.2 - EXPENDITURE
B24: TUOS expenditure | C24: 78001171.93 | D24: -78001171.93 | E24: 0 | F24: 0 | G24: 0 | H24: 0 | I24: 0 | J24: 0 | K24: 0
B25: Avoided TUOS expenditure | C25: 0 | D25: 0 | E25: 0 | F25: 0 | G25: 0 | H25: 0 | I25: 0 | J25: 0 | K25: 0
B26: Cross boundary expenditure | C26: 4468244.94 | D26: -4468244.94 | E26: 0 | F26: 0 | G26: 0 | H26: 0 | I26: 0 | J26: 0 | K26: 0
B27: Depreciation | C27: 79208314.57 | D27: 31709684.1 | E27: 110917998.7 | F27: 92050496.19 | G27: 287666.013 | H27: 372099.0615 | I27: 0 | J27: 18207737.41 | K27: 0
B28: Finance charges | C28: 18774194.22 | D28: -18781400.63 | E28: -7206.41 | F28: -7206.41 | G28: 0 | H28: 0 | I28: 0 | J28: 0 | K28: 0
B29: Impairment losses | C29: 0 | D29: 0 | E29: 0 | F29: 0 | G29: 0 | H29: 0 | I29: 0 | J29: 0 | K29: 0
B30: Jurisdictional scheme amounts | C30: 2693533.69 | D30: -2693533.69 | E30: 0 | F30: 0 | G30: 0 | H30: 0 | I30: 0 | J30: 0 | K30: 0
B31: Loss from sale of fixed assets | C31: 0 | D31: 126224.65 | E31: 126224.65 | F31: 126224.65 | G31: 0 | H31: 0 | I31: 0 | J31: 0 | K31: 0
B32: Maintenance expenditure | C32: 32138749.8 | D32: 295107.47 | E32: 32433857.27 | F32: 25649494.91 | G32: 871484.1384 | H32: 1127274.045 | I32: 101323.2077 | J32: 2887086.469 | K32: 1797194.496
B33: Operating expenditure excluding maintenance expenditure | C33: 84631369.87 | D33: -21335892.2 | E33: 63295477.67 | F33: 49214599.93 | G33: 245510.9824 | H33: 317571.079 | I33: 6507020.574 | J33: 2971092.69 | K33: 3859714.637
B34: Other | C34: -9992.240402 | D34: 0 | E34: -9992.240402 | F34: -9992.240402 | G34: 0 | H34: 0 | I34: 0 | J34: 0 | K34: 0
B36: 8.1.1.3 - PROFIT
B37: Profit before tax (PBT) | C37: =C21-SUM(C24:C34) -> 191614064.4 | D37: -73841237.05 | E37: 117772827.4 | F37: 112394095.9 | G37: 842673.0038 | H37: -80195.69137 | I37: -1146060.352 | J37: 7072985.892 | K37: -1130980.533 | L37: 0
B38: Income tax expenses (/ benefit) | C38: 1896928 | D38: -731046.624 | E38: 1165881.376 | F38: 1112630.596 | G38: 8342.672458 | H38: -793.9573033 | I38: -11346.28271 | J38: 70024.32062 | K38: -11196.98875
B39: Profit after tax | C39: =C37-C38 -> 189717136.4 | D39: -73110190.43 | E39: 116606946 | F39: 111281465.3 | G39: 834330.3314 | H39: -79401.73407 | I39: -1134714.069 | J39: 7002961.571 | K39: -1119783.544 | L39: =L37-L38 -> 0

Sheet 8.2 Capex
B1: =(LOOKUP(dms_Model,dms_Model_List,dms_Worksheet_List)) -> ANNUAL REPORTING STATEMENT
B2: =dms_TradingName -> CitiPower
B3: =CONCATENATE("Annual Reporting RIN Response ",CRY) -> Annual Reporting RIN Response 2016
B4: 8.2 - CAPEX
B6: Instructions
B7: Reported expenditure must EXCLUDE capital contributions (except tables 8.2.1 and 8.2.5 which should include all capital contributions).
B8: =CONCATENATE("Forecast expenditure is to be taken from ",dms_TradingName,"'s ",dms_DeterminationRef,".") -> Forecast expenditure is to be taken from CitiPower's 2016-20 Distribution Determination.
B9: If allocating based on assumptions then provide method in Basis of Preparation. All adjustments must be explained in Basis of Preparation with supporting documentation attached.
B11: For tables 8.2.1 and 8.2.3: Reported expenditure must INCLUDE any profit margins or management fees paid directly or indirectly to related party contractors (not including actual incurred expenses of the related party contractor) for the regulatory reporting period. 'Related Party Margin Expenditure' must COMPRISE ONLY profit margins or management fees paid directly or indirectly to related party contractors (not including actual incurred expenses of the related party contractor) for the regulatory reporting period.
B13: 8.2.1 - CAPEX BY PURPOSE - STANDARD CONTROL SERVICES
B15: Each line item in this table must INCLUDE the capital contributions. Total capital contributions should also be identified in the last item in the table.
C17: EXPENDITURE
C18: CPI adjusted Forecast | D18: Actual | E18: Difference | F18: Related Party Margin | G18: Voltage level
G19: Subtransmission | H19: HV | I19: LV | J19: Other
B20: Description | C20: $0's, nominal | E20: (%) | F20: $0's, nominal
B21: Replacement Capex | C21: 45142959.89 | D21: =SUM(G21:J21) -> 20334398.49 | E21: =IF(C21=0,1,(D21-C21)/C21*1) -> -0.5495554891 | G21: 3542497.096 | H21: 11690982.62 | I21: 5052164.444 | J21: 48754.32646
B22: Augmentation Capex | C22: 49115799.6 | D22: =SUM(G22:J22) -> 46926060.07 | E22: =IF(C22=0,1,(D22-C22)/C22*1) -> -0.0445832003 | G22: 3884067.955 | H22: 12818238.02 | I22: 5539298.83 | J22: =53455.2638733982+24631000 -> 24684455.26
B23: Connections Capex | C23: 73161229.76 | D23: 78957646.45 | E23: 0.07922798324 | G23: 13755372.87 | H23: 45395612.42 | I23: 19617350.09 | J23: 189311.0766
B24: VBRC | C24: 700595.9766 | D24: 0 | E24: -1 | G24: 0 | H24: 0 | I24: 0 | J24: 0
B25: IT Capex | C25: 21720000.69 | D25: 12827660.34 | E25: -0.409407922 | G25: 0 | H25: 0 | I25: 0 | J25: 12827660.34
B26: Other Capex | C26: 3396715.503 | D26: =SUM(G26:J26) -> 3187589.43 | E26: -0.06156714402 | G26: 0 | H26: 0 | I26: 0 | J26: =27818589.43-24631000 -> 3187589.43
D27: 0 | E27: 1 | F27: 0 | G27: 0 | H27: 0 | I27: 0 | J27: 0
D28: 0 | E28: 1 | F28: 0 | G28: 0 | H28: 0 | I28: 0 | J28: 0
D29: 0 | E29: 1 | F29: 0 | G29: 0 | H29: 0 | I29: 0 | J29: 0
D30: =SUM(G30:J30) -> 0 | E30: 1 | F30: 0 | G30: 0 | H30: 0 | I30: 0 | J30: 0
D31: 0 | E31: 1 | F31: 0 | G31: 0 | H31: 0 | I31: 0 | J31: 0
D32: 0 | E32: 1 | F32: 0 | G32: 0 | H32: 0 | I32: 0 | J32: 0
D33: 0 | E33: 1 | F33: 0 | G33: 0 | H33: 0 | I33: 0 | J33: 0
D34: 0 | E34: 1 | F34: 0 | G34: 0 | H34: 0 | I34: 0 | J34: 0
D35: 0 | E35: 1 | F35: 0 | G35: 0 | H35: 0 | I35: 0 | J35: 0
B36: Capital contributions included in the above | D36: 44293575.79 | E36: 1 | F36: 0 | G36: 7735020.015 | H36: 25453069.92 | I36: 10999340.18 | J36: 106145.6783
B37: Total | C37: =SUM(C21:C35) -> 193237301.4 | D37: 162233354.8 | E37: =IF(C37=0,1,(D37-C37)/C37*1) -> -0.160444937 | G37: =SUM(G21:G35) -> 21181937.92 | H37: =SUM(H21:H35) -> 69904833.06 | I37: 30208813.36 | J37: 40937770.44
B40: 8.2.2 - CAPEX BY PURPOSE - MATERIAL DIFFERENCE EXPLANATION
B42: Where the difference between forecast and actual expenditure shown in table 8.2.1 is a Material Difference please explain the main factors driving the difference.
B44: Description | C44: Reason for material difference
B45: Replacement Capex | C45: Expenditure is less than forecast at the 2016-20 Distribution Determination as a result of: 1. The Allowance was based on the AER’s historic based Repex model, which does not factor in business improvements, project timing and asset condition determined from inspection programs. Together these factors have contributed to a lower spend; and 2. The Waratah Place building construction works were delayed due to legal issues with the proposed underground cable tunnel moving, expenditure into following year.
B46: Augmentation Capex | C46: Expenditure is less than forecast at the 2016-20 Distribution Determination as a result of the Waratah Place redevelopment (part of the CBD Security of Supply Upgrade project) delayed due to legal issues with the proposed underground cable tunnel. This has pushed expenditure into following years.
B47: VBRC | C47: Multi Circuit Surveys were included in the 2016 Allowance, and will be carried out in 2017 and beyond
B48: IT Capex | C48: Expenditure is less than forecast mainly due to the deferral of CRM billing, coupled with technological innovation and synergies resulting in change of solution approach at a lower cost.
B49: Other Capex | C49: Expenditure is less than forecast at the 2016-20 Distribution Determination, which was based on the 2011-2014 average, as a result of: 1. Allowance not allowing for the purchase of Montague Street zone substation
B62: 8.2.3 - CAPEX OTHER
C63: EXPENDITURE
C64: CPI adjusted Forecast | D64: Actual | E64: Difference | F64: Related Party Margin | G64: Voltage level
G65: Subtransmission | H65: HV | I65: LV | J65: Other
C66: $0's, nominal | E66: (%) | F66: $0's, nominal
B67: Public lighting
B68: =IF(dms_Jurisdiction="Vic","Energy Efficient", "Total") -> Energy Efficient | C68: 81180.67094 | D68: =SUM(G68:J68) -> 420288.7636 | E68: =IF(C68=0,1,((D68-C68)/C68)*1) -> 4.17720239 | G68: 0 | H68: 0 | I68: 0 | J68: 420288.7636
B69: =IF(dms_Jurisdiction="Vic","Non-energy efficient", "") -> Non-energy efficient | C69: 550235.8739 | D69: =SUM(G69:J69) -> 543648.0064 | E69: =IF(C69=0,1,((D69-C69)/C69)*1) -> -0.0119728062 | G69: 0 | H69: 0 | I69: 0 | J69: 543648.0064
B70: Alternative Control Services
B71: Connection services | D71: =SUM(G71:J71) -> 0 | E71: =IF(C71=0,1,((D71-C71)/C71)*1) -> 1
B72: Metering services | D72: 0 | E72: =IF(C72=0,1,((D72-C72)/C72)*1) -> 1
B73: Ancillary network services | D73: 0 | E73: =IF(C73=0,1,((D73-C73)/C73)*1) -> 1
B74: Negotiated Services
B75: Negotiated services | D75: =SUM(G75:J75) -> 0 | E75: =IF(C75=0,1,((D75-C75)/C75)*1) -> 1
B76: Total | C76: =SUM(C68:C69,C71:C73,C75) -> 631416.5448 | D76: =SUM(D68:D69,D71:D73,D75) -> 963936.77 | E76: =IF(C76=0,1,((C76-#REF!)/#REF!)*1) ->  | G76: =SUM(G68:G69,G71:G73,G75) -> 0 | H76: =SUM(H68:H69,H71:H73,H75) -> 0 | I76: =SUM(I68:I69,I71:I73,I75) -> 0 | J76: =SUM(J68:J69,J71:J73,J75) -> 963936.77
B80: 8.2.4 - CAPEX BY ASSET CLASS
B82: =CONCATENATE(dms_TradingName, " to enter in Table 8.2.4 each Asset Class specified in its current determination as listed in the AER's final decision in its Roll Forward Model and Post-tax Revenue Model and enter information against that Asset Class.") -> CitiPower to enter in Table 8.2.4 each Asset Class specified in its current determination as listed in the AER's final decision in its Roll Forward Model and Post-tax Revenue Model and enter information against that Asset Class.
C84: CPI adjusted Forecast | D84: Actual | E84: Difference | F84: Movements in provisions allocated to as-incurred capex
B85: Asset class | C85: $0's, nominal | E85: (%) | F85: $0's, nominal
B86: Subtransmission | C86: 44012141.77 | D86: 13446917.9 | E86: =IF(C86=0,1,((D86-C86)/C86)*1) -> -0.6944725396 | F86: 10653.13398
B87: Distribution system assets | C87: 121077418.7 | D87: 61434552.51 | E87: =IF(C87=0,1,((D87-C87)/C87)*1) -> -0.4926010716 | F87: 48670.67114
B88: Standard metering | C88: 0 | D88: 0 | E88: 1 | F88: 0
B89: Public lighting | C89: 0 | D89: 0 | E89: 1 | F89: 0
B90: SCADA/Network control | C90: 3038713.499 | D90: 2412058.8 | E90: -0.2062236862 | F90: 1910.92009
B91: Non-network general assets - IT | C91: 21744520.51 | D91: 12827660.34 | E91: -0.4100738927 | F91: 10162.53578
B92: Non-network general assets - Other | C92: 3364506.923 | D92: 3174841.08 | E92: -0.05637255239 | F92: 2515.22376
B93: VBRC | C93: 0 | D93: 0 | E93: 1 | F93: 0
B94: Supervisory cables | C94: 0 | D94: 0 | E94: 1 | F94: 0
B95: Old SWER ACRs | C95: 0 | D95: 0 | E95: 1 | F95: 0
B96: Land | C96: 0 | D96: 24643748.35 | E96: 1 | F96: 19523.66743
E97: 1
E98: 1
E99: 1
E100: 1
E101: 1
E102: 1
E103: 1
E104: 1
E105: 1
E106: 1
E107: 1
E108: 1
E109: 1
E110: 1
E111: 1
E112: 1
E113: 1
E114: 1
E115: 1
E116: =IF(C116=0,1,((D116-C116)/C116)*1) -> 1
E117: 1
E118: 1
E119: 1
E120: 1
E121: 1
E122: 1
E123: 1
E124: 1
E125: 1
E126: 1
E127: 1
E128: 1
E129: 1
E130: 1
E131: 1
E132: 1
E133: 1
E134: 1
E135: 1
B136: Total | C136: =SUM(C86:C135) -> 193237301.4 | D136: =SUM(D86:D135) -> 117939779 | E136: -0.389663496 | F136: =SUM(F86:F135) -> 93436.15218
B139: 8.2.5 - CAPITAL CONTRIBUTIONS BY ASSET CLASS
C140: CPI Adjusted Forecast | D140: Actual | E140: Difference
B141: Asset class | C141: $0's, nominal | E141: (%)
B142: =IF(ISBLANK(B86),"",B86) -> Subtransmission | C142: 8743708.777 | D142: 7735020.015 | E142: =IF(C142=0,1,((D142-C142)/C142)*1) -> -0.1153616603
B143: Distribution system assets | C143: 23917307.53 | D143: 36558555.78 | E143: =IF(C143=0,1,((D143-C143)/C143)*1) -> 0.5285397715
B144: Standard metering | C144: 0 | D144: 0 | E144: 1
B145: Public lighting | C145: 0 | D145: 0 | E145: 1
B146: SCADA/Network control | C146: 0 | D146: 0 | E146: 1
B147: Non-network general assets - IT | C147: 0 | D147: 0 | E147: 1
B148: Non-network general assets - Other | C148: 0 | D148: 0 | E148: 1
B149: VBRC | C149: 0 | D149: 0 | E149: 1
B150: Supervisory cables | C150: 0 | D150: 0 | E150: 1
B151: Old SWER ACRs | C151: 0 | D151: 0 | E151: 1
B152: Land | C152: 0 | D152: 0 | E152: 1
E153: 1
E154: 1
E155: 1
E156: 1
E157: 1
E158: 1
E159: 1
E160: 1
E161: 1
E162: 1
E163: 1
E164: 1
E165: 1
E166: 1
E167: 1
E168: 1
E169: 1
E170: 1
E171: =IF(C171=0,1,((D171-C171)/C171)*1) -> 1
E172: 1
E173: 1
B174: =IF(ISBLANK(B118),"",B118) ->  | E174: 1
E175: 1
E176: 1
E177: 1
E178: 1
E179: 1
E180: 1
E181: =IF(C181=0,1,((D181-C181)/C181)*1) -> 1
E182: 1
E183: 1
E184: 1
E185: 1
E186: 1
E187: 1
E188: 1
E189: 1
E190: 1
E191: 1
B192: Total | C192: =SUM(C142:C191) -> 32661016.3 | D192: =SUM(D142:D191) -> 44293575.79 | E192: 0.3561603651
B195: 8.2.6 - DISPOSALS BY ASSET CLASS
C196: CPI Adjusted Forecast | D196: Actual | E196: Difference
B197: Asset class | C197: $0's, nominal | E197: (%)
B198: =IF(ISBLANK(B86),"",B86) -> Subtransmission | C198: 0 | D198: 0 | E198: =IF(C198=0,1,((D198-C198)/C198)*1) -> 1
B199: Distribution system assets | C199: 0 | D199: 0 | E199: =IF(C199=0,1,((D199-C199)/C199)*1) -> 1
B200: Standard metering | C200: 0 | D200: 0 | E200: 1
B201: Public lighting | C201: 0 | D201: 0 | E201: 1
B202: SCADA/Network control | C202: 0 | D202: 0 | E202: 1
B203: Non-network general assets - IT | C203: 0 | D203: 0 | E203: 1
B204: Non-network general assets - Other | C204: 258841.6882 | D204: 64660.35 | E204: -0.7501934466
B205: VBRC | C205: 0 | D205: 0 | E205: 1
B206: Supervisory cables | C206: 0 | D206: 0 | E206: 1
B207: Old SWER ACRs | C207: 0 | D207: 0 | E207: 1
B208: Land | C208: 0 | D208: 0 | E208: 1
E209: 1
E210: 1
E211: 1
E212: 1
E213: 1
E214: 1
E215: 1
E216: 1
E217: 1
E218: 1
E219: 1
E220: 1
E221: 1
E222: 1
E223: 1
E224: 1
E225: 1
E226: 1
E227: 1
E228: =IF(C228=0,1,((D228-C228)/C228)*1) -> 1
E229: 1
B230: =IF(ISBLANK(B118),"",B118) ->  | E230: 1
... 18 more rows

Sheet 8.4 Opex
B1: =(LOOKUP(dms_Model,dms_Model_List,dms_Worksheet_List)) -> ANNUAL REPORTING STATEMENT
B2: =dms_TradingName -> CitiPower
B3: =CONCATENATE("Annual Reporting RIN Response ",CRY) -> Annual Reporting RIN Response 2016
B4: 8.4 OPEX
B6: Instructions
B7: =CONCATENATE("Forecast expenditure is to be taken from ",dms_TradingName,"'s ",dms_DeterminationRef,".") -> Forecast expenditure is to be taken from CitiPower's 2016-20 Distribution Determination.
B8: If allocating based on assumptions then provide method in Basis of Preparation. All adjustments must be explained in Basis of Preparation with supporting documentation attached.
B10: 8.4.1 - OPERATING & MAINTENANCE EXPENDITURE - BY PURPOSE
B12: =CONCATENATE(dms_TradingName," is to list the operating expenditure categories identified in ", dms_TradingName,"'s regulatory proposal at table 3.2.1.1 current opex categories and cost allocations.") -> CitiPower is to list the operating expenditure categories identified in CitiPower's regulatory proposal at table 3.2.1.1 current opex categories and cost allocations.
B13: =CONCATENATE(dms_TradingName, " must specify any expenditure category where the expense is more than 5 per cent of the total standard control services operating expenditure.") -> CitiPower must specify any expenditure category where the expense is more than 5 per cent of the total standard control services operating expenditure.
B14: Reported operating expenditure must INCLUDE any profit margins or management fees paid directly or indirectly to related party contractors (not including actual incurred expenditure of the related party contractor) for the regulatory reporting period.
C16: Audited Statutory Accounts | D16: Adjustments | E16: Distribution business | F16: Standard Control Services | I16: Alternative Control Services | N16: Negotiated Services
F17: CPI Adjusted Forecast | G17: Actual | H17: Difference | I17: Public Lighting | K17: Other
I18: =IF(dms_Jurisdiction="Vic","Energy efficient","") -> Energy efficient | J18: =IF(dms_Jurisdiction="Vic","Non-energy efficient","") -> Non-energy efficient | K18: Connection services | L18: Metering services | M18: Ancillary network services
B19: Opex category | C19: $0's, nominal | H19: % | I19: $0's, nominal
B20: Routine | C20: 4389908.611 | D20: 0 | E20: 4389908.611 | F20: 4445886.249 | G20: 4389908.611 | H20: =IF(F20=0,1,((G20-F20)/F20)*1) -> -0.01259088404 | I20: 0 | J20: 0 | K20: 0 | L20: 0 | M20: 0
B21: Condition based | C21: 13724158.94 | D21: 295107.47 | E21: 14019266.41 | F21: 17234596.63 | G21: 14019266.41 | H21: -0.1865625456 | I21: 0 | J21: 0 | K21: 0 | L21: 0 | M21: 0
B22: Emergency | C22: 5151516.75 | D22: 0 | E22: 5151516.75 | F22: 5650585.339 | G22: 5151516.75 | H22: -0.08832157365 | I22: 0 | J22: 0 | K22: 0 | L22: 0 | M22: 0
B23: SCADA/Network Control | C23: 121878.37 | D23: 0 | E23: 121878.37 | F23: 186601.5715 | G23: 121878.37 | H23: -0.3468523924 | I23: 0 | J23: 0 | K23: 0 | L23: 0 | M23: 0
B24: Other - Standard Control Services | C24: 1966924.77 | D24: 0 | E24: 1966924.77 | F24: 3036267.372 | G24: 1966924.77 | H24: -0.3521898669 | I24: 0 | J24: 0 | K24: 0 | L24: 0 | M24: 0
B25: Network Operating Costs | C25: 11129479.46 | D25: 0 | E25: 11129479.46 | F25: 17017154.26 | G25: 11129479.46 | H25: -0.3459846874 | I25: 0 | J25: 0 | K25: 0 | L25: 0 | M25: 0
B26: Billing & Revenue Collection | C26: 2323087.619 | D26: 140876.68 | E26: 2463964.299 | F26: 3553283.645 | G26: 2463964.299 | H26: -0.3065669546 | I26: 0 | J26: 0 | K26: 0 | L26: 0 | M26: 0
B27: Advertising/Marketing | C27: 22670.61814 | D27: 0 | E27: 22670.61814 | F27: 5999.815622 | G27: 22670.61814 | H27: 2.778552471 | I27: 0 | J27: 0 | K27: 0 | L27: 0 | M27: 0
B28: Customer Service | C28: 2585995.704 | D28: 0 | E28: 2585995.704 | F28: 2497164.661 | G28: 2585995.704 | H28: 0.03557276135 | I28: 0 | J28: 0 | K28: 0 | L28: 0 | M28: 0
B29: Regulatory | C29: 1185191.583 | D29: 0 | E29: 1185191.583 | F29: 1277500.396 | G29: 1185191.583 | H29: -0.07225736521 | I29: 0 | J29: 0 | K29: 0 | L29: 0 | M29: 0
B30: Regulatory Reset | C30: 459125.92 | D30: 0 | E30: 459125.92 | F30: 331834.1304 | G30: 459125.92 | H30: 0.3836006545 | I30: 0 | J30: 0 | K30: 0 | L30: 0 | M30: 0
B31: IT | C31: 12344596.14 | D31: 0 | E31: 12344596.14 | F31: 11851974 | G31: 12344596.14 | H31: 0.04156456494 | I31: 0 | J31: 0 | K31: 0 | L31: 0 | M31: 0
B32: Licence fee | C32: 1109433.84 | D32: 0 | E32: 1109433.84 | F32: 26654.80633 | G32: 1109433.84 | H32: 40.62228103 | I32: 0 | J32: 0 | K32: 0 | L32: 0 | M32: 0
B33: GSL payments | C33: 22982.1 | D33: 0 | E33: 22982.1 | F33: 62102.99894 | G33: 22982.1 | H33: -0.6299357456 | I33: 0 | J33: 0 | K33: 0 | L33: 0 | M33: 0
B34: Non-network alternatives costs | C34: 0 | D34: 0 | E34: 0 | F34: 0 | G34: 0 | H34: 1 | I34: 0 | J34: 0 | K34: 0 | L34: 0 | M34: 0
B35: Debt Raising Costs | C35: 0 | D35: 0 | E35: 0 | F35: 0 | G35: 0 | H35: =IF(F35=0,1,((G35-F35)/F35)*1) -> 1 | I35: 0 | J35: 0 | K35: 0 | L35: 0 | M35: 0
B36: Other Operating - Standard Control Services | C36: 44236576.75 | D36: -26345416.48 | E36: 17891160.27 | F36: 14559577.19 | G36: 17891160.27 | H36: 0.2288241644 | I36: 0 | J36: 0 | K36: 0 | L36: 0 | M36: 0
B37: Public Lighting | C37: 2561840.244 | D37: 0 | E37: 2561840.244 | F37: 0 | G37: 0 | H37: 1 | I37: 1116995.121 | J37: 1444845.124 | K37: 0 | L37: 0 | M37: 0
B38: Connection Services | C38: 3865528.552 | D38: 2742815.23 | E38: 6608343.782 | F38: 0 | G38: 0 | H38: 1 | I38: 0 | J38: 0 | K38: 6608343.782 | L38: 0 | M38: 0
B39: Metering Services | C39: 5858179.159 | D39: 0 | E39: 5858179.159 | F39: 0 | G39: 0 | H39: 1 | I39: 0 | J39: 0 | K39: 0 | L39: 5858179.159 | M39: 0
B40: Ancillary Network Services | C40: 3531076.763 | D40: 2125832.37 | E40: 5656909.133 | F40: 0 | G40: 0 | H40: 1 | I40: 0 | J40: 0 | K40: 0 | L40: 0 | M40: 5656909.133
B41: Negotiated Services | C41: 179967.7686 | D41: 0 | E41: 179967.7686 | F41: 0 | G41: 0 | H41: =IF(F41=0,1,((G41-F41)/F41)*1) -> 1 | I41: 0 | J41: 0 | K41: 0 | L41: 0 | M41: 0
H42: 1
H43: 1
H44: 1
H45: 1
H46: 1
H47: 1
H48: 1
H49: 1
H50: 1
H51: 1
H52: 1
H53: 1
H54: 1
H55: 1
H56: 1
H57: 1
H58: 1
H59: 1
H60: 1
H61: 1
H62: 1
H63: 1
H64: 1
H65: 1
H66: 1
H67: 1
H68: 1
H69: 1
B70: Total | C70: =SUM(C20:C69) -> 116770119.7 | D70: -21040784.73 | E70: 95729334.93 | F70: 81737183.05 | G70: 74864094.85 | H70: -0.08408765693 | I70: =SUM(I20:I69) -> 1116995.121 | J70: 1444845.124 | K70: 6608343.782 | L70: 5858179.159 | M70: 5656909.133 | N70: 0
B73: 8.4.2 - OPERATING & MAINTENANCE EXPENDITURE - BY PURPOSE - MARGINS ONLY
B75: "Related party margin expenditure' must COMPRISE ONLY profit margins or management fees paid directly or indirectly to related party contractors (for expenditure that is not an actual incurred expenditure of the related party contractor) for the regulatory reporting period.
C77: Audited Statutory Accounts | D77: Adjustments | E77: Distribution business | F77: Standard Control Services | I77: Alternative Control Services | N77: Negotiated Services
F78: CPI Adjusted Forecast | G78: Actual | H78: Difference | I78: Public Lighting | K78: Other
I79: =IF(dms_Jurisdiction="Vic","Energy efficient","") -> Energy efficient | J79: =IF(dms_Jurisdiction="Vic","Non-energy efficient","") -> Non-energy efficient | K79: Connection services | L79: Metering services | M79: Ancillary network services
B80: Opex category | C80: $0's, nominal | G80: $0's, nominal | H80: per cent | I80: $0's, nominal
B81: =IF(ISBLANK(B20),"",B20) -> Routine | H81: =IF(F81=0,1,((G81-F81)/F81)*1) -> 1
B82: Condition based | H82: 1
B83: Emergency | H83: 1
B84: SCADA/Network Control | H84: 1
B85: Other - Standard Control Services | H85: 1
B86: Network Operating Costs | H86: 1
B87: Billing & Revenue Collection | H87: 1
B88: =IF(ISBLANK(B27),"",B27) -> Advertising/Marketing | H88: =IF(F88=0,1,((G88-F88)/F88)*1) -> 1
B89: Customer Service | H89: 1
B90: Regulatory | H90: 1
B91: Regulatory Reset | H91: 1
B92: IT | H92: 1
B93: Licence fee | H93: 1
B94: GSL payments | H94: 1
B95: Non-network alternatives costs | H95: 1
B96: Debt Raising Costs | H96: 1
B97: Other Operating - Standard Control Services | H97: =IF(F97=0,1,((G97-F97)/F97)*1) -> 1
B98: Public Lighting | H98: 1
B99: Connection Services | H99: 1
B100: Metering Services | H100: 1
B101: Ancillary Network Services | H101: 1
B102: Negotiated Services | H102: 1
H103: =IF(F103=0,1,((G103-F103)/F103)*1) -> 1
H104: 1
H105: 1
H106: 1
H107: 1
H108: 1
H109: 1
H110: 1
H111: 1
H112: 1
H113: 1
H114: 1
H115: 1
H116: 1
H117: 1
H118: 1
H119: 1
H120: 1
H121: 1
H122: 1
H123: 1
H124: 1
H125: 1
H126: 1
H127: 1
H128: 1
H129: 1
H130: 1
B131: Total | C131: =SUM(C81:C130) -> 0 | D131: =SUM(D81:D130) -> 0 | E131: =SUM(E81:E130) -> 0 | F131: =SUM(F81:F130) -> 0 | G131: =SUM(G81:G130) -> 0 | H131: 1 | I131: =SUM(I81:I130) -> 0 | J131: 0 | K131: 0 | L131: 0 | M131: 0 | N131: 0
B134: 8.4.3 - OPERATING & MAINTENANCE EXPENDITURE - EXPLANATION OF MATERIAL DIFFERENCE
B136: Where the difference between forecast and actual expenditure shown in table 8.4.1, column I is a Material Difference please explain the main factors driving the difference.
B138: Category | C138: Explanation
B139: Condition based | C139: Lower than forecast expenditure due to efficiences realised in line maintenance and zone substation maintenance
B140: SCADA/Network Control | C140: The absolute expenditure variance is not material.
B141: Other - Standard Control Services | C141: The absolute expenditure variance is not material.
B142: Network Operating Costs | C142: Impacted by internal restructuring between areas of the business. Offset in Other Operating - Standard Control Services. Total expenditure in these categories combined is not materially different than AER Forecast.
B143: Billing & Revenue Collection | C143: Lower than forecast expenditure due to efficiences realised
B144: Advertising/Marketing | C144: The absolute expenditure variance is not material.
B145: Regulatory Reset | C145: The absolute expenditure variance is not material.
B146: Licence fee | C146: The absolute expenditure variance is not material.
B147: GSL payments | C147: The absolute expenditure variance is not material.
B148: Other Operating - Standard Control Services | C148: Impacted by internal restructuring between areas of the business. Offset in Network Operating costs. Total expenditure in these categories combined is not materially different than the 2016-20 Distribution Determination.

Sheet 9.5 TUoS
B1: =(LOOKUP(dms_Model,dms_Model_List,dms_Worksheet_List)) -> ANNUAL REPORTING STATEMENT
B2: =dms_TradingName -> CitiPower
B3: =CONCATENATE("Annual Reporting RIN Response ",CRY) -> Annual Reporting RIN Response 2016
B4: 9.5 - TUoS AUDIT (t-2)
B6: This template collects information for annual pricing proposals from Victorian businesses only.
B8: 9.5.1 - TUOS CHARGES (AEMO)
F9: =CRY -> 2016
B10: AEMO (TUoS Usage) | F10: 17696961.43
B11: AEMO (TUoS General & Common Service) | F11: 53924079.38
B12: Grid equalisation | F12: 1184000
B13: Adjustment | F13: 2224.16
E14: Total | F14: =SUM(F10:F13) -> 72807264.97
B17: 9.5.2 - TRANSMISSION CONNECTION FEES
F18: =CRY -> 2016
B19: Ausnet Services (Connection) | F19: 7498843.95
B20: Ausnet Services (Augmentation) | F20: 3774212.364
E23: Total | F23: =SUM(F19:F22) -> 11273056.31
B26: 9.5.3 - CROSS BOUNDARY NETWORK CHARGES
C27: Amount (payable)/receivable
C28: $0's, nominal
C29: HV crossings | D29: Subtransmission crossings | E29: TUoS Adjustment | F29: Total
B30: Distribution Business | F30: =CRY -> 2016
B31: Jemena | C31: 0 | D31: -3182105.38 | E31: 0 | F31: =IF((SUM(C31:E31)=0),"",(SUM(C31:E31))) -> -3182105.38
B32: UE | C32: 0 | D32: -539433.24 | E32: 0 | F32: =IF((SUM(C32:E32)=0),"",(SUM(C32:E32))) -> -539433.24
B39: Total
B42: 9.5.4 - PAYMENTS TO EMBEDDED GENERATORS
B43: 9.5.4.1 - AVOIDED TRANSMISSION COSTS | F43: =CRY -> 2016
B44: Avoided Transmission Cost | F44: 0
B52: Total | F52: =SUM(F44:F51) -> 0
B53: 9.5.4.2 - AVOIDED TUoS USAGE CHARGES | F53: =CRY -> 2016
B62: Total | F62: =SUM(F54:F61) -> 0
B63: Total payments to embedded generators | F63: =F62+F52 -> 0
